{"text_format":"1","workbook":"xlsx","n_sheets":48,"sheets":["Project Data","Project Data Conversion","EJ Communities","Measures","Commerical Cloths Washers","Lighting","Unitary & Split DX","Heat Pumps - Air","Heat Pumps - Water","VRF-VRV","Chillers","Gas Heating","Sheet6","Sheet1","DHW","EMS proposed","Kitchen Appliances","Cooking Equipment","HW Usage","VFDs","ERV","DCV","Pipe Ins","Advanced Thermostat","Steam Traps","EMS","Custom","Refrig. Equip","Refrigerator Door","Commercial Kitchen Equipment","Kitchen Hoods","Insulation","Windows","Air Compressor & Dryer","Air Compressor Heat Recovery","PIMMS","Compressed Air Leak Survey","Washers","Lighting Instructions","Existing Fixtures","New-Fixtures","Std Ltg","EMS existing","High Perform Ltg","Daylighting","W-9","Picklists","AdminList"],"not_rendered":{"charts":0,"images":77,"macros":1,"external_links":7,"defined_names":573,"comments":20,"pivot_tables":0},"unopened":[],"bounds":{"document_bytes":16777216,"sheet_cells":100000,"rows_first":2000,"rows_last":500,"rows_between":2000,"halvings":0,"cell_chars":16384,"cell_head_chars":4096},"cells_cut":0,"cells_raw":0,"read":"whole","date_system":"1900"}

{"sheet":"Project Data","index":0,"n_rows":52,"n_cols":22,"rows_kept":52,"cut":false,"hidden":false,"merged":[[30,5,30,6],[51,1,51,3],[0,1,0,3],[3,1,3,3],[4,1,4,3],[48,1,48,2],[19,5,19,7],[24,6,24,7],[25,6,25,7],[28,5,28,6],[29,5,29,6]]}
[null,"2024 EnergizeCT Commercial & Industrial \nRetrofit Energy Efficiency Data Collection"]
[null,"For additional program information:",null,"https://www.energizect.com/your-business/solutions-list/Energy-Opportunities",null,"Version Date: 11-14-24"]
[]
[null,"Participant must obtain conditional approval from the Utilities prior to the purchase or installation of any energy efficiency measures to be eligible to receive efficiency incentives. \n\nThe following are required for ALL measures:  \n        (1) Proposal to customer\n        (2) ALL specification sheets and supporting documents.\n        (3) Data fields (in yellow) on applicable tabs MUST BE FILLED IN"]
[null,"Application will be returned if there is ANY missing or incomplete information. If you don't know which EEC will manage this project, email this form and the backup documentation to commercial@eversource.com."]
[]
[null,"F A C I L I T Y   I N F O R M A T I O N",null,null,null,null,null,null,null,null,null,null,null,null,null,null,null,null,null,null,null,"Type of Project"]
[null,"Facility - Building Name",null,null,null,null,null,null,null,null,null,null,null,null,null,null,null,null,null,null,null,"New facility"]
[null,"Street Address",null,null,null,null,null,null,null,null,null,null,null,null,null,null,null,null,null,null,null,"Addition to existing facility"]
[null,"City",null,null,null,null,null,null,null,null,null,null,null,null,null,null,null,null,null,null,null,"Major renovation"]
[null,"State",null,null,null,null,null,null,null,null,null,null,null,null,null,null,null,null,null,null,null,"Major renovation plus addition"]
[null,"Zip Code",null,null,"* If the project is being implemented in an Environmental Justice Community (EJC), "]
[null,"Building Type",null,null,"the city and zip code will change to green "]
[null,"Electric          ","- Utility Name"]
[null,"Electric          ","- Account # (@facility) "]
[null,"Natural Gas","- Utility Name"]
[null,"Natural Gas","- Account # (@facility)"]
[null,"Estimated Project Start Date"]
[null,"Estimated Project Completion Date",null,null,null,"FACILITY HOURS OF OPERATION"]
[null,"Building Area, ft2:",null,null,null,"(Times must be entered in 0-24 hr format)"]
[null,"Nearest Weather Station (select from dropdown): ",null,null,null,null,"Start Time","Finish Time"]
[null,"Building Fossil Fuel Type ",null,null,null,"Weekdays"]
[null,"Building Annual Fuel Use (CCF): ",null,null,null,"Saturday"]
[null,"Building Fossil Fuel Account Number(s): ",null,null,null,"Sunday"]
[null,null,null,null,null,"Holiday Closures? "]
[null,"C U S T O M E R   C O N T A C T   I N F O R M A T I O N",null,null,null,"Seasonal Building Hours?\n(if yes, fill out table below)"]
[null,"Name"]
[null,"Title"]
[null,"Company Name",null,null,null,"Monthly/Seasonal"]
[null,"Email Address",null,null,null," Bldg Hours Diversity"]
[null,"Phone Number",null,null,null,"(if variable)"]
[null,"Street Address (if different from facility street address)",null,null,null,"Month","Bldg Use Diversity"]
[null,"City, State, Zip Code (if different from facility address)",null,null,null,"January"]
[null,"C O N T R A C T O R   C O N T A C T   I N F O R M A T I O N",null,null,null,"February"]
[null,"Name",null,null,null,"March"]
[null,"Title",null,null,null,"April"]
[null,"Company Name",null,null,null,"May"]
[null,"Email Address",null,null,null,"June"]
[null,"Phone Number",null,null,null,"July"]
[null,"Street Address",null,null,null,"August"]
[null,"City, State, Zip Code",null,null,null,"September"]
[null,"I N C E N T I V E   P A Y E E   I N F O R M A T I O N",null,null,null,"October"]
[null,"Customer or Contractor Company Name",null,null,null,"Novermber"]
[null,null,"Attention:",null,null,"December"]
[null,"Street Address"]
[null,"City, State"]
[null,"Zip"]
[]
[null,"Please provide Payee W-9 at this time and include in submission"]
[]
[]
[null,"Provide any additional information felt to be relevant to this project."]

{"sheet":"Project Data Conversion","index":1,"n_rows":32,"n_cols":2,"rows_kept":32,"cut":false,"hidden":true,"merged":[]}
[]
["Project:                                   Facility Name",{"$f":"'Project Data'!D8","v":0}]
["Street Address",{"$f":"'Project Data'!D9","v":0}]
["Street Address Line 2"]
["City, State",{"$f":"'Project Data'!D10","v":0}]
["Zip Code",{"$f":"'Project Data'!D12","v":0}]
["Utility Account Number(s)",{"$f":"_xlfn.CONCAT('Project Data'!D15, \";  \", 'Project Data'!D17)","v":";  "}]
[]
["Customer:                                   Contact Name",{"$f":"MID('Project Data'!D27,1,SEARCH(\" \",'Project Data'!D27)-1)","v":{"$error":"#VALUE!"}}]
["Last Name",{"$f":"TRIM(MID('Project Data'!D27,SEARCH(\" \",'Project Data'!D27),LEN('Project Data'!D27)))","v":{"$error":"#VALUE!"}}]
["Title",{"$f":"'Project Data'!D28","v":0}]
["Company Name",{"$f":"'Project Data'!D29","v":0}]
["Phone (enter as \"9876543210\")",{"$f":"'Project Data'!D31","v":0}]
["E-mail Address",{"$f":"'Project Data'!D30","v":0}]
["Street Address",{"$f":"'Project Data'!D32","v":0}]
["Street Address line 2"]
["City, State",{"$f":"'Project Data'!D33","v":0}]
["Zip Code",{"$f":"'Project Data'!#REF!","v":{"$error":"#REF!"}}]
["Contractor/ESCO:                 Company Name",{"$f":"'Project Data'!D37","v":0}]
["Contact Name",{"$f":"'Project Data'!D35","v":0}]
["Phone #( \"012345789\")",{"$f":"'Project Data'!D39","v":0}]
["E-mail Address",{"$f":"'Project Data'!D38","v":0}]
["Estimated Project Completion Date",{"$f":"'Project Data'!D19","v":"00:00:00"}]
["Incentive Check:                                          "]
["Payee Name",{"$f":"'Project Data'!D43","v":0}]
["Street Address",{"$f":"'Project Data'!D45","v":0}]
["Street Address Line 2"]
["City, State",{"$f":"'Project Data'!D46","v":0}]
["Zip Code",{"$f":"'Project Data'!D47","v":0}]
["Building Type   (Dropdown List)",{"$f":"'Project Data'!D13","v":0}]
["Project Interior Square Footage",{"$f":"'Project Data'!D20","v":0}]
["Do HVAC Units Have Economizers?   (Dropdown List)",{"$f":"'Project Data'!D21","v":0}]

{"sheet":"EJ Communities","index":2,"n_rows":26,"n_cols":1,"rows_kept":26,"cut":false,"hidden":true,"merged":[]}
["Environmental Justice Communities 2022 (List Until october 2022) "]
["Ansonia"]
["Bridgeport"]
["Bristol"]
["Chaplin"]
["Derby"]
["East Hartford"]
["East Haven"]
["Griswold"]
["Groton"]
["Hartford"]
["Meriden"]
["Montville"]
["New Britain"]
["New London"]
["North Stonington"]
["Norwich"]
["Plainfield"]
["Putnam"]
["Sprague"]
["Sterling"]
["Torrington"]
["Waterbury"]
["West Haven"]
["Winchester"]
["Windham"]

{"sheet":"Measures","index":3,"n_rows":40,"n_cols":14,"rows_kept":40,"cut":false,"hidden":false,"merged":[[9,7,9,8]]}
[]
[{"$f":"y","v":6}]
[null,"M E A S U R E S"]
[]
[]
[null,null,null,null,null,null,null,null,null,"Button Text","Linked Sheet",null,"Button Text","Linked Sheet"]
[null,null,null,null,null,null,null,null,null,"Lighting",null,null,"Commercial Refrigeration"]
[null,null,null,null,null,null,null,null,null,"Lighting","Lighting",null,"E.C. Evap Fan Motors","Refrig. Equip^1"]
[null,null,null,null,null,null,null,null,null,"HVAC New Equipment",null,null,"Evap Fan Controls","Refrig. Equip^2"]
[null,null,null,null,null,null,null,"Project Summary Cost table ",null,"Unitary & Split DX",{"$f":"MID(CELL(\"filename\",'Unitary & Split DX'!$A$1),FIND(\"]\",CELL(\"filename\",'Unitary & Split DX'!$A$1))+1,255)","v":"Unitary & Split DX"},null,"Door Heater Controls","Refrig. Equip^3"]
[null,null,null,null,null,null,null,"Measure","Cost","Heat Pumps; Air Source",{"$f":"MID(CELL(\"filename\",'Heat Pumps - Air'!$A$1),FIND(\"]\",CELL(\"filename\",'Heat Pumps - Air'!$A$1))+1,255)","v":"Heat Pumps - Air"},null," Refrigeration LED Lighting & Controls","Refrig. Equip^4"]
[null,null,null,null,null,null,null,"Lighting",{"$f":"Lighting!C6","v":0},"Heat Pumps; Water Source",{"$f":"MID(CELL(\"filename\",'Heat Pumps - Water'!$A$1),FIND(\"]\",CELL(\"filename\",'Heat Pumps - Water'!$A$1))+1,255)","v":"Heat Pumps - Water"},null,"Vending Machine Controls","Refrig. Equip^7"]
[null,null,null,null,null,null,null,"Unitary & Split Dx",{"$f":"'Unitary & Split DX'!C8","v":0},"VRF-VRV",{"$f":"MID(CELL(\"filename\",'VRF-VRV'!$A$1),FIND(\"]\",CELL(\"filename\",'VRF-VRV'!$A$1))+1,255)","v":"VRF-VRV"},null,"Night Covers","Refrig. Equip^6"]
[null,null,null,null,null,null,null,"Heat Pumps: Air Source",{"$f":"'Heat Pumps - Air'!C8","v":0},null,null,null,"Refrigerator Door",{"$f":"MID(CELL(\"filename\",'Refrigerator Door'!$A$3),FIND(\"]\",CELL(\"filename\",'Refrigerator Door'!$A$3))+1,255)","v":"Refrigerator Door"}]
[null,null,null,null,null,null,null,"Heat Pumps: Water Source",{"$f":"'Heat Pumps - Water'!C8","v":0},"Chillers",{"$f":"MID(CELL(\"filename\",Chillers!$A$4),FIND(\"]\",CELL(\"filename\",Chillers!$A$4))+1,255)","v":"Chillers"},null,"Commercial Kitchens"]
[null,null,null,null,null,null,null,"VRF-VRV",{"$f":"'VRF-VRV'!C6","v":0},"Natural Gas Heating",{"$f":"MID(CELL(\"filename\",'Gas Heating'!$A$10),FIND(\"]\",CELL(\"filename\",'Gas Heating'!$A$10))+1,255)","v":"Gas Heating"},null,"Freezers - Coolers - Dishwashers",{"$f":"MID(CELL(\"filename\",'Commercial Kitchen Equipment'!$C$1),FIND(\"]\",CELL(\"filename\",'Commercial Kitchen Equipment'!$C$1))+1,255)","v":"Commercial Kitchen Equipment"}]
[null,null,null,null,null,null,null,"Chillers",{"$f":"Chillers!C8","v":0},"Domestic Hot Water",{"$f":"MID(CELL(\"filename\",DHW!$A$13),FIND(\"]\",CELL(\"filename\",DHW!$A$13))+1,255)","v":"DHW"},null,"Cooking Equipment",{"$f":"MID(CELL(\"filename\",'Commercial Kitchen Equipment'!$C$1),FIND(\"]\",CELL(\"filename\",'Commercial Kitchen Equipment'!$C$1))+1,255)","v":"Commercial Kitchen Equipment"}]
[null,null,null,null,null,null,null,"Natural Gas Heating ",{"$f":"'Gas Heating'!C7","v":0},"Hot Water Usage",{"$f":"MID(CELL(\"filename\",'HW Usage'!$A$1),FIND(\"]\",CELL(\"filename\",'HW Usage'!$A$1))+1,255)","v":"HW Usage"},null,"Kitchen Hood VFDs",{"$f":"MID(CELL(\"filename\",'Kitchen Hoods'!$A$1),FIND(\"]\",CELL(\"filename\",'Kitchen Hoods'!$A$1))+1,255)","v":"Kitchen Hoods"}]
[null,null,null,null,null,null,null,"Domestic Hot Water",{"$f":"DHW!C8","v":0},"HVAC Retrofit"]
[null,null,null,null,null,null,null,"Hot Water Usage",{"$f":"'HW Usage'!C17","v":0},"HVAC Motor VFDs",{"$f":"MID(CELL(\"filename\",VFDs!$A$1),FIND(\"]\",CELL(\"filename\",VFDs!$A$1))+1,255)","v":"VFDs"}]
[null,null,null,null,null,null,null,"HVAC Motor VFDs",{"$f":"VFDs!N9","v":0},"Energy Recovery Units (ERV)",{"$f":"MID(CELL(\"filename\",ERV!$A$1),FIND(\"]\",CELL(\"filename\",ERV!$A$1))+1,255)","v":"ERV"},null,"Building Envelope"]
[null,null,null,null,null,null,null,"Energy Recovery Units (ERV)",{"$f":"ERV!F9","v":0},"DCV (CO2 control) ",{"$f":"MID(CELL(\"filename\",DCV!$A$1),FIND(\"]\",CELL(\"filename\",DCV!$A$1))+1,255)","v":"DCV"},null,"Insulation",{"$f":"MID(CELL(\"filename\",Insulation!$A$1),FIND(\"]\",CELL(\"filename\",Insulation!$A$1))+1,255)","v":"Insulation"}]
[null,null,null,null,null,null,null,"DCV (CO2 Control) ",{"$f":"DCV!C11","v":0},"Pipe and Valve Insulation",{"$f":"MID(CELL(\"filename\",'Pipe Ins'!$A$1),FIND(\"]\",CELL(\"filename\",'Pipe Ins'!$A$1))+1,255)","v":"Pipe Ins"},null,"Windows",{"$f":"MID(CELL(\"filename\",Windows!$A$1),FIND(\"]\",CELL(\"filename\",Windows!$A$1))+1,255)","v":"Windows"}]
[null,null,null,null,null,null,null,"Pipe and Valve Insulation",{"$f":"'Pipe Ins'!D15","v":0},"Advanced Thermostat",{"$f":"MID(CELL(\"filename\",'Advanced Thermostat'!$A$3),FIND(\"]\",CELL(\"filename\",'Advanced Thermostat'!$A$3))+1,255)","v":"Advanced Thermostat"},null,"Manufacturing & Process"]
[null,null,null,null,null,null,null,"Advanced Thermostat",{"$f":"'Advanced Thermostat'!C10","v":0},"Steam Trap Repairs",{"$f":"MID(CELL(\"filename\",'Steam Traps'!$A$1),FIND(\"]\",CELL(\"filename\",'Steam Traps'!$A$1))+1,255)","v":"Steam Traps"},null,"Air Compressor & Dryer",{"$f":"MID(CELL(\"filename\",'Air Compressor & Dryer'!$A$1),FIND(\"]\",CELL(\"filename\",'Air Compressor & Dryer'!$A$1))+1,255)","v":"Air Compressor & Dryer"}]
[null,null,null,null,null,null,null,"Steam Traps",{"$f":"'Steam Traps'!C8","v":0},"Custom Measures",null,null,"Air Compressor Heat Recovery",{"$f":"MID(CELL(\"filename\",'Air Compressor Heat Recovery'!$A$1),FIND(\"]\",CELL(\"filename\",'Air Compressor Heat Recovery'!$A$1))+1,255)","v":"Air Compressor Heat Recovery"}]
[null,null,null,null,null,null,null,"Energy Management System",{"$f":"EMS!C15","v":0},"Energy Management System",{"$f":"MID(CELL(\"filename\",EMS!$A$1),FIND(\"]\",CELL(\"filename\",EMS!$A$1))+1,255)","v":"EMS"},null,"Compressed Air Leak Survey",{"$f":"MID(CELL(\"filename\",'Compressed Air Leak Survey'!$A$1),FIND(\"]\",CELL(\"filename\",'Compressed Air Leak Survey'!$A$1))+1,255)","v":"Compressed Air Leak Survey"}]
[null,null,null,null,null,null,null,"Miscellaneous / Custom",{"$f":"Custom!C8","v":0},"Miscellaneous/ Custom",{"$f":"MID(CELL(\"filename\",Custom!$A$1),FIND(\"]\",CELL(\"filename\",Custom!$A$1))+1,255)","v":"Custom"},null,"Plastic Injection Molding Machines (PIMM)",{"$f":"MID(CELL(\"filename\",PIMMS!$A$1),FIND(\"]\",CELL(\"filename\",PIMMS!$A$1))+1,255)","v":"PIMMS"}]
[null,null,null,null,null,null,null,"Refrigeration Equipment",{"$f":"'Refrig. Equip'!C12","v":0},null,null,null,"Commerical Clothes Washers",{"$f":"MID(CELL(\"filename\",Washers!$A$3),FIND(\"]\",CELL(\"filename\",Washers!$A$3))+1,255)","v":"Washers"}]
[null,null,null,null,null,null,null,"Refrigerator Door",{"$f":"'Refrigerator Door'!C8","v":0}]
[null,null,null,null,null,null,null,"Commercial Kitchen Equipment",{"$f":"'Commercial Kitchen Equipment'!C9","v":0}]
[null,null,null,null,null,null,null,"Kitchen Hoods",{"$f":"'Kitchen Hoods'!C6:D6","v":0},0]
[null,null,null,null,null,null,null,"Insulation",{"$f":"Insulation!J7","v":0}]
[null,null,null,null,null,null,null,"Windows",{"$f":"Windows!E9","v":0}]
[null,null,null,null,null,null,null,"Air Compressor & Dryer",{"$f":"'Air Compressor & Dryer'!C14","v":0}]
[null,null,null,null,null,null,null,"Air Compressor Heat Recovery",{"$f":"'Air Compressor Heat Recovery'!B29","v":0}]
[null,null,null,null,null,null,null,"Compressed Air Leak Survey",{"$f":"'Compressed Air Leak Survey'!B36","v":0}]
[null,null,null,null,null,null,null,"PIMMS",{"$f":"PIMMS!E18","v":0}]
[null,null,null,null,null,null,null,"Washers",{"$f":"Washers!C15","v":0}]
[null,null,null,null,null,null,null,"TOTAL PROJECT COST:",{"$f":"SUM(I12:I39)","v":0}]

{"sheet":"Commerical Cloths Washers","index":4,"n_rows":22,"n_cols":22,"rows_kept":22,"cut":false,"hidden":true,"merged":[[0,2,0,6]]}
[null,"Project Name:","Commerical Cloths Washers",null,null,null,null,"PSD 2.6.4",null,2022]
[null,"Project No:"]
[]
[null,null,"Clothes Washers",null,null,null,null,null,null,null,null,null,null,null,null,null,null,null,null,null,null,"Drop-down Inputs"]
[null,null,null,null,null,null,null,null,null,null,null,null,null,null,null,null,null,null,null,null,null,"Top Load Washer"]
[null,null,null,null,null,null,null,null,null,null,null,null,null,null,null,null,null,null,null,null,null,"Front Load Washer"]
[null,null,null,null,null,null,null,null,null,null,null,null,null,null,null,null,null,null,null,null,null,"Top Load Dryer"]
[null,"Facility Type:",null,null,null,null,null,null,null,null,null,null,null,"Front Load Washer",null,null,null,null,null,null,null,"Front Load Dryer"]
[null,"Washer Load Type","Front Load Washer",null,null,null,null,null,null,null,null,null,null,"Top Load Washer","dryer code"]
[null,"Dryer Type","Electric Dryer",null,null,null,null,null,null,null,null,null,null,"No Dryer",{"$f":"IF(N10=$C$10,0,1)","v":1}]
[null,"Dryer Load Type","Top Load Dryer","If all not the same, pick based on the largest number or most used.",null,null,null,null,null,null,null,null,null,"Electric Dryer",{"$f":"IF(N11=$C$10,1,0)","v":1}]
[null,"DHW type","Propane DHW",null,null,null,null,null,null,null,null,null,null,"Gas Dryer",{"$f":"IF(N12=$C$10,1,0)","v":0}]
[null,null,null,null,null,null,null,null,null,null,null,null,null,"Front Load Dryer"]
[null,"Inputs",null,null,null,null,null,null,null,null,null,null,null,"Top Load Dryer"]
[null,"Symbol","Description","Units","Electric Washer"]
[null,"Top Load Washer/Dryer",null," -- ",{"$f":"+C9","v":"Front Load Washer"},null,null,null,null,null,null,null,null,"Electric DHW","Gas DHW","Propane DHW","Oil DHW"]
[null,"N","# units","#",12]
[null,"MEFi","Modified Energy Factor, installed","ft3/kWh/cycle",2.2000000000000002]
[null,"LDS","avg # load/wk","Loads/wk",40]
[null,"WK","avg # weeks/yr","wk/yr",52]
[null,"WkWhes","washer kWh/load Estar","kWh/load",8.5000000000000006E-2]
[null,"WBTUb","washer BTU/load Estar","BTU/load"," -- "]

{"sheet":"Lighting","index":5,"n_rows":1300,"n_cols":26,"rows_kept":1300,"cut":false,"hidden":true,"merged":[[1008,1,1008,7],[2,9,2,15],[3,9,3,15],[4,1,4,4],[3,1,3,4],[3,5,3,8],[4,5,4,8],[5,2,5,3]]}
[null,"L I G H T I N G"]
[{"$f":"ROW(#REF!)","v":{"$error":"#REF!"}},"h",null,null,null,"h",null,null,null,null,null,"h"]
[null,null,null,null,null,null,null,null,null,"Note:-"]
[null,"Participant must obtain conditional approval from the Utilities prior to the purchase or installation of any energy efficiency measures to be eligible to receive efficiency incentives. \n\nThe following are required for ALL measures:  \n        (1) Proposal to customer\n        (2) ALL specification sheets and supporting documents.\n        (3) Data fields (in yellow) on applicable tabs MUST BE FILLED IN"]
[null,"Instructions:\n\n\n\n\n\n\n\n\n\n\n\n"]
[null,"Total Project Cost"]
[null,"Select any cell to make edits above.",null,null,null,null,"Mouse over below column titles for more Info"]
[]
[null,"Area Description","Unit Qty. Before","Description Before","Watts/ Unit Before","Annual Hours Before (limited by facility type)","Incandescent A-lamp on Non-Dimming \nCircuit \n(Y or N)","Item Type ","Lighting Group Type**","Unit Qty. After","Proposed Fixture - Manufacturer","Proposed Fixture - Model Number\n(must match approved list)","DLC Product ID or Energy Star","Watts/ Unit After","Dimmable Fixture or Lamp?\n","\"NEW\" Occupancy Sensor Controlled?","Occupancy Sensor Dim Level (%)\n(If Applicable)","Daylight Controls \nUsed?\n(If Applicable)","High End \nTrim %\n(0.xx)","Installed Cost/ Fixture"]
[]
[]
[]
[]
[]
[]
[]
[]
[]
[]
[]
[]
[]
[]
[]
[]
[]
[]
[]
[]
[]
[]
[]
[]
[]
[]
[]
[]
[]
[]
[]
[]
[]
[]
[]
[]
[]
[]
[]
[]
[]
[]
[]
[]
[]
[]
[]
[]
[]
[]
[]
[]
[]
[]
[]
[]
[]
[]
[]
[]
[]
[]
[]
[]
[]
[]
[]
[]
[]
[]
[]
[]
[]
[]
[]
[]
[]
[]
[]
[]
[]
[]
[]
[]
[]
[]
[]
[]
[]
[]
[]
[]
[]
[]
[]
[]
[]
[]
[]
[]
[]
[]
[]
[]
[]
[]
[]
[]
[]
[]
[]
[]
[]
[]
[]
[]
[]
[]
[]
[]
[]
[]
[]
[]
[]
[]
[]
[]
[]
[]
[]
[]
[]
[]
[]
[]
[]
[]
[]
[]
[]
[]
[]
[]
[]
[]
[]
[]
[]
[]
[]
[]
[]
[]
[]
[]
[]
[]
[]
[]
[]
[]
[]
[]
[]
[]
[]
[]
[]
[]
[]
[]
[]
[]
[]
[]
[]
[]
[]
[]
[]
[]
[]
[]
[]
[]
[]
[]
[]
[]
[]
[]
[]
[]
[]
[]
[]
[]
[]
[]
[]
[]
[]
[]
[]
[]
[]
[]
[]
[]
[]
[]
[]
[]
[]
[]
[]
[]
[]
[]
[]
[]
[]
[]
[]
[]
[]
[]
[]
[]
[]
[]
[]
[]
[]
[]
[]
[]
[]
[]
[]
[]
[]
[]
[]
[]
[]
[]
[]
[]
[]
[]
[]
[]
[]
[]
[]
[]
[]
[]
[]
[]
[]
[]
[]
[]
[]
[]
[]
[]
[]
[]
[]
[]
[]
[]
[]
[]
[]
[]
[]
[]
[]
[]
[]
[]
[]
[]
[]
[]
[]
[]
[]
[]
[]
[]
[]
[]
[]
[]
[]
[]
[]
[]
[]
[]
[]
[]
[]
[]
[]
[]
[]
[]
[]
[]
[]
[]
[]
[]
[]
[]
[]
[]
[]
[]
[]
[]
[]
[]
[]
[]
[]
[]
[]
[]
[]
[]
[]
[]
[]
[]
[]
[]
[]
[]
[]
[]
[]
[]
[]
[]
[]
[]
[]
[]
[]
[]
[]
[]
[]
[]
[]
[]
[]
[]
[]
[]
[]
[]
[]
[]
[]
[]
[]
[]
[]
[]
[]
[]
[]
[]
[]
[]
[]
[]
[]
[]
[]
[]
[]
[]
[]
[]
[]
[]
[]
[]
[]
[]
[]
[]
[]
[]
[]
[]
[]
[]
[]
[]
[]
[]
[]
[]
[]
[]
[]
[]
[]
[]
[]
[]
[]
[]
[]
[]
[]
[]
[]
[]
[]
[]
[]
[]
[]
[]
[]
[]
[]
[]
[]
[]
[]
[]
[]
[]
[]
[]
[]
[]
[]
[]
[]
[]
[]
[]
[]
[]
[]
[]
[]
[]
[]
[]
[]
[]
[]
[]
[]
[]
[]
[]
[]
[]
[]
[]
[]
[]
[]
[]
[]
[]
[]
[]
[]
[]
[]
[]
[]
[]
[]
[]
[]
[]
[]
[]
[]
[]
[]
[]
[]
[]
[]
[]
[]
[]
[]
[]
[]
[]
[]
[]
[]
[]
[]
[]
[]
[]
[]
[]
[]
[]
[]
[]
[]
[]
[]
[]
[]
[]
[]
[]
[]
[]
[]
[]
[]
[]
[]
[]
[]
[]
[]
[]
[]
[]
[]
[]
[]
[]
[]
[]
[]
[]
[]
[]
[]
[]
[]
[]
[]
[]
[]
[]
[]
[]
[]
[]
[]
[]
[]
[]
[]
[]
[]
[]
[]
[]
[]
[]
[]
[]
[]
[]
[]
[]
[]
[]
[]
[]
[]
[]
[]
[]
[]
[]
[]
[]
[]
[]
[]
[]
[]
[]
[]
[]
[]
[]
[]
[]
[]
[]
[]
[]
[]
[]
[]
[]
[]
[]
[]
[]
[]
[]
[]
[]
[]
[]
[]
[]
[]
[]
[]
[]
[]
[]
[]
[]
[]
[]
[]
[]
[]
[]
[]
[]
[]
[]
[]
[]
[]
[]
[]
[]
[]
[]
[]
[]
[]
[]
[]
[]
[]
[]
[]
[]
[]
[]
[]
[]
[]
[]
[]
[]
[]
[]
[]
[]
[]
[]
[]
[]
[]
[]
[]
[]
[]
[]
[]
[]
[]
[]
[]
[]
[]
[]
[]
[]
[]
[]
[]
[]
[]
[]
[]
[]
[]
[]
[]
[]
[]
[]
[]
[]
[]
[]
[]
[]
[]
[]
[]
[]
[]
[]
[]
[]
[]
[]
[]
[]
[]
[]
[]
[]
[]
[]
[]
[]
[]
[]
[]
[]
[]
[]
[]
[]
[]
[]
[]
[]
[]
[]
[]
[]
[]
[]
[]
[]
[]
[]
[]
[]
[]
[]
[]
[]
[]
[]
[]
[]
[]
[]
[]
[]
[]
[]
[]
[]
[]
[]
[]
[]
[]
[]
[]
[]
[]
[]
[]
[]
[]
[]
[]
[]
[]
[]
[]
[]
[]
[]
[]
[]
[]
[]
[]
[]
[]
[]
[]
[]
[]
[]
[]
[]
[]
[]
[]
[]
[]
[]
[]
[]
[]
[]
[]
[]
[]
[]
[]
[]
[]
[]
[]
[]
[]
[]
[]
[]
[]
[]
[]
[]
[]
[]
[]
[]
[]
[]
[]
[]
[]
[]
[]
[]
[]
[]
[]
[]
[]
[]
[]
[]
[]
[]
[]
[]
[]
[]
[]
[]
[]
[]
[]
[]
[]
[]
[]
[]
[]
[]
[]
[]
[]
[]
[]
[]
[]
[]
[]
[]
[]
[]
[]
[]
[]
[]
[]
[]
[]
[]
[]
[]
[]
[]
[]
[]
[]
[]
[]
[]
[]
[]
[]
[]
[]
[]
[]
[]
[]
[]
[]
[]
[]
[]
[]
[]
[]
[]
[]
[]
[]
[]
[]
[]
[]
[]
[]
[]
[]
[]
[]
[]
[]
[]
[]
[]
[]
[]
[]
[]
[]
[]
[]
[]
[]
[]
[]
[]
[]
[]
[]
[]
[]
[]
[]
[]
[]
[]
[]
[]
[]
[]
[]
[]
[]
[]
[]
[]
[]
[]
[]
[]
[]
[]
[]
[]
[]
[]
[]
[]
[]
[]
[]
[]
[]
[]
[]
[]
[]
[null,null,null,null,null,null,null,null,null,null,null,null,null,null,null,null,null,null,null,null,null,null,null,"","",""]
[]
[]
[]
[]
[]
[]
[]
[]
[]
[]
[]
[]
[]
[]
[]
[]
[]
[]
[]
[]
[]
[]
[]
[]
[]
[]
[]
[]
[]
[]
[]
[]
[]
[]
[]
[]
[]
[]
[]
[]
[]
[]
[]
[]
[]
[]
[]
[]
[]
[]
[]
[]
[]
[]
[]
[]
[]
[]
[]
[]
[]
[]
[]
[]
[]
[]
[]
[]
[]
[]
[]
[]
[]
[]
[]
[]
[]
[]
[]
[]
[]
[]
[]
[]
[]
[]
[]
[]
[]
[]
[]
[]
[]
[]
[]
[]
[]
[]
[]
[]
[]
[]
[]
[]
[]
[]
[]
[]
[]
[]
[]
[]
[]
[]
[]
[]
[]
[]
[]
[]
[]
[]
[]
[]
[]
[]
[]
[]
[]
[]
[]
[]
[]
[]
[]
[]
[]
[]
[]
[]
[]
[]
[]
[]
[]
[]
[]
[]
[]
[]
[]
[]
[]
[]
[]
[]
[]
[]
[]
[]
[]
[]
[]
[]
[]
[]
[]
[]
[]
[]
[]
[]
[]
[]
[]
[]
[]
[]
[]
[]
[]
[]
[]
[]
[]
[]
[]
[]
[]
[]
[]
[]
[]
[]
[]
[]
[]
[]
[]
[]
[]
[]
[]
[]
[]
[]
[]
[]
[]
[]
[]
[]
[]
[]
[]
[]
[]
[]
[]
[]
[]
[]
[]
[]
[]
[]
[]
[]
[]
[]
[]
[]
[]
[]
[]
[]
[]
[]
[]
[]
[]
[]
[]
[]
[]
[]
[]
[]
[]
[]
[]
[]
[]
[]
[]
[]
[]
[]
[]
[]
[]
[]
[]
[]
[]
[]
[]
[]
[]
[]
[]
[]
[]
[]
[]
[]
[]
[]
[]
[]
[]
[null,null,null,null,null,null,"New Fixtures"]
[null,null,null,null,null,null,"New Fixtures w/ LLLC or NLC"]
[null,null,null,null,null,null,"TLED Type A & B (Non-Eligible)"]
[null,null,null,null,null,null,"TLED Type C"]
[null,null,null,null,null,null,"Screw-In LED"]
[null,null,null,null,null,null,"Controls Only"]
[null,null,null,null,null,null,"Misc. Costs"]
[null,null,null,null,null,null,"Non-Eligible"]
[null,null,null,null,null,null,"Refrigerator"]
[null,null,null,null,null,null,"Freezer"]

{"sheet":"Unitary & Split DX","index":6,"n_rows":41,"n_cols":18,"rows_kept":41,"cut":false,"hidden":true,"merged":[[41,1,52,8],[40,1,40,8],[30,1,30,3],[31,1,31,3],[31,4,32,4],[31,5,32,5],[35,2,35,3],[36,2,36,3],[9,9,9,17],[3,1,3,7],[4,1,4,7],[6,1,6,16],[34,2,34,3],[9,2,9,8],[32,2,32,3],[33,2,33,3],[30,4,30,5],[30,6,30,7],[31,6,32,6],[31,7,32,7],[7,2,7,3]]}
[null,"U N I T A R Y   &   S P L I T   D X   H V A C   S Y S T E M S"]
[{"$f":"ROW(B13)","v":13},"h",null,null,null,"h",null,null,null,null,null,"h",null,null,null,"h"]
[]
[null,"Participant must obtain conditional approval from the Utilities prior to the purchase or installation of any energy efficiency measures to be eligible to receive efficiency incentives. \n\nThe following are required for ALL measures:  \n        (1) Proposal to customer\n        (2) Equipment submittals / specification sheets.\n        (3) AHRI sheets for proposed equipment.\n        (4) Data fields (in yellow) on applicable tabs MUST BE FILLED IN"]
[null,"Instructions:\nPopulate the table below: "]
[]
[null,"* Full system rating is required on split HVAC equipment.  No incentives for the replacement of one part of the system, ex. - condensing unit.  \n* Provide equipment submittal showing options selected and installed cost of the equipment."]
[null,"Total Project Cost"]
[null,"Edits to the selected row in the table below are made in this section."]
[null,null,"Existing Equipment",null,null,null,null,null,null,"Proposed Unitary & Split DX HVAC Equipment"]
[null,"Unit ID","Existing Unitary\nor\nSplit","Existing Qty","Existing Manufacturer","Existing Condenser\n Model #","Existing Evaporator \nModel # (if applicable)","Existing SEER or EER Rating ","Existing Serial Number","Installed Quantity","Age of Existing Equipment (Years)","Early Retirement / Dual Baseline Eligible?","Equipment Description Make/Model Number","AHRI Cooling Capacity (Btu/h)","Equipment Type if <65,000 Btu/hr","Installed EER","Installed IEER (Use SEER2 under 65,000 Btu/h)","AHRI Certified Reference Number ***"]
[null,"ex., RTU-1",null,1,"XYZ COMPANY","XYZ-C12-3456","XYZ-E67-8910",12,null,1,15,"No","XYZ-C12-3456",55000,"Split System",12,15,1234567]
[]
[]
[]
[]
[]
[]
[]
[]
[]
[]
[]
[]
[]
[]
[]
[]
[]
[]
[null,null,null,null,"Tier 1",null,"Tier 2"]
[null,"Size",null,null,"Minimum Qualifying EER/IEER"," Tier 1 Rebate","Minimum Qualifying EER/IEER","Tier 2 Rebate"]
[null,"Nominal Tons","MBTU/Hr"]
[null," < 5.4 (packaged unit \nequipment only)","< 65 (packaged unit \nequipment only)",null," 15.2 SEER2, 11.5 EER2",50,"16.0 SEER2, 12.0 EER2",150]
[null,"≥ 5.4 to < 11.3"," ≥ 65 to < 135",null,"12.2 EER, 16.3 IEER",50,"12.7 EER 18 IEER",150]
[null," ≥ 11.3 to < 20"," ≥ 135 to < 240",null," 12.2 EER, 15.6 IEER",50,"12.2 EER, 17 IEER",150]
[null,"≥ 20 to ≤ 63.33","≥ 240 to ≤ 375",null,"10.8 EER, 14.5 IEER",50,"10.8 EER, 15.8 IEER",150]
[]
[]
[]
[null,"Note:-"]

{"sheet":"Heat Pumps - Air","index":7,"n_rows":53,"n_cols":27,"rows_kept":53,"cut":false,"hidden":true,"merged":[[6,41,6,42],[48,29,48,30],[6,30,6,31],[38,1,38,2],[38,3,39,3],[38,4,38,5],[38,6,38,7],[39,5,39,6],[40,1,41,1],[40,2,41,2],[40,5,40,6],[48,1,48,4],[40,7,44,7],[41,5,41,6],[42,5,42,6],[5,1,5,8],[9,2,9,12],[3,1,3,17],[53,1,64,8],[52,1,52,8],[7,2,7,3],[49,1,50,7],[43,5,43,6],[44,5,44,6],[9,13,9,26]]}
[null,"A I R   S O U R C E   H E A T   P U M P S   ( E X C L U D I N G   V R F / V R V )"]
[{"$f":"ROW(B17)","v":17},"h",null,null,null,null,"h",null,null,null,null,null,null,"h",null,null,null,null,null,null,null,"h"]
[null,null,null,null,null,null,null,null,null,null,null,null,null,null,null,null,null,null,null,"*** An AHRI rating sheet is required for each proposed unit, and must be submitted with this form"]
[null,"Participant must obtain conditional approval from the Utilities prior to the purchase or installation of any energy efficiency measures to be eligible to receive efficiency incentives. Equipment must be installed by a contractor participating in the Energize Connecticut Heat Pump Installer Network in the service territory of the Participating Utility and must replace oil, propane, natural gas, or electric resistance as the primary heating system providing heating for a majority of the season season. If an existing oil, propane, or natural gas system will be left in place, customer must either install an integrated control listed on the EnergizeCT QPL (https://energizect.force.com/midstream/file-asset/MiniSplit_Air_Source_Heat_Pump_QPL ) or must certify that an existing BMS is capable of operating both the heat pump and existing heating system. Documentation of control sequence is required. For electric resistance backup heat, a temperature set point differential should be 2 degrees or greater.\nThe following are required for ALL measures:  \n        (1) Proposal to customer must include Equipment Manufacturer & Model Numbers as well as Integrated Control Manufacturer & Model Numbers (if pre-existing heating system will not be fully removed/disconnected). The integrated control must be on the EnergizeCT QPL.\n        (2) Proposal must clearly state if the pre-existing system will be fully removed, disconnected, or left in place.\n        (3) ALL specification sheets and supporting documents showing options selected and installed cost of the equipment.\n        (4) Data fields (in yellow) on applicable tabs MUST BE FILLED IN\n        (5) AHRI rating sheet (example on right) is required for each proposed unit, and must be submitted with this form\n\nNOTE: New construction and major renovation projects do not qualify."]
[null,"Download the EnergizeCT QPL"]
[null,"Instructions:\nPopulate the table below"]
[null,"Edits to the selected table rows below are made in this section."]
[null,"Total Project Cost"]
[null,"In the table that follows, select any cell in the row and then make edits to the existing and proposed equipment using yellow cells above."]
[null,null,"Existing Equipment",null,null,null,null,null,null,null,null,null,null,"Air Source Heat Pumps (non VRV) Units Proposed"]
[null,"Unit ID","Existing Equipment Qty","Existing Equipment / System","Existing Equipment Input Capacity (Btu/h)","Year of Manufacturer","Existing Manufacturer","Existing Model Number","Existing AFUE (%)","Existing Thermal Efficiency (%)","Existing Combustion Efficiency (%)","Fully Replacing Heating System","What Fuel Type is being displaced ?","Proposed Equipment Qty","Age of Existing Equipment (Years)","Early Retirement / Dual Baseline Eligible?","Proposed Equipment Full Model number","Proposed AHRI Cooling Capacity (Btu/h)","Proposed AHRI Heating Capacity at 47°F (Btu/h)","Proposed AHRI Heating Capacity at 17°F (Btu/hr)","Proposed Equipment Type if Cooling Capacity <65,000 Btu/hr","Proposed Installed EER (Use SEER2 under 65,000 btu/h)","Installed IEER (over 65,000 btu/h only)","Proposed Installed COP (Use HSPF2  under 65,000 btu/h) "," Fuel Optimization:\nHeat Pump Displacing Fossil Fuel or Elec Resistance Heat?"," Fuel Optimization:\nBase Heating Fuel Being Displaced","Integrated Control Model #"]
[null,"example:: ASHP-1",1,"Boiler","MODEL XYZ123",2000,67,12,70,80,81,"No","Natural Gas",1,12,"Yes","MODEL XYZ123",36000,12000,10000,"Ductless Single Zone",13.5,null,18,"Partial","Electric Resistance","QUAL"]
[]
[]
[]
[]
[]
[]
[]
[]
[]
[]
[]
[]
[]
[]
[]
[]
[]
[]
[]
[]
[]
[]
[]
[null," ",null,null,null,null," ",null," "]
[]
[]
[null,"Size",null,"Type","Minimum Ratings (based on AHRI)",null,"Incentive "]
[null,"Nominal Tons","MBTU/Hr",null,"SEER/EER","COP/HSPF",null,"($/Heating Ton)"]
[null,"< 5.4","< 65","Split System","16.4 SEER2","8.6 HSPF2",null,"$640 capped at \nEversource: $400,000 \nAvangrid: $200,000"]
[null,null,null,"Single Pkg","15.2 SEER2","8.1 HSPF2"]
[null,"≥ 5.4 to < 11.3","≥ 65 to < 135","All","11.8 EER, 15.4 IEER","3.5 COP"]
[null,"≥ 11.3 to < 20","≥135 to <240","All","10.9 EER, 14.6 IEER","3.4 COP"]
[null,"≥ 20 to ≤ 30","≥ 240 to ≤ 375 ","All","10.3 EER, 13 IEER","3.3 COP"]
[]
[]
[]
[]
[]
[]
[]
[null,"Note:-"]

{"sheet":"Heat Pumps - Water","index":8,"n_rows":42,"n_cols":26,"rows_kept":42,"cut":false,"hidden":true,"merged":[[5,41,5,42],[7,2,7,3],[10,25,11,25],[10,24,11,24],[32,1,32,6],[33,1,33,6],[34,1,34,3],[34,4,34,6],[10,20,10,23],[10,15,11,15],[10,14,11,14],[10,13,11,13],[10,12,11,12],[10,11,11,11],[10,10,11,10],[10,5,11,5],[10,4,11,4],[10,3,11,3],[10,2,11,2],[10,1,11,1],[42,1,47,8],[41,1,41,8],[3,1,3,15],[5,1,5,17],[6,12,7,19],[9,13,9,25],[9,2,9,12],[35,1,35,2],[36,1,36,2],[36,6,38,6],[37,1,37,2],[38,1,38,2],[10,9,11,9],[10,8,11,8],[10,7,11,7],[10,6,11,6]]}
[null,"W A T E R   S O U R C E   H E A T   P U M P S   ( W S H P )"]
[{"$f":"ROW(B16)","v":16},"h",null,null,null,null,"h",null,null,null,null,null,null,"h",null,null,null,null,"h"]
[]
[null,"Participant must obtain conditional approval from the Utilities prior to the purchase or installation of any energy efficiency measures to be eligible to receive efficiency incentives. Equipment must be installed by a contractor participating in the Energize Connecticut Heat Pump Installer Network in the service territory of the Participating Utility and must replace oil, propane, natural gas, or electric resistance as the primary heating system providing heating for a majority of the season season. If an existing oil, propane, or natural gas system will be left in place, customer must either install an integrated control listed on the EnergizeCT QPL (https://energizect.force.com/midstream/file-asset/MiniSplit_Air_Source_Heat_Pump_QPL) or must certify that an existing EMS is capable of operating both the heat pump and existing heating system. Documentation of control sequence is required. For electric resistance backup heat, a temperature set point differential should be 2 degrees or greater.\nThe following are required for ALL measures:  \n        (1) Proposal to customer must include Equipment Manufacturer & Model Numbers as well as Integrated Control Manufacturer & Model Numbers (if pre-existing heating system will not be fully removed/disconnected). The integrated control must be on the EnergizeCT QPL (use the link below to download the QPL). \n        (2) Proposal must clearly state if the pre-existing system will be fully removed, disconnected, or left in place.\n        (3) ALL specification sheets and supporting documents showing options selected and installed cost of the equipment.\n        (4) Data fields (in yellow) on applicable tabs MUST BE FILLED IN\n        (5) AHRI rating sheet (example on right) is required for each proposed unit, and must be submitted with this form\n\nNOTE: New construction and major renovation projects do not qualify."]
[null,"Download the EnergizeCT QPL"]
[null,"Instructions:\nPopulate the table below"]
[]
[null,"Total Project Cost"]
[null,"In the table that follows, select any cell in the row and then make edits to the existing and proposed equipment."]
[null,null,"Existing Equipment",null,null,null,null,null,null,null,null,null,null,"Proposed  High Efficiency Water Source Heat Pumps Units"]
[null,"Unit ID","Existing Equipment Qty","Existing Equipment / System","Existing Equipment Input Capacity (Btu/h)","Year of Equipment Manufacturer","Existing Manufacturer","Existing Model Number","Existing AFUE (%)","Existing Thermal Efficiency (%)","Existing Combustion Efficiency (%)","Fully replacing pre-existing heating System ?","What Fuel Type is being displaced ?","Proposed Qty","Proposed Manufacturer/Outdoor Unit Model #","Proposed Installed Category or Type","AHRI Values for Ground Loop (Closed Loop)\n(*Program eligibility is based on this value.)",null,null,null,"AHRI Values for Installed Equipment Type",null,null,null,"Fuel Optimization:\nHeat Pump Displacing Fossil Fuel Heat?"," Fuel Optimization:\nBase Heating Fuel Being Displaced"]
[null,null,null,null,null,null,null,null,null,null,null,null,null,null,null,null,"Proposed  AHRI Ground Loop- Closed Loop Btu/h Cooling Capacity","Proposed AHRI Ground Loop- Closed Loop Btu/h Heating Capacity","Proposed AHRI Ground Loop- Closed Loop Installed EER","Proposed AHRI Ground Loop- Closed Loop Installed COP","Btu/h Cooling Capacity","Btu/h Heating Capacity","Cooling EER","Heating COP"]
[null,"example:      WSHP-1",2,"Boiler","XYZ COMPANY",null,null,null,null,null,null,"Yes","Oil",2,"BB(L/R/B/P/F/C/G/H)120A*(6/F","Water-to-Air: Ground Loop (Closed Loop",125000,98500,14.8,3.5,124000,156000,13.9,4.7,"Full","Fossil Fuel"]
[]
[]
[]
[]
[]
[]
[]
[]
[]
[]
[]
[]
[]
[]
[]
[null," ",null,null,null,null,null,null,null,null,null,null,null,null,null,null," ",null," "]
[]
[]
[]
[null,"Incentives"]
[null,"Ground Source Heat Pump Equipment"]
[null,null,null,null,"Standard Efficiency"]
[null,"Type",null,"Nominal Tons","Minimum Qualifying EER (based on AHRI)","Minimum Qualifying COP (based on AHRI)"," Incentive ($/Heating Ton)"]
[null,"Brine to Air Heat Pump \nEquipment",null,"< 11.3",17.100000000000001,3.6,"$4,000 capped at  \nEversource: $600,000 \nAvangrid: $400,000"]
[null,"Brine to Water Heat Pump \nEquipment\nEquipment",null,"<  5.4 ",16.100000000000001,3.1]
[null,"Brine to Water Heat Pump \nEquipment\nEquipment",null,"≥5.4 <11.3",16.100000000000001,3]
[]
[]
[null,"Note:"]

{"sheet":"VRF-VRV","index":9,"n_rows":38,"n_cols":29,"rows_kept":38,"cut":false,"hidden":true,"merged":[[38,1,49,9],[37,1,37,9],[29,1,29,6],[30,1,30,2],[31,1,31,2],[31,4,31,6],[32,1,32,2],[32,6,34,6],[33,1,33,2],[34,1,34,2],[5,2,5,3],[3,1,3,18],[4,1,4,19],[7,2,7,13],[7,14,7,28]]}
[null,"V R F   S Y S T E M S"]
[{"$f":"ROW(B11)","v":11},"h",null,null,null,null,null,"h",null,null,null,null,null,null,"h",null,null,null,"h",null,null,null,null,"h"]
[]
[null,"Participant must obtain conditional approval from the Utilities prior to the purchase or installation of any energy efficiency measures to be eligible to receive efficiency incentives. Equipment must be installed by a contractor participating in the Energize Connecticut Heat Pump Installer Network in the service territory of the Participating Utility and must replace oil, propane, natural gas, or electric resistance as the primary heating system providing heating for a majority of the season season. If an existing oil, propane, or natural gas system will be left in place, customer must either install an integrated control listed on the EnergizeCT QPL (https://energizect.force.com/midstream/file-asset/MiniSplit_Air_Source_Heat_Pump_QPL) or must certify that an existing EMS is capable of operating both the heat pump and existing heating system. Documentation of control sequence is required. For electric resistance backup heat, a temperature set point differential should be 2 degrees or greater.\nThe following are required for ALL measures:  \n        (1) Proposal to customer must include Equipment Manufacturer & Model Numbers as well as Integrated Control Manufacturer & Model Numbers (if pre-existing heating system will not be fully removed/disconnected). The integrated control must be on the EnergizeCT QPL.\n        (2) Proposal must clearly state if the pre-existing system will be fully removed, disconnected, or left in place.\n        (3) ALL specification sheets and supporting documents showing options selected and installed cost of the equipment.\n        (4) Data fields (in yellow) on applicable tabs MUST BE FILLED IN\n        (5) AHRI rating sheet (example on right) is required for each proposed unit, and must be submitted with this form\n\nNOTE: New construction and major renovation projects do not qualify."]
[null,"Instructions:\nTo populate table rows use green buttons that follow: "]
[null,"Total Project Cost"]
[null,"In the table that follows, select any cell in the row and then make edits to the existing and proposed equipment using yellow cells above."]
[null,null,"Existing Equipment",null,null,null,null,null,null,null,null,null,null,null,"Proposed VRF System Equipment"]
[null,"Unit ID","Existing Equipment Qty","Existing Equipment / System","Existing Equipment Input Capacity (Btu/h)","Year of Equipment Manufacturer","Existing Serial Number","Existing Manufacturer","Existing Model Number","Existing AFUE (%)","Existing Thermal Efficiency (%)","Existing Combustion Efficiency (%)","Fully replacing pre-existing heating System ?","What Fuel Type is being displaced ?","Unit ID","Outdoor Unit Quantity","Manufacturer/ Outdoor Unit Model #","Age of Existing Equipment (Years)","Early Retirement / Dual Baseline Eligible?","Indoor Unit Type","VRF Classification","Cooling Capacity* (Btu/hr)","Heating Capacity* (Btu/hr)","Cooling EER","Cooling IEER","Heating COP at 47°F","Heating COP at 17°F"," Fuel Optimization:\nHeat Pump Displacing Fossil Fuel Heat?"," Fuel Optimization:\nBase Heating Fuel Being Displaced"]
[null,"example: VRF-1",null,"Boiler",null,null,null,null,null,null,null,null,"Yes","Natural Gas","XYZ",1,"XYR-100056D",15,"No","Ducted","Cooling Only",10.5,10.5,13,null,null,null,"Full","Fossil Fuel"]
[]
[]
[]
[]
[]
[]
[]
[]
[]
[]
[]
[]
[]
[]
[]
[null," ",null,null,null,null,null,null,null,null,null,null,null,null,null,null,null,null,null,null," "]
[]
[]
[]
[null,"Incentives"]
[null,"Size (BTUs)",null,"Nominal Tons","Minimum Qualifying EER","Minimum Qualifying COP","Incentive $/Ton"]
[null," ≤65,000 ",null,"<5.4 - 11.3","AHRI rates VRF units this size and smaller as air source heat pumps. Those ratings and incentive values will apply to this program."]
[null," ≥65,000 to ≤135,000",null,"5.4 - 11.3","11.3 EER, 18.9 IEER ","3.4 at 47°F, 2.25 at 17°F","$1,000 capped at  \nEversource: $500,000 \nAvangrid: $300,000"]
[null,">135,000 to ≤240,000",null,"11.3 – 20","12.2 EER, 18 IEER","3.7 at 47°F, 2.9 at 17°F"]
[null,"≤240,000",null," >20","10.3 EER, 16.4 IEER","3.3 at 47°F, 2.2 at 17°F"]
[]
[]
[null,"Note:-"]

{"sheet":"Chillers","index":10,"n_rows":38,"n_cols":21,"rows_kept":38,"cut":false,"hidden":true,"merged":[[1,1,1,14],[38,1,49,7],[4,11,7,20],[20,1,20,20],[21,1,21,10],[21,11,21,20],[22,1,22,6],[22,11,22,16],[23,1,23,6],[23,11,23,16],[24,2,24,6],[24,12,24,16],[25,1,25,20],[26,1,26,10],[26,11,26,20],[27,1,27,6],[27,11,27,16],[28,1,28,6],[28,11,28,16],[32,1,32,3],[33,1,33,3],[33,11,33,13],[29,2,29,6],[29,12,29,16],[30,1,30,3],[30,11,30,13],[31,1,31,3]]}
[null,"C H I L L E R S"]
[null,"Participant must obtain conditional approval from the Utilities prior to the purchase or installation of any energy efficiency measures to be eligible to receive efficiency incentives. \n\nThe following are required for ALL measures:  \n        (1) Proposal to customer\n        (2) ALL specification sheets and supporting documents. Includes ALL manufacturer's rating sheets (tested at ARI IPLV conditions): \n               - Full load (EER or kw/ton)\n               - Part load (25%, 50%, 75%)\n        (3) Data fields (in yellow) on applicable tabs MUST BE FILLED IN"]
[]
[]
[null,"# of Chillers","Age of Existing Equipment (Years)","Early Retirement / Dual Baseline Eligible?"]
[]
[]
[null,"Total Project Cost"]
[null,"Occupied Cooling Load",null,"Units"]
[null,"Load at 100 deg OA Temp",null,"Tons"]
[null,"Load at Economizer OAT+",null,"Tons"]
[null,"Economizer OAT setpoint",null,"°F"]
[null,"Load at Economizer OAT -",null,"Tons"]
[null,"Load at 0 deg OA Temp",null,"Tons"]
[null,"Unoccupied Cooling Load",null,"Units"]
[null,"Load at 100 deg OA Temp",null,"Tons"]
[null,"Load at Economizer OAT+",null,"Tons"]
[null,"Economizer OAT setpoint",null,"°F"]
[null,"Load at Economizer OAT -",null,"Tons"]
[null,"Load at 0 deg OA Temp",null,"Tons"]
[null,"Base Plant"]
[null,"Base Lead Chiller",null,null,null,null,null,null,null,null,null,"Base Lag Chiller"]
[null,"Description:",null,null,null,null,null," Chiller Efficiencies",null,null,"Units","Description:",null,null,null,null,null," Chiller Efficiencies",null,null,"Units"]
[null,null,null,null,null,null,null,null,"Rated Tons@ ARI",null,"Tons",null,null,null,null,null,null,null,"Rated Tons@ ARI",null,"Tons"]
[null,"Chiller Type",null,null,null,null,null,null,"Air/Water cooled?",{"$f":"IF(INT(LEFT(C25,1))=2,\"A\",\"W\")","v":{"$error":"#VALUE!"}},null,"Chiller Type",null,null,null,null,null,null,"Air/Water cooled?",{"$f":"IF(INT(LEFT(M25,1))=2,\"A\",\"W\")","v":{"$error":"#VALUE!"}}]
[null,"High Effiency Chiller Plant"]
[null,"EE Lead Chiller",null,null,null,null,null,null,null,null,null,"EE Lag Chiller"]
[null,"Description:",null,null,null,null,null," Chiller Efficiencies",null,null,"Units","Description:",null,null,null,null,null," Chiller Efficiencies",null,null,"Units"]
[null,null,null,null,null,null,null,null,"Rated Tons@ ARI",{"$f":"+J24","v":0},"Tons",null,null,null,null,null,null,null,"Rated Tons@ ARI",{"$f":"+T24","v":0},"Tons"]
[null,"Chiller Type",{"$f":"+C25","v":0},null,null,null,null,null,"Air/Water cooled?",{"$f":"+J25","v":{"$error":"#VALUE!"}},null,"Chiller Type",{"$f":"+M25","v":0},null,null,null,null,null,"Air/Water cooled?",{"$f":"+T25","v":{"$error":"#VALUE!"}}]
[]
[null,null,null,null,null,null,null,null,"Eff @ 100% Load",null,null,null,null,null,null,null,null,null,"Eff @ 100% Load"]
[null,null,null,null,null,null,null,null,"Eff @   75% Load",null,null,null,null,null,null,null,null,null,"Eff @   75% Load"]
[null,null,null,null,null,null,null,null,"Eff @   50% Load",null,null,null,null,null,null,null,null,null,"Eff @   50% Load"]
[null,null,null,null,null,null,null,null,"Eff @   25% Load",null,null,null,null,null,null,null,null,null,"Eff @   25% Load"]
[]
[]
[null,"Provide any additional information relevant to this project. (if more than 4 chillers, note and provide info here)"]

{"sheet":"Gas Heating","index":11,"n_rows":71,"n_cols":20,"rows_kept":71,"cut":false,"hidden":true,"merged":[[6,2,6,3],[3,1,3,5],[4,5,4,8],[53,1,59,9],[67,2,67,3],[67,4,67,5],[62,1,62,6],[63,1,63,6],[64,2,64,3],[64,4,64,5],[65,1,66,1],[65,2,65,3],[65,4,65,5],[65,6,66,6],[66,2,66,3],[66,4,66,5],[69,6,70,6],[70,2,70,3],[68,2,68,3],[68,4,68,5],[69,1,70,1],[69,2,69,3],[69,4,70,5]]}
[null,"N A T U R A L   G A S   H E A T I N G   E Q U I P M E N T"]
[19,"h",null,null,null,null,"h"]
[null,"Proposed:"]
[null,"Participant must obtain conditional approval from the Utilities prior to the purchase or installation of any energy efficiency measures to be eligible to receive efficiency incentives. \n\nThe following are required for ALL measures:  \n        (1) Proposal to customer\n        (2) ALL specification sheets and supporting documents including AHRI rating sheet\n        (3) Data fields (in yellow) on applicable tabs MUST BE FILLED IN\n"]
[null,"Edits to the selected table rows below for proposed equipmnt are made in this section.",null,null,null,"Propane and oil boilers are not eligible for incentives."]
[]
[null,"Total Project Cost"]
[null,"Proposed AHRI Certified Reference Number***",null,null,null,null,"*** An AHRI rating sheet is required for each proposed unit, and must be submitted with this form",null,null,null,null,null,null,null,null,null,"AHRI rating certification: ","www.ahridirectory.org"]
[]
[null,"Existing:"]
[]
[null,"Edits to the selected row in the table below for existing eqipment are made in this section."]
[null,"In the table that follows, select any cell in the row & then make edits to the existing and proposed equipment above."]
[null,"EXISTING\nEquipment /System\n(if any)","Existing Fuel Type","Existing Total Qty","Existing Back Up Qty  \n(out of total)","Existing Manufacturer","Existing Model number","Existing Equipment Serial Number","Existing Gas Input Capacity\n(MBH)","Existing Equipment Input Capacity (Btu/h)\n(out of total)","Existing AFUE (%)","Existing Thermal Efficiency (%)","Existing Combustion Efficiency (%)\n(MBH)","Year of Equipment Manufacturer"]
[null,"Forced Air Furnace","Natural Gas",null,1,"Sample Mfg",5456,null,300,1,0.8,0.8,0.8,1975]
[]
[]
[]
[]
[]
[]
[]
[]
[]
[]
[]
[]
[]
[]
[]
[]
[]
[null,"Unit ID","Proposed Equipment","Proposed Total Qty","Proposed Back Up Qty \n(out of total)","Proposed Manufacturer","Proposed Model number","Proposed Boiler Type / Furnace Vent Configuration","Proposed Gas Input Capacity\n(MBH)","Proposed Rated Efficiency \nAFUE or Thermal Efficiency\n(AHRI)","Proposed AHRI Certified Reference Number","Proposed Proposed Fuel Type"]
[null,"B-01","Boiler - Condensing",null,1,"YoureInHotWater","HW","Hot Water = 300 & = 2500 MBH",350,96,1234567,"Electric"]
[]
[]
[]
[]
[]
[]
[]
[]
[]
[]
[]
[]
[]
[]
[]
[]
[]
[]
[null,"Provide any additional information relevant to this project."]
[]
[]
[]
[]
[]
[]
[]
[]
[]
[null,"Incentives",null,null,null,null,null,null,null,null,null,null,null,null,null,null,null,null,null,"Boiler: Hot Water < 300 MBH"]
[null,"Eligibility Requirements",null,null,null,null,null,null,null,null,null,null,null,null,null,null,null,null,null,"Boiler: Hot Water = 300 & = 2500 MBH"]
[null,"Equipment Type","Size (Input MBH¹)",null,"Minimum Efficiency ",null,"Incentive Amount ",null,null,null,null,null,null,null,null,null,null,null,null,"Boiler: Hot Water Cast Iron Sectional"]
[null,"Condensing Gas Boilers\n (outdoor temperature reset \nrequired) Hydronic boilers \nONLY","<300",null," ≥ 95% AFUE",null,5,null,null,null,null,null,null,null,null,null,null,null,null,"Boiler: Steam < 300 MBH,Steam = 300 MBH"]
[null,null," ≥300 to <2,500",null," ≥ 95% Combustion Efficiency",null,null,null,null,null,null,null,null,null,null,null,null,null,null,"Boiler: Steam natural draft = 300 MBH"]
[null," Cast Iron Sectional Hot Water \nBoilers","<2,500",null," ≥ 85% Combustion Efficiency",null,3,null,null,null,null,null,null,null,null,null,null,null,null,"Furnace: Unknown exisiting venting"]
[null,"Steam Boilers","<2,500",null,"≥ 84% Combustion Efficiency",null,3,null,null,null,null,null,null,null,null,null,null,null,null,"Furnace: Existing condensing stack"]
[null," Condensing Gas Furnaces","<120",null," ≥ 95% AFUE/Thermal Efficiency",null,6,null,null,null,null,null,null,null,null,null,null,null,null,"Furnace: Existing non-condensing stack"]
[null,null," ≥120 "]

{"sheet":"Sheet6","index":12,"n_rows":74,"n_cols":17,"rows_kept":74,"cut":false,"hidden":true,"merged":[[70,1,73,1],[70,2,70,3],[70,4,70,5],[71,2,71,3],[71,4,71,5],[72,2,72,3],[72,4,72,5],[73,2,73,3],[73,4,73,5],[67,2,67,3],[67,4,67,5],[68,2,68,3],[68,4,68,5],[69,2,69,3],[69,4,69,5],[64,1,66,1],[64,2,64,3],[64,4,64,5],[64,6,66,6],[65,2,65,3],[65,4,65,5],[66,2,66,3],[66,4,66,5],[62,1,63,1],[62,2,62,3],[62,4,62,5],[62,6,63,6],[63,2,63,3],[63,4,63,5],[39,3,39,5],[51,1,57,8],[59,1,59,6],[60,1,60,6],[61,2,61,3],[61,4,61,5],[38,3,38,5],[12,3,12,5],[13,3,13,5],[14,3,14,5],[15,3,15,5],[16,3,16,5],[17,3,17,5],[33,3,33,5],[34,3,34,5],[35,3,35,5],[36,3,36,5],[37,3,37,5],[11,3,11,5],[3,1,3,4],[7,3,7,5],[8,3,8,5],[9,3,9,5],[10,3,10,5]]}
[null,"N A T U R A L   G A S   H E A T I N G   E Q U I P M E N T"]
[19,"h",null,null,null,"h"]
[null,"Proposed:"]
[null,"Participant must obtain conditional approval from the Utilities prior to the purchase or installation of any energy efficiency measures to be eligible to receive efficiency incentives. \n\nThe following are required for ALL measures:  \n        (1) Proposal to customer\n        (2) ALL specification sheets and supporting documents.\n        (3) Data fields (in yellow) on applicable tabs MUST BE FILLED IN"]
[null,"Edits to the selected row are made in this section."]
[1]
[null,"h",{"$f":"ROW(B27)","v":27}]
[null,"Proposed Equipment",null,"Boiler - Condensing"]
[null,"Unit ID",null,5]
[null,"Back Up Qty \n(out of total)",null,2]
[null,"Manufacturer",null,2]
[null,"Model number",null,2]
[null,"Boiler Type & Size",null,"Steam < 300 MBH",null,null,null,null,"*** Boiler Type and Size valid only when Proposed Equipment is \"Boiler - Condensing\""]
[null,"Furnace Vent Configuration",null,null,null,null,null,null,"*** Futance Vent Configuration valid only when Proposed Equipment is \"Furance - Condensing\""]
[null,"Gas Input Capacity (MBH)",null,5]
[null,"Rated Efficiency AFUE or Thermal Efficiency",null,25]
[null,"AHRI Certified Reference Number***",null,2,null,null,null,null,"*** An AHRI rating sheet is required for each proposed unit, and must be submitted with this form"]
[null,"Proposed Fuel Type",null,"Natural Gas",null,null,null,null,"*** Proposed Fule Type valid only when Proposed Equipment is \"Furance - Condensing\""]
[]
[null,"Select any cell to make edits above.",null,null,null,null,null,null,null,null,null,null,null,"AHRI rating certification: ","www.ahridirectory.org"]
[null,null," ",null,null,null,null,null,null,null,null,null,null,null,null,null,"Boiler - Non-Condensing"]
[null,"PROPOSED\nEquipment","Unit ID","Back Up Qty \n(out of total)","Manufacturer","Model number","Boiler Type & Size","Furnace Vent Configuration","Gas Input Capacity\n(MBH)","Rated Efficiency \nAFUE or Thermal Efficiency\n(AHRI)","AHRI Certified Reference Number","Proposed Fuel Type"]
[null,"Boiler - Condensing","B-01",2,1,"YoureInHotWater","Hot Water ≥ 300 & ≤ 2500 MBH","Unknown exisiting venting",350,94,1234567,"Electric",null,null,null,null,"Boiler - Condensing"]
[null,"Boiler - Condensing",1,2,3,4,"Hot Water ≥ 300 & ≤ 2500 MBH",null,5,6,7,56,null,null,null,null,"Boiler - Non-Condensing"]
[null,"Boiler - Condensing",1,2,3,4,null,null,5,6,7,8,null,null,null,null,"Boiler - Non-Condensing"]
[null,null,1,2,3,4,"Steam < 300 MBH","Unknown exisiting venting",4,5,6,"Natural Gas",null,null,null,null,"Boiler - Non-Condensing"]
[null,"Boiler - Condensing",5,2,2,2,"Steam < 300 MBH",null,5,25,2,"Natural Gas",null,null,null,null,"Boiler - Non-Condensing"]
[]
[null,"Existing:"]
[]
[null,"Edits to the selected row are made in this section."]
[2]
[null,"h",{"$f":"ROW(B49)","v":49}]
[null,"Existing Equipment (if any)",null,"Hot Water Boiler"]
[null,"Fuel",null,"Natural Gas"]
[null,"Total Qty",null,2]
[null,"Back Up Qty \n(out of total)",null,2]
[null,"Manufacturer",null,2]
[null,"Model number",null,5]
[null,"Gas Input Capacity (MBH)",null,5]
[]
[null,"Select any cell to make edits above."]
[null,null," "]
[null,"EXISTING\nEquipment \n(if any)","Fuel","Total Qty","Back Up Qty \n(out of total)","Manufacturer","Model number",null,"Gas Input Capacity\n(MBH)"]
[null,"Hot Water Boiler","Natural Gas",2,1,"YoureNot","C00L123",null,300]
[null,"Hot Water Boiler","Natural Gas"]
[null,"Hot Water Boiler","Propane",1,2,3,4,null,5]
[null,"Hot Water Boiler","Oil",1,2,3,4,null,5]
[null,"Hot Water Boiler","Natural Gas",2,2,2,5,null,5]
[]
[null,"Provide any additional information relevant to this project."]
[]
[]
[]
[]
[]
[]
[]
[]
[null,"Incentives"]
[null,"Eligibility Requirements"]
[null,"Equipment Type","Size (Input MBH¹)",null,"Minimum Efficiency ",null,"Incentive Amount "]
[null,"Condensing Gas Boilers* ","Hot Water <300",null,"≥ 95% AFUE² ",null,"$5/Input MBH"]
[null,null,"Hot Water ≥ 300 & ≤ 2500 MBH",null,"≥ 95% Thermal Efficiency"]
[null,"Gas Boilers* ","Hot Water Cast Iron Sectional",null,"≥ 85% Thermal Efficiency",null,"$3/Input MBH"]
[null,null,"Steam < 300 MBH",null,"≥ 84% AFUE²"]
[null,null,"Steam ≥300 to <2,500",null,"≥ 84% Thermal Efficiency"]
[null,"Condensing Gas Furnaces*","<2,500",null,"≥ 95% AFUE²/Combustion Efficiency",null,"$6/Input MBH"]
[null,"Condensing Gas Unit Heaters"," <2,500",null,"≥ 90% Thermal Efficiency",null,"$12/Input MBH"]
[null,"Gas Fired Absorption Heat Pumps (Eversource Only)","n/a",null,"≥ 100% Heating Efficiency",null,"$500/Ton"]
[null,"Natural Gas Infrared Radiant Heaters (low intensity)*","<50",null,"n/a",null,"$500/Unit"]
[null,null,"≥50 to <150",null,"n/a",null,"$550/Unit"]
[null,null,"≥150 to <175",null,"n/a",null,"$650/Unit"]
[null,null,"≥175",null,"n/a",null,"$850/Unit"]

{"sheet":"Sheet1","index":13,"n_rows":5,"n_cols":1,"rows_kept":5,"cut":false,"hidden":true,"merged":[]}
["Hot Water < 300 MBH"]
["Hot Water ≥ 300 & ≤ 2500 MBH"]
["Hot Water Cast Iron Sectional"]
["Steam < 300 MBH"]
["Steam, natural draft, ≥ 300 MBH"]

{"sheet":"DHW","index":14,"n_rows":80,"n_cols":9,"rows_kept":80,"cut":false,"hidden":true,"merged":[[80,1,91,7],[5,1,5,7],[6,1,6,7],[79,1,79,7],[7,2,7,3],[37,6,39,7],[35,1,36,1],[66,1,66,4],[67,1,67,4]]}
[null,"D O M E S T I C   H O T   W A T E R   ( D H W )   H E A T E R"]
[null,"h",null,null,null,"h"]
[null,"Gas Fired Water Heaters","& Heat Pump Water Heaters"]
[1]
[null,"h",{"$f":"ROW(B25)","v":25},null,null,"h"]
[null,"Participant must obtain conditional approval from the Utilities prior to the purchase or installation of any energy efficiency measures to be eligible to receive efficiency incentives. \n\nThe following are required for ALL measures:  \n        (1) Proposal to customer\n        (2) ALL specification sheets and supporting documents including the AHRI rating sheet.\n        (3) Data fields (in yellow) on applicable tabs MUST BE FILLED IN"]
[]
[null,"Total Project Cost"]
[null,"Edits to the selected table rows below are made in this section."]
[null,"In the table that follows, select any row and then make edits in the yellow cells."]
[null,null,null,null,null,null,null,"Rated"]
[null,null,null,null,null,"Input","Storage ","Thermal Efficiency (E(t))","Rated"]
[null,null,null,null,"Number of","Capacity","Capacity","or","DHWH"]
[null,null,null,null,"DHWHs","of Each","of Each","Uniform Energy Factor (UEF)","Input"]
[null,"DHWH","DHWH Model","Type of DHWH","To Be","DHWH","DHWH","(as a decimal)","Standby Loss"]
[null,"Manufacturer","Number","Select from Dropdown","Installed","(MBH)","(gallon)","Value","(BTU/hr)"]
[null,"TRANE","XYZ-1000678","On Demand",3,18,30,0.65]
[]
[]
[]
[]
[]
[]
[]
[]
[]
[]
[]
[]
[]
[]
[]
[]
[null,"Equipment Type","Size\n(Input MBH)¹","Minimum Efficiency "]
[null,"Storage-Type Domestic Water Heater","n/a","≥ 90% Thermal Efficiency"]
[null,"On-Demand Domestic Water Heater","< 200","≥ 0.85 Energy Factor"]
[null,null,"≥ 200","≥ 90% Thermal Efficiency"]
[null,"Large Domestic Hot Water Boiler","> 75","≥ 85% Thermal Efficiency"]
[]
[null,"Heat Pump Water Heaters:"]
[null,"In the table that follows, select any row and then make edits in the yellow cells."]
[]
[]
[null,null,null,null,null,"Storage "]
[null,null,null,"Number of",null,"Capacity","Proposed"]
[null,null,null,"DHWHs",null,"of Each","Rated","System"]
[null,"DHWH","DHWH Model","To Be","Input","DHWH","Performance","Volts/Amps"]
[null,"Manufacturer","Number","Installed","kW","(gallon)","(COP or UEF)"]
[null,"TRANE","XYZ-10068",3,150,15,null,"120V/15A"]
[]
[]
[]
[]
[]
[]
[]
[]
[]
[]
[]
[]
[]
[]
[]
[]
[]
[null,"Heat Pump Hot Water Heater Incentives "]
[null,"Eligibility Requirements"]
[null,"Rated Storage Volume","Minimum Efficiency","Incentive per Unit","Qualification"]
[null,"≥20 gal to ≤55 gal"," ENERGY STAR certified – UEF4 ≥3.40 or\n ≥2.20 for 120 Volt/15 Amp circuit system",1000," ENERGY STAR®"]
[null,">55 gal to ≤120 gal"," ENERGY STAR certified – UEF ≥3.40 or\n ≥2.20 for 120 Volt/15 Amp circuit system",1000," ENERGY STAR®"]
[null," >120 gal"," >3.6 COP",1400]
[]
[]
[]
[]
[]
[]
[]
[null,"Note:-"]

{"sheet":"EMS proposed","index":15,"n_rows":51,"n_cols":8,"rows_kept":51,"cut":false,"hidden":true,"merged":[[19,3,31,3],[34,3,48,3]]}
[]
[]
[null,"Proposed EMS Description"]
[]
[null,null,"Provide on this sheet a complete description of the PROPOSED EMS including:"]
[]
[null,null,"a.","The building systems listed previously that the proposed EMS system will control."]
[null,null,"b.","A detailed narrative identifying the EMS control strategies that will be used."]
[null,null,"c.","EMS points list separated by input points and output points."]
[null,null,"d. ","Cost Proposal - attach separately."]
[]
[null,"EXAMPLE:","Proposed System"]
[null,null,null,"It is proposed to replace the existing pneumatic Andover Continuum system with a new Delta Control system.  In addition to added capabilities to reduce energy costs as well as improve comfort,  it also provides the ability for the operations team to access the building system via a web browser on PC, smartphone, or tablet. "]
[]
[null,null,"Proposed System Strategy"]
[null,null,null,"The Delta Controls system will implement a Static Pressure Reset (Critical Zone) on each RTU. The Delta controllers on each VAV will communicate its respective damper position to the RTU controller. The RTU controller will reset the duct static pressure setpoint to provide just enough air so that at least one VAV damper is almost wide open saving fan horsepower. Additionally reduced ventilation minimums based on ASHRAE Guideline 36 & ASHRAE Standard 62.1 as overcooling has been identified in some offices & labs. "]
[]
[]
[null,null,"Proposed System"]
[]
[]
[]
[]
[]
[]
[]
[]
[]
[]
[]
[]
[]
[null,null,null,null,null,null,"Examples of Control Strategies that qualify for incentives:"]
[null,null,"Proposed System Strategy"]
[null,null,null,null,null,1,"Optimal Start Stop - (air handling systems)"]
[null,null,null,null,null,null,null,"- a self learning system that adjusts start times based on outdoor air conditions. Includes morning start up with dampers closed."]
[]
[]
[null,null,null,null,null,2,"Co2 or Demand Control Ventilation - (Air handling units) "]
[null,null,null,null,null,null,null,"Monitors space (return air) CO2 and adjusts outside air dampers to maintain required indoor air quality without over ventilating."]
[null,null,null,null,null,null,null,"Note: This is for systems that serve areas where the outside air is solely dependent on occupancy.  Labs, kitchens, manufacturing areas may not be possible."]
[null,null,null,null,null,3,"Hot Water Temperature Reset (Boilers)"]
[null,null,null,null,null,null,null,"boiler temperature modified based on outside air temperature (higher during colder weather and lower when milder weather). (required by code for new boilers)"]
[null,null,null,null,null,4,"Chilled Water Temperature Reset (Chillers)"]
[null,null,null,null,null,null,null," - Increases chiller discharge temperature when outside air temperature is lower and humidity is not an issue. (required by code for new chillers)"]
[null,null,null,null,null,5,"Condenser Water Reset - (water cooled chillers) "]
[null,null,null,null,null,null,null,"-Condenser water setpoint is lowered when outside air conditions permit (based on wet bulb). (required by code for new chillers)"]
[null,null,null,null,null,6,"Static pressure reset (VAV air systems)"]
[null,null,null,null,null,null,null," - System will monitor damper positions of all VAV boxes on the system.  If dampers are all <80% open the static pressure setpoint will be reduced.  Will adjust up when necessary."]
[null,null,null,null,null,7,"Discharge Temperature Reset (VAV reheat system) "]
[null,null,null,null,null,null,null,"- system will monitor reheats of all VAV reheat boxes on the system.  Based on the reheat being done the AHU discharge setpoint is raised and lowered reducing reheat when conditions permit.  System needs to also make ensure proper dehumidification."]

{"sheet":"Kitchen Appliances","index":16,"n_rows":53,"n_cols":10,"rows_kept":53,"cut":false,"hidden":true,"merged":[[50,1,52,1],[35,1,38,1],[35,3,38,3],[39,1,46,1],[39,3,46,3],[47,1,49,1],[29,1,29,4],[31,1,32,1],[31,3,32,3],[33,1,34,1],[33,3,34,3],[4,1,4,5],[5,1,5,5],[9,4,11,7],[20,1,20,5],[26,1,26,4]]}
[null,"C O M M E R I C A L   K I T C H E N   E Q U I P M E N T   -   E N E R G Y   S T A R ®    "]
[19,"h",null,null,null,"h"]
[{"$f":"ROW(B24)","v":24},"h"]
[]
[null,"Participant must obtain conditional approval from the Utilities prior to the purchase or installation of any energy efficiency measures to be eligible to receive efficiency incentives. \n\nThe following are required for ALL measures:  \n        (1) Proposal to customer\n        (2) ALL specification sheets and supporting documents.\n        (3) Data fields (in yellow) on applicable tabs MUST BE FILLED IN"]
[]
[null,"Edits to the selected row are made in this section."]
[]
[null,"Location and/or Unit ID"]
[null,"Equipment Type (Select Below)",null,null,"Provide any additional information felt to be relevant here."]
[]
[]
[]
[]
[null,"Manufacturer and Model Number"]
[null,"Type, Size or Capacity"]
[null,"Number of Units"]
[]
[null,"Select any cell to make edits above."]
[null,null,null,null,null,null,null,null,null,"Refrigerator, Solid Door"]
[null,"Commercial Kitchen Units Proposed",null,null,null,null,null," (Prescriptive Incentives - can apply directly on-line)"]
[null,"Unit ID","Equipment Type","Manufacturer and Model Number","Type, Size or Capacity","Number of Units",null,"Provide the Energy Star rating form for each unit"]
[null,"Example 1: Refrigerator 1","Refrigerator Solid Door","Turbo Air Pro 50R","50 cubic feet",1]
[null,null,null,null,null,null,null,null,null,"Refrigerator, Solid Door"]
[]
[]
[null,"Note: Incentives for Natural Gas appliances are available to Eversource Gas, Connecticut Natural Gas and customers on a firm gas (non interruptible) account"]
[null,"Backups Required: Submittal showing ENERGY STAR® rating with Equipment Manufacturer, Model number and capacity"]
[]
[null,"Eligible Equipment"]
[null,"Equipment Type","Type, Size, Capacity","Lifetime (years)","Incentives $/ Unit"]
[null,"Refrigerator, Solid Door, Self Contained","30-49.9 cubic feet",12,175]
[null,null,"50 cubic feet or larger",null,300]
[null,"Freezer, Glass Door, Self Contained","30-49.9 cubic feet",12,1150]
[null,null,"50 cubic feet or larger",null,1975]
[null,"Freezer, Solid Door, Self Contained","Less than 15 cubic feet",12,125]
[null,null,"15-29.9 cubic feet",null,200]
[null,null,"30-49.9 cubic feet",null,200]
[null,null,"50 cubic feet or larger",null,500]
[null,"Ice Machines (Ice Making Head units only)","Harvest Rate",12,"-"]
[null,null,"101-200 lbs/day",null,50]
[null,null,"201-300 lbs/day",null,50]
[null,null,"301-400 lbs/day",null,75]
[null,null,"401-500 lbs/day",null,75]
[null,null,"501-1000 lbs/day",null,75]
[null,null,"1001-1500 lbs/day",null,100]
[null,null,"Greater than 1500 lbs/day",null,100]
[null,"Low Temp Electric or Natural Gas Dishwasher                       Note: Building must have Electric or Gas Hot Water","Under Counter",10,300]
[null,null,"Door Type",15,1200]
[null,null,"Single Tank Conveyor",20,125]
[null,"High Temp Electric or Natural Gas Dishwasher                       Note: Building must have Electric or Gas Hot Water or unit must have Electric or Gas Hot Water Booster","Under Counter",10,750]
[null,null,"Door Type",15,375]
[null,null,"Single Tank Conveyor",20,200]

{"sheet":"Cooking Equipment","index":17,"n_rows":69,"n_cols":7,"rows_kept":69,"cut":false,"hidden":true,"merged":[[68,1,68,4],[65,1,65,2],[66,1,66,2],[67,1,67,2],[61,1,61,2],[62,1,62,2],[63,1,63,2],[56,1,59,1],[64,1,64,2],[60,1,60,2],[54,1,54,3],[26,1,26,4],[29,1,29,4],[31,1,34,1],[31,3,34,3],[35,1,35,2],[41,1,41,2],[42,1,42,2],[36,1,36,2],[37,1,37,2],[38,1,38,2],[39,1,39,2],[40,1,40,2],[4,1,4,5],[5,1,5,5],[10,4,12,7],[53,1,53,3],[19,6,19,8],[20,6,20,8],[21,6,21,8],[18,1,18,8]]}
[null,"C O M M E R C I A L   C O O K I N G   E Q U I P M E N T   -   E N E R G Y   S T A R ®    "]
[19,"h",null,null,null,"h"]
[{"$f":"ROW(B22)","v":22},"h"]
[]
[null,"Participant must obtain conditional approval from the Utilities prior to the purchase or installation of any energy efficiency measures to be eligible to receive efficiency incentives. \n\nThe following are required for ALL measures:  \n        (1) Proposal to customer\n        (2) ALL specification sheets and supporting documents.\n        (3) Data fields (in yellow) on applicable tabs MUST BE FILLED IN"]
[]
[null,"Edits to the selected row are made in this section."]
[]
[null,"Unit ID"]
[null,"Equipment Type (Select Below)"]
[null,null,null,null,"Provide any additional information felt to be relevant here."]
[]
[null,"Manufacturer and Model Number"]
[null,"Type, Size or Capacity"]
[null,"Number of Units"]
[]
[null,"Select any cell to make edits above."]
[]
[null,"Commercial Kitchen Units Proposed"]
[null,"Unit ID","Equipment Type","Manufacturer","Model Number","Type, Size or Capacity","Number of Units"]
[null,"Example 1: Hot Food Holding Cabinet","Hot Food Holding Cabinet",null,null,"18 cubic feet",1]
[]
[]
[]
[null,"*Provide the Energy Star rating form for each unit"]
[]
[null,"Note: Incentives for Natural Gas appliances are available to Eversource Gas, Connecticut Natural Gas and customers on a firm gas (non interruptible) account"]
[null,"Backups Required: Submittal showing ENERGY STAR® rating with Equipment Manufacturer, Model number and capacity"]
[]
[null,"Eligible Equipment"]
[null,"Equipment Type","Type, Size, Capacity","Lifetime (years)","Incentives $/ Unit"]
[null,"Electric Hot Food Holding Cabinets","Product Interior Volume (Cubic Feet)",12,"-"]
[null,null,"0 < V < 13",null,650]
[null,null,"13 ≤ V < 28",null,975]
[null,null,"28 ≤ V",null,900]
[null,"Electric Convection Oven",null,12,350]
[null,"Natural Gas Convection Oven",null,12,500]
[null,"Electric Fryer",null,12,200]
[null,"Natural Gas Fryer",null,12,750]
[null,"Electric Griddle",null,12,400]
[null,"Natural Gas Griddle",null,12,450]
[null,"Electric Steam Cooker",null,12,1125]
[null,"High Efficiency Natural Gas Steamer",null,12,750]
[]
[]
[]
[]
[]
[]
[]
[]
[]
[]
[null,"Incentives"]
[null,"Eligibility Requirements"]
[null,"Equipment Type","Type, Size, Capacity","Incentives $/ Unit"]
[null,"Electric Hot Food Holding Cabinets","Product Interior Volume (Cubic Feet)","-"]
[null,null,"0 < V < 13",650]
[null,null,"13 ≤ V < 28",975]
[null,null,"28 ≤ V",900]
[null,"Electric Convection Oven",null,350]
[null,"Natural Gas Convection Oven",null,500]
[null,"Electric Fryer",null,200]
[null,"Natural Gas Fryer",null,750]
[null,"Electric Griddle",null,400]
[null,"Natural Gas Griddle",null,450]
[null,"Electric Steam Cooker",null,1125]
[null,"High Efficiency Natural Gas Steamer",null,750]
[null,"Note: Incentives for natural gas appliances are available to customers on a firm gas (non interruptible) account. "]

{"sheet":"HW Usage","index":18,"n_rows":26,"n_cols":17,"rows_kept":26,"cut":false,"hidden":true,"merged":[[27,0,27,3],[2,1,4,3],[5,1,5,20],[2,4,4,11],[0,6,0,19],[16,2,16,3]]}
[null,"H O T   W A T E R   U S A G E   R E D U C T I O N"]
[19,"h",null,null,null,"h"]
[null,"Reduction of HW use through replacement of pre-rinse spray valves, shower heads, and faucet aerators with low flow units averaging 1.6 gpm, 2.0 gpm and 1.5 gpm respectively."]
[]
[]
[null,"Participant must obtain conditional approval from the Utilities prior to the purchase or installation of any energy efficiency measures to be eligible to receive efficiency incentives. \n\nThe following are required for ALL measures:  \n        (1) Proposal to customer\n        (2) ALL specification sheets and supporting documents.\n        (3) Data fields (in yellow) on applicable tabs MUST BE FILLED IN"]
[]
[]
[null,null,null,null,null,null,null,null,null,null,null,null,null,null,null,"school"]
[]
[]
[]
[null,null,null,null,null,null,null,null,null,null,null,null,null,null,"Yes",{"$f":"IF(C15=O13,0.75,1)","v":1}]
[null,"Type of water heat",null,null,null,null,null,null,null,null,null,null,null,null,"No"]
[null,"Is this a school?"]
[null,"Furnish and Install $",null,null,null,null,null,null,null,null,null,null,"1-electric","AKWHw","kWh","kW","Estimated Electric Savings"]
[null,"Total Project Cost",null,null,null,null,null,null,null,null,null,null,null,null,null,"CCF/day","Estimated Gas Savings"]
[null,null,null,null,null,null,null,null,null,null,null,null,null,null,null,null,"Estimated Propane Savings"]
[null,"Application","Fixture Type","Quantity",null,null,null,null,null,null,null,null,null,null,null,null,"Estimated Oil Savings"]
[null,"Grocery","Spray Valve"]
[null,"Non-Grocery","Spray Valve"]
[null,"Grocery","Showerhead"]
[null,"Non-Grocery","Showerhead"]
[null,"Grocery","Faucet Aerators"]
[null,"Non-Grocery","Faucet Aerators"]
[null,null,"Totals",{"$f":"SUM(D20:D25)","v":0}]

{"sheet":"VFDs","index":19,"n_rows":117,"n_cols":13,"rows_kept":117,"cut":false,"hidden":true,"merged":[[8,13,8,14],[116,1,117,6],[118,1,150,6],[3,1,3,10],[6,1,6,10],[7,1,7,10],[10,6,10,10],[28,6,28,8]]}
[null,"V F D S   -   H V A C   O N L Y "]
[null,"h",null,null,null,"h"]
[null,"Use Custom Measure form for process motors"]
[null,"Participant must obtain conditional approval from the Utilities prior to the purchase or installation of any energy efficiency measures to be eligible to receive efficiency incentives. \n\nThe following are required for ALL measures:  \n        (1) Proposal to customer\n        (2) ALL specification sheets and supporting documents.\n        (3) Data fields (in yellow) on applicable tabs MUST BE FILLED IN"]
[]
[null,"Existing System Controls"]
[null,"Please list the existing sensors and controls that will be used in the systems installing VFDs. \nPlease also include the sequences of operation that will be used for varying the VFD speed."]
[]
[null,"Constant Volume RTUs  (Staged fan speed conversion)   ",null,null,null,null,null,null,null,null,null,null,"Total Project Cost"]
[null,"Edits to the selected table rows below are made in this section."]
[null,null,null,null,null,null,"Fan Speed (%)"]
[null," ","RTU ID","Qty","Motor HP","Annual Hours","Heat/Cool Stage 1","HP","BHP","Heat/Cool Stage 2","Heat/Cool Off","Installed Cost"]
[]
[]
[]
[]
[]
[]
[]
[]
[]
[]
[]
[]
[]
[]
[]
[]
[null,"FAN MOTORS: Air Handling Units (AHUs, RTUs) *"]
[null,"*Motors must be at least 1 HP to qualify."]
[null,"Fan Type Code","Description","Fan ID","Quantity","Motor HP","Installed Cost","BHP","motor Eff"]
[]
[]
[]
[]
[]
[]
[]
[]
[]
[]
[]
[]
[]
[]
[]
[]
[]
[null,"PUMPS: Chilled Water (ChWP)*",null,"*Motors must be at least 1 HP to qualify."]
[]
[null,"Pump ID","VFD Installation Type","Total Quantity","Back up Quantity","Override Hours","Motor HP","BHP","motor Eff","Installed Cost"]
[]
[]
[]
[]
[]
[]
[]
[]
[]
[]
[]
[]
[]
[null," "]
[]
[]
[]
[]
[]
[null,"PUMPS: Hot Water (HW) *",null,"*Motors must be at least 1 HP to qualify."]
[]
[null,"Pump ID","VFD Installation Type","Total Quantity","Back up Quantity","Override Hours","Motor HP","BHP","motor Eff","Installed Cost"]
[]
[]
[]
[]
[]
[]
[]
[]
[]
[]
[]
[]
[]
[null," "]
[]
[]
[]
[null,"Cooling Tower Fans:"]
[null,"*Motors must be at least 1 HP to qualify."]
[]
[null,"Tower ID","VFD Installation Type","Qty","Override Hours","Motor HP","Installed Cost","BHP","motor Eff"]
[null,null," "]
[]
[]
[]
[]
[]
[]
[]
[]
[]
[]
[]
[]
[]
[]
[]
[]
[]
[]
[]
[]
[]
[null,"Control  - Describe how the speed of each motor will be controlled.  \n(Ex. differential pressure sensors and VAV boxes will be added at locations x, y, and z etc.)  "]

{"sheet":"ERV","index":20,"n_rows":45,"n_cols":17,"rows_kept":45,"cut":false,"hidden":true,"merged":[[44,1,44,7],[45,1,56,7],[41,6,41,7],[2,1,2,7],[3,1,3,8],[8,1,8,4],[8,5,8,6]]}
[null,"E N E R G Y   R E C O V E R Y   V E N T I L A T I O N   ( E R V )   U N I T S"]
[19,"h",null,null,null,"h"]
[null,"Note:     Code will be used as the baseline in determining  energy savings and  incentives.  "]
[null,"Participant must obtain conditional approval from the Utilities prior to the purchase or installation of any energy efficiency measures to be eligible to receive efficiency incentives. \n\nThe following are required for ALL measures:  \n        (1) Proposal to customer\n        (2) ALL specification sheets and supporting documents.\n        (3) Data fields (in yellow) on applicable tabs MUST BE FILLED IN"]
[]
[]
[]
[]
[null,"Incremental cost to add heat recovery to project \n(design, equipment,installation and commissioning)"]
[]
[null,"Unit Designation","Manufacturer and Model #","Return Air DB TEMP. (Default 72 degrees)","Return air enthalpy, h (default 26.45)","Cooling EER","Heating fuel","Heating Efficiency (Defaults:\nFossil Fuel Boiler (New) = 90%\nFurnace (New) = 85%\nFossil Fuel Retrofit = 80%\nElectric = 200%)","Building Balance Point (default 55°F)","Total Heating Energy Recovery Effectiveness (%)","Total Cooling Energy Recovery Effectiveness (%)","Heat Recovery By-pass","Exhaust Airflow (cfm)","Heat recovery required by code?",{"$f":"IF(O$13=\"Yes\",\"N/A\",\"System Type\")","v":"System Type"},"Supply Fan Power (hp)","Return Fan Power (hp)"]
[]
[]
[]
[]
[]
[]
[]
[]
[]
[]
[]
[]
[null,"From IECC 2021 - Code Requirement"]
[null,"Energy Recovery Required by code if airflow exceeds values in the table below. "]
[null,"Some Exceptions/Exemptions apply in 2021 IECC Section C403.7.4.2."]
[null,"TABLE C403.7.4.2(1)"]
[null,"ENERGY RECOVERY REQUIREMENT (VENTILATION SYSTEMS OPERATING LESS THAN 8,000 HOURS PER YEAR)"]
[null,"PERCENT (%) OUTDOOR AIR AT FULL DESIGN AIRFLOW RATE"]
[null,"≥ 10% and < 20%","≥ 20% and < 30%","≥ 30% and < 40%","≥ 40% and < 50%","≥ 50% and < 60%","≥ 60% and < 70%","≥ 70% and < 80%","≥ 80%"]
[null,"DESIGN SUPPLY FAN AIRFLOW RATE (cfm)"]
[null,"≥ 26,000"," ≥ 16,000"," ≥ 5,500"," ≥ 4,500"," ≥ 3,500"," ≥ 2,000"," ≥ 1,000","> 120"]
[]
[null,"TABLE C403.7.4.2(2)"]
[null,"ENERGY RECOVERY REQUIREMENT (VENTILATION SYSTEMS OPERATING NOT LESS THAN 8,000 HOURS PER YEAR)"]
[null,"PERCENT (%) OUTDOOR AIR AT FULL DESIGN AIRFLOW RATE"]
[null,"≥ 10% and < 20%","≥ 20% and < 30%","≥ 30% and < 40%","≥ 40% and < 50%","≥ 50% and < 60%","≥ 60% and < 70%","≥ 70% and < 80%","≥ 80%"]
[null,"DESIGN SUPPLY FAN AIRFLOW RATE (cfm)"]
[null,"≥ 200","≥ 130","≥ 100","≥ 80","≥ 70","≥ 60","≥ 50","≥ 40"]
[]
[]
[]
[]
[]
[null,"Note:-"]

{"sheet":"DCV","index":21,"n_rows":32,"n_cols":27,"rows_kept":32,"cut":false,"hidden":true,"merged":[[31,1,31,7],[32,1,43,7],[3,1,3,7],[10,2,10,3],[2,2,2,7],[7,1,7,3],[5,1,6,3],[5,4,6,4]]}
[null,"D E M A N D   C O N T R O L   V E N T I L A T I O N   ( D C V )   O F   O U T S I D E   A I R   W I T H   C O 2   S E N S O R S",null,null,null,null,null,null,null,null,null,null,null,null,null,null,null,null,null,null,null,null,null,null,null,null,"N"]
[{"$f":"ROW(#REF!)","v":{"$error":"#REF!"}},"h",null,null,null,null,"h"]
[]
[null,"Participant must obtain conditional approval from the Utilities prior to the purchase or installation of any energy efficiency measures to be eligible to receive efficiency incentives. \n\nThe following are required for ALL measures:  \n        (1) Proposal to customer\n        (2) ALL specification sheets and supporting documents.\n        (3) Data fields (in yellow) on applicable tabs MUST BE FILLED IN"]
[]
[null,"Incremental cost to add CO2 sensors to project including design, installation and commissioning:"]
[]
[null,"# of CO2 Sensors"]
[]
[]
[null,"Total Project Cost"]
[]
[null,"Select any cell in the table to make edits."]
[null,"Unit ID","Return Air DB TEMP. (Default 72 degrees)","Return air enthalpy, h (default 26.45)","Total Airflow (cfm)","Outside Air (%)","Average Airflow Reduction (%)","Cooling EER","Heating fuel","Heating Efficiency ","Building Balance Point (°F)","Sensor Location"]
[null,"XYZ-100024",72,26,1200,0.3,0.1,12,"Fossil Fuel",0.9,50,"Return Duct"]
[]
[]
[]
[]
[]
[]
[]
[]
[]
[]
[]
[]
[]
[]
[]
[]
[null,"Note:-"]

{"sheet":"Pipe Ins","index":22,"n_rows":50,"n_cols":15,"rows_kept":50,"cut":false,"hidden":true,"merged":[[21,7,21,10],[10,2,10,5],[11,2,11,5],[16,2,18,6],[3,2,3,5],[4,2,4,5],[5,2,5,5],[6,2,6,5],[7,2,7,5],[8,2,8,5],[9,2,9,5],[12,2,12,6],[13,2,13,6]]}
[null,"P I P E   A N D   B L A N K E T   I N S U L A T I O N"]
[null,"h",null,null,null,"h"]
[null,null,null,null,null,null,null,"3E Plus Output:"]
[null,1,"Use of 3E Plus software (recommended by the US DOE) to calculate the required Heat Loss Factors is recommended by our CT PSD. \nAll other approaches will require an engineering review. "]
[null,null,"https://insulationinstitute.org/tools-resources/free-3e-plus/  "]
[null,2,"Use distinct Item ID's for each individual 3E Plus calculation and enter that ID below.  All 3E Plus Output Sheets with Heat Loss Factors must be submitted.  *.pdf's are acceptable."]
[null,3,"Use the actual Bare Pipe Surface temperature for the Process Temperature in 3E as much as possible. "]
[null,4,"Use the local temperature near the piping for the Ambient Temperature.  This temperature is not the building set point and will often be hotter in ceilings and mechanical rooms."]
[null,5,"Wind speed is 0.0 for inside piping.  There needs to be data to justify wind speeds other than 0.0 for outside pipe."]
[null,6,"Blanket Insulation product literature for valves, etc. indicating thermal conductivity values is required."]
[null,7,"Gas and electric account numbers that are associated with the insulated items are required."]
[null,8,"Provide photos that are representative of major equipment and pipe sections."]
[null,null,"Participant must obtain conditional approval from the Utilities prior to the purchase or installation of any energy efficiency measures to be eligible to receive efficiency incentives. \n\nThe following are required for ALL measures:  \n        (1) Proposal to customer\n        (2) ALL specification sheets and supporting documents.\n        (3) Data fields (in yellow) on applicable tabs MUST BE FILLED IN"]
[]
[null,null,"Total Project Cost"]
[null,null,"Provide any additional information felt to be relevant here.",null,null,null,null,null,null,null,null," "]
[]
[]
[]
[]
[1,null,"Pipe:"]
[null,null,"Edits to the selected row are made in this section.",null," Note: \"Use site AFUE if available.\""]
[]
[null,null,null,null,"Heating Source","condensing"]
[null,null,null,null,"Burner Efficiency (%)",0.1]
[null,null,"Select any row in the table below and use yellow cells above to make edits."]
[null,null,"Location","3E Plus Sheet Code","Type of Fluid","Nominal Pipe Size \n(inches)"," Insulation Thickness (inches)","Annual Hours of Operation","Pipe \nLinear Length \n(ft.)","Bare Pipe Heat Loss \n(BTU/hr/ft)","Insulated Heat Loss\n(BTU/hr/ft)","Qty \n90's or 45's","Qty \nTee's","Surface Temp. (degree F)","Ambient Temp. (degree F)"]
[null,null,"ex. chiller room","3EPL12","Chilled Water",5,1,2250,500,null,null,60,20,44,68]
[]
[]
[]
[]
[]
[]
[]
[]
[]
[]
[]
[]
[]
[]
[]
[]
[]
[2,2,"Blanket:"]
[null,null,"Edits to the selected row are made in this section."]
[null,null,"Select any row in the table below and use yellow cells above to make edits."]
[null,null,"Qty","Location","3E Plus Sheet Code","Fitting Description","Type of Fluid","Nominal Pipe Size \n(inches)"," Insulation Thickness (inches)","Annual Hours of Operation","Blanket \nSurface Area   (Sq. Ft)","Ambient Temp. (degree F)","Surfacet Temp. (degree F)","Bare Pipe Heat Loss \n(BTU/hr/ft)","Insulated Heat Loss\n(BTU/hr/ft)"]
[null,null,10,"ex. chiller room","3EPL12",null,"Chilled Water",5,1,2250,500,68,44]

{"sheet":"Advanced Thermostat","index":23,"n_rows":41,"n_cols":17,"rows_kept":41,"cut":false,"hidden":true,"merged":[[2,1,2,3],[7,1,7,6],[0,0,1,5],[34,1,34,7],[35,1,36,7],[9,2,9,3]]}
["Participant must obtain conditional approval from the Utilities prior to the purchase or installation of any energy efficiency measures to be eligible to receive efficiency incentives. \n\nThe following are required for ALL measures:  \n        (1) Proposal to customer\n        (2) ALL specification sheets and supporting documents.\n        (3) Data fields (in yellow) on applicable tabs MUST BE FILLED IN"]
[]
[]
[]
[]
[null,"Measure Name: Commercial Advanced Thermostats (Must Be Energy Star Certified Smart Thermostat)"]
[null,"The measure energy savings are calculated using deemed energy savings factors based on study results"]
[null,"Site Specific *(Please include cut sheet with manufacturer and model number identified with submission for incentive)"]
[]
[null,"Total Project Cost"]
[]
[null,"Manufacturer and Model Number","Quantity","Heating Type","Cooling Type","Location of Thermostat ","Area (Square Footage) served by all thermostats in each row"]
[]
[]
[]
[]
[]
[]
[]
[]
[]
[]
[]
[]
[]
[]
[]
[]
[null,"Notes: If \"Heating - Electric Heat Pump\" is selected under \"Heating Type\", \"Cooling Not Applicable\" must be selected under \"Cooling Type\"."]
[]
[]
[]
[]
[]
[null,"Note:-"]
[]
[]
[]
[]
[]
[null,null,null,null,null,null,null,null,null,null,null,null,null,null,null,null,"ENERGY STAR Certified Smart Thermostat"]

{"sheet":"Steam Traps","index":24,"n_rows":784,"n_cols":17,"rows_kept":784,"cut":false,"hidden":true,"merged":[[125,14,126,14],[125,16,126,16],[125,6,126,6],[125,7,126,7],[125,8,126,8],[125,9,126,9],[125,11,126,11],[125,1,126,1],[125,2,126,2],[125,3,126,3],[125,4,126,4],[125,5,126,5],[3,1,3,5],[4,1,4,5],[34,1,36,4],[10,16,11,16],[10,1,11,1],[10,2,11,2],[10,3,11,3],[10,4,11,4],[10,6,11,6],[10,7,11,7],[10,8,11,8],[10,9,11,9],[10,11,11,11],[10,14,11,14],[10,15,11,15],[10,5,11,5]]}
[null,"S T E A M   T R A P   R E P A I R S"]
[{"$f":"ROW(B13)","v":13},"h",null,null,null,"h",null,null,null,null,"h"]
[]
[null,"Participant must obtain conditional approval from the Utilities prior to the purchase or installation of any energy efficiency measures to be eligible to receive efficiency incentives. \n\nThe following are required for ALL measures:  \n        (1) Proposal to customer\n        (2) ALL specification sheets and supporting documents.\n        (3) Data fields (in yellow) on applicable tabs MUST BE FILLED IN"]
[]
[null,"Edits to the selected table row below are made in this section."]
[]
[null,"Total Project Cost"]
[]
[null,"Select any cell in the table row below and make edits to that row in the entries above."]
[null,"Quantity","Trap #","Location \n(Bldg/Floor/Rm#)","Location \n(Rm/Elevation)","Manfacturer","Model #","Type","Application","Line pressure\n(psig)","Issue","Pipe Size (inches)","Orifice Diameter","Annual Hours Active","Repair\nor \nReplace","Equivalent Full Load Hour Assumptions","Cost"]
[null,null,null,null,null,null,null,null,null,null,null,null,"(inches)","(Hours)"]
[]
[]
[]
[]
[]
[]
[]
[]
[]
[]
[]
[]
[]
[]
[]
[]
[null,{"$f":"SUM(B$11:B$28)","v":0},"Total",null,null,null,null,null,null,null,null,null,null,null,null,"Totals:",{"$f":"SUM(Q$11:Q$28)","v":0}]
[]
[]
[]
[]
[]
[null,"Add any additional information here"]
[]
[]
[]
[null,"Condensate Return Line (Yes/No)"]
[]
[null,"Note: Based on 2020 PSD"]
[]
[]
[null,"Burner Control (if avalable)",null,"(Drop down list)"]
[]
[]
[]
[null,"Result Code","Loss Factor"]
[]
[null,"Blowing thru",0.55000000000000004]
[null,"Leaking",0.26]
[null,"Not in service",0]
[null,"Not Tested",0]
[null,"OK",0]
[null,"Plugged",0]
[]
[null,"Gauge Pressure","Enthalpy"]
[null,"(psig)","(Btu/lb)"]
[null,0,0]
[null,2,966.07]
[null,5,960.54]
[null,10,952.56]
[null,15,945.68]
[null,20,{"$f":"+(C63+C65)/2","v":939.89}]
[null,25,934.09]
[null,30,{"$f":"+C65+(C$70-C$65)/5","v":929.68}]
[null,35,{"$f":"+C66+(C$70-C$65)/5","v":925.27}]
[null,40,{"$f":"+C67+(C$70-C$65)/5","v":920.86}]
[null,45,{"$f":"+C68+(C$70-C$65)/5","v":916.45}]
[null,50,912.06]
[null,55,{"$f":"+C70+(C$75-C$70)/5","v":908.68}]
[null,60,{"$f":"+C71+(C$75-C$70)/5","v":905.3}]
[null,65,{"$f":"+C72+(C$75-C$70)/5","v":901.92}]
[null,70,{"$f":"+C73+(C$75-C$70)/5","v":898.54}]
[null,75,895.16]
[null,80,{"$f":"+C75+(C$80-C$75)/5","v":892.34}]
[null,85,{"$f":"+C76+(C$80-C$75)/5","v":889.52}]
[null,90,{"$f":"+C77+(C$80-C$75)/5","v":886.7}]
[null,95,{"$f":"+C78+(C$80-C$75)/5","v":883.88}]
[null,100,881.04]
[null,105,{"$f":"+C80+(C$85-C$80)/5","v":878.57}]
[null,110,{"$f":"+C81+(C$85-C$80)/5","v":876.1}]
[null,115,{"$f":"+C82+(C$85-C$80)/5","v":873.63}]
[null,120,{"$f":"+C83+(C$85-C$80)/5","v":871.16}]
[null,125,868.68]
[null,130,{"$f":"+C85+(C$90-C$85)/5","v":866.46}]
[null,135,{"$f":"+C86+(C$90-C$85)/5","v":864.24}]
[null,140,{"$f":"+C87+(C$90-C$85)/5","v":862.02}]
[null,145,{"$f":"+C88+(C$90-C$85)/5","v":859.8}]
[null,150,857.58]
[null,155,{"$f":"+C90+(C$100-C$90)/10","v":855.62}]
[null,160,853.66]
[null,165,851.7]
[null,170,849.74]
[null,175,847.78]
[null,180,845.82]
[null,185,843.86]
[null,190,841.9]
[null,195,839.94]
[null,200,837.95]
[null,205,{"$f":"+C100+(C$110-C$100)/10","v":836.22}]
[null,210,834.49]
[null,215,832.76]
[null,220,831.03]
[null,225,829.3]
[null,230,827.57]
[null,235,825.84]
[null,240,824.11]
[null,245,822.38]
[null,250,820.68]
[null,255,{"$f":"+C110+(C$120-C$110)/10","v":819.12}]
[null,260,817.56]
[null,265,816]
[null,270,814.44]
[null,275,812.88]
[null,280,811.32]
[null,285,809.76]
[null,290,808.2]
[null,295,806.64]
[null,300,805.03]
[]
[]
[]
[]
[]
[null,"Quantity","Trap #","Location \n(Bldg/Floor/Rm#)","Location \n(Rm/Elevation)","Manfacturer","Model #","Type","Application","Line pressure\n(psig)","Issue","Pipe Size (inches)","Orifice Diameter","Annual Hours Active","Repair\nor \nReplace",null,"Cost"]
[null,null,null,null,null,null,null,null,null,null,null,null,"(inches)","(Hours)"]
[null,1,null,null,null,null,null,null,"Drip",0,"OK",null,null,null,"No change",null,0]
[null,1,null,null,null,null,null,null,"Drip",0,"OK",null,null,null,"No change",null,0]
[null,1,null,null,null,null,null,null,"Drip",0,"OK",null,null,null,"No change",null,0]
[null,1,null,null,null,null,null,null,"Drip",0,"OK",null,null,null,"No change",null,0]
[null,1,null,null,null,null,null,null,"Drip",0,"OK",null,null,null,"No change",null,0]
[null,1,null,null,null,null,null,null,"Drip",0,"OK",null,null,null,"No change",null,0]
[null,1,null,null,null,null,null,null,"Drip",0,"OK",null,null,null,"No change",null,0]
[null,1,null,null,null,null,null,null,"Drip",0,"OK",null,null,null,"No change",null,0]
[null,1,null,null,null,null,null,null,"Drip",0,"OK",null,null,null,"No change",null,0]
[null,1,null,null,null,null,null,null,"Drip",0,"OK",null,null,null,"No change",null,0]
[null,1,null,null,null,null,null,null,"Drip",0,"OK",null,null,null,"No change",null,0]
[null,1,null,null,null,null,null,null,"Drip",0,"OK",null,null,null,"No change",null,0]
[null,1,null,null,null,null,null,null,"Drip",0,"OK",null,null,null,"No change",null,0]
[null,1,null,null,null,null,null,null,"Drip",0,"OK",null,null,null,"No change",null,0]
[null,1,null,null,null,null,null,null,"Drip",0,"OK",null,null,null,"No change",null,0]
[null,1,null,null,null,null,null,null,"Drip",0,"OK",null,null,null,"No change",null,0]
[null,1,null,null,null,null,null,null,"Drip",0,"OK",null,null,null,"No change",null,0]
[null,1,null,null,null,null,null,null,"Drip",0,"OK",null,null,null,"No change",null,0]
[null,1,null,null,null,null,null,null,"Drip",0,"OK",null,null,null,"No change",null,0]
[null,1,null,null,null,null,null,null,"Drip",0,"OK",null,null,null,"No change",null,0]
[null,1,null,null,null,null,null,null,"Drip",0,"OK",null,null,null,"No change",null,0]
[null,1,null,null,null,null,null,null,"Drip",0,"OK",null,null,null,"No change",null,0]
[null,1,null,null,null,null,null,null,"Drip",0,"OK",null,null,null,"No change",null,0]
[null,1,null,null,null,null,null,null,"Drip",0,"OK",null,null,null,"No change",null,0]
[null,1,null,null,null,null,null,null,"Drip",0,"OK",null,null,null,"No change",null,0]
[null,1,null,null,null,null,null,null,"Drip",0,"OK",null,null,null,"No change",null,0]
[null,1,null,null,null,null,null,null,"Drip",0,"OK",null,null,null,"No change",null,0]
[null,1,null,null,null,null,null,null,"Drip",0,"OK",null,null,null,"No change",null,0]
[null,1,null,null,null,null,null,null,"Drip",0,"OK",null,null,null,"No change",null,0]
[null,1,null,null,null,null,null,null,"Drip",0,"OK",null,null,null,"No change",null,0]
[null,1,null,null,null,null,null,null,"Drip",0,"OK",null,null,null,"No change",null,0]
[null,1,null,null,null,null,null,null,"Drip",0,"OK",null,null,null,"No change",null,0]
[null,1,null,null,null,null,null,null,"Drip",0,"OK",null,null,null,"No change",null,0]
[null,1,null,null,null,null,null,null,"Drip",0,"OK",null,null,null,"No change",null,0]
[null,1,null,null,null,null,null,null,"Drip",0,"OK",null,null,null,"No change",null,0]
[null,1,null,null,null,null,null,null,"Drip",0,"OK",null,null,null,"No change",null,0]
[null,1,null,null,null,null,null,null,"Drip",0,"OK",null,null,null,"No change",null,0]
[null,1,null,null,null,null,null,null,"Drip",0,"OK",null,null,null,"No change",null,0]
[null,1,null,null,null,null,null,null,"Drip",0,"OK",null,null,null,"No change",null,0]
[null,1,null,null,null,null,null,null,"Drip",0,"OK",null,null,null,"No change",null,0]
[null,1,null,null,null,null,null,null,"Drip",0,"OK",null,null,null,"No change",null,0]
[null,1,null,null,null,null,null,null,"Drip",0,"OK",null,null,null,"No change",null,0]
[null,1,null,null,null,null,null,null,"Drip",0,"OK",null,null,null,"No change",null,0]
[null,1,null,null,null,null,null,null,"Drip",0,"OK",null,null,null,"No change",null,0]
[null,1,null,null,null,null,null,null,"Drip",0,"OK",null,null,null,"No change",null,0]
[null,1,null,null,null,null,null,null,"Drip",0,"OK",null,null,null,"No change",null,0]
[null,1,null,null,null,null,null,null,"Drip",0,"OK",null,null,null,"No change",null,0]
[null,1,null,null,null,null,null,null,"Drip",0,"OK",null,null,null,"No change",null,0]
[null,1,null,null,null,null,null,null,"Drip",0,"OK",null,null,null,"No change",null,0]
[null,1,null,null,null,null,null,null,"Drip",0,"OK",null,null,null,"No change",null,0]
[null,1,null,null,null,null,null,null,"Drip",0,"OK",null,null,null,"No change",null,0]
[null,1,null,null,null,null,null,null,"Drip",0,"OK",null,null,null,"No change",null,0]
[null,1,null,null,null,null,null,null,"Drip",0,"OK",null,null,null,"No change",null,0]
[null,1,null,null,null,null,null,null,"Drip",0,"OK",null,null,null,"No change",null,0]
[null,1,null,null,null,null,null,null,"Drip",0,"OK",null,null,null,"No change",null,0]
[null,1,null,null,null,null,null,null,"Drip",0,"OK",null,null,null,"No change",null,0]
[null,1,null,null,null,null,null,null,"Drip",0,"OK",null,null,null,"No change",null,0]
[null,1,null,null,null,null,null,null,"Drip",0,"OK",null,null,null,"No change",null,0]
[null,1,null,null,null,null,null,null,"Drip",0,"OK",null,null,null,"No change",null,0]
[null,1,null,null,null,null,null,null,"Drip",0,"OK",null,null,null,"No change",null,0]
[null,1,null,null,null,null,null,null,"Drip",0,"OK",null,null,null,"No change",null,0]
[null,1,null,null,null,null,null,null,"Drip",0,"OK",null,null,null,"No change",null,0]
[null,1,null,null,null,null,null,null,"Drip",0,"OK",null,null,null,"No change",null,0]
[null,1,null,null,null,null,null,null,"Drip",0,"OK",null,null,null,"No change",null,0]
[null,1,null,null,null,null,null,null,"Drip",0,"OK",null,null,null,"No change",null,0]
[null,1,null,null,null,null,null,null,"Drip",0,"OK",null,null,null,"No change",null,0]
[null,1,null,null,null,null,null,null,"Drip",0,"OK",null,null,null,"No change",null,0]
[null,1,null,null,null,null,null,null,"Drip",0,"OK",null,null,null,"No change",null,0]
[null,1,null,null,null,null,null,null,"Drip",0,"OK",null,null,null,"No change",null,0]
[null,1,null,null,null,null,null,null,"Drip",0,"OK",null,null,null,"No change",null,0]
[null,1,null,null,null,null,null,null,"Drip",0,"OK",null,null,null,"No change",null,0]
[null,1,null,null,null,null,null,null,"Drip",0,"OK",null,null,null,"No change",null,0]
[null,1,null,null,null,null,null,null,"Drip",0,"OK",null,null,null,"No change",null,0]
[null,1,null,null,null,null,null,null,"Drip",0,"OK",null,null,null,"No change",null,0]
[null,1,null,null,null,null,null,null,"Drip",0,"OK",null,null,null,"No change",null,0]
[null,1,null,null,null,null,null,null,"Drip",0,"OK",null,null,null,"No change",null,0]
[null,1,null,null,null,null,null,null,"Drip",0,"OK",null,null,null,"No change",null,0]
[null,1,null,null,null,null,null,null,"Drip",0,"OK",null,null,null,"No change",null,0]
[null,1,null,null,null,null,null,null,"Drip",0,"OK",null,null,null,"No change",null,0]
[null,1,null,null,null,null,null,null,"Drip",0,"OK",null,null,null,"No change",null,0]
[null,1,null,null,null,null,null,null,"Drip",0,"OK",null,null,null,"No change",null,0]
[null,1,null,null,null,null,null,null,"Drip",0,"OK",null,null,null,"No change",null,0]
[null,1,null,null,null,null,null,null,"Drip",0,"OK",null,null,null,"No change",null,0]
[null,1,null,null,null,null,null,null,"Drip",0,"OK",null,null,null,"No change",null,0]
[null,1,null,null,null,null,null,null,"Drip",0,"OK",null,null,null,"No change",null,0]
[null,1,null,null,null,null,null,null,"Drip",0,"OK",null,null,null,"No change",null,0]
[null,1,null,null,null,null,null,null,"Drip",0,"OK",null,null,null,"No change",null,0]
[null,1,null,null,null,null,null,null,"Drip",0,"OK",null,null,null,"No change",null,0]
[null,1,null,null,null,null,null,null,"Drip",0,"OK",null,null,null,"No change",null,0]
[null,1,null,null,null,null,null,null,"Drip",0,"OK",null,null,null,"No change",null,0]
[null,1,null,null,null,null,null,null,"Drip",0,"OK",null,null,null,"No change",null,0]
[null,1,null,null,null,null,null,null,"Drip",0,"OK",null,null,null,"No change",null,0]
[null,1,null,null,null,null,null,null,"Drip",0,"OK",null,null,null,"No change",null,0]
[null,1,null,null,null,null,null,null,"Drip",0,"OK",null,null,null,"No change",null,0]
[null,1,null,null,null,null,null,null,"Drip",0,"OK",null,null,null,"No change",null,0]
[null,1,null,null,null,null,null,null,"Drip",0,"OK",null,null,null,"No change",null,0]
[null,1,null,null,null,null,null,null,"Drip",0,"OK",null,null,null,"No change",null,0]
[null,1,null,null,null,null,null,null,"Drip",0,"OK",null,null,null,"No change",null,0]
[null,1,null,null,null,null,null,null,"Drip",0,"OK",null,null,null,"No change",null,0]
[null,1,null,null,null,null,null,null,"Drip",0,"OK",null,null,null,"No change",null,0]
[null,1,null,null,null,null,null,null,"Drip",0,"OK",null,null,null,"No change",null,0]
[null,1,null,null,null,null,null,null,"Drip",0,"OK",null,null,null,"No change",null,0]
[null,1,null,null,null,null,null,null,"Drip",0,"OK",null,null,null,"No change",null,0]
[null,1,null,null,null,null,null,null,"Drip",0,"OK",null,null,null,"No change",null,0]
[null,1,null,null,null,null,null,null,"Drip",0,"OK",null,null,null,"No change",null,0]
[null,1,null,null,null,null,null,null,"Drip",0,"OK",null,null,null,"No change",null,0]
[null,1,null,null,null,null,null,null,"Drip",0,"OK",null,null,null,"No change",null,0]
[null,1,null,null,null,null,null,null,"Drip",0,"OK",null,null,null,"No change",null,0]
[null,1,null,null,null,null,null,null,"Drip",0,"OK",null,null,null,"No change",null,0]
[null,1,null,null,null,null,null,null,"Drip",0,"OK",null,null,null,"No change",null,0]
[null,1,null,null,null,null,null,null,"Drip",0,"OK",null,null,null,"No change",null,0]
[null,1,null,null,null,null,null,null,"Drip",0,"OK",null,null,null,"No change",null,0]
[null,1,null,null,null,null,null,null,"Drip",0,"OK",null,null,null,"No change",null,0]
[null,1,null,null,null,null,null,null,"Drip",0,"OK",null,null,null,"No change",null,0]
[null,1,null,null,null,null,null,null,"Drip",0,"OK",null,null,null,"No change",null,0]
[null,1,null,null,null,null,null,null,"Drip",0,"OK",null,null,null,"No change",null,0]
[null,1,null,null,null,null,null,null,"Drip",0,"OK",null,null,null,"No change",null,0]
[null,1,null,null,null,null,null,null,"Drip",0,"OK",null,null,null,"No change",null,0]
[null,1,null,null,null,null,null,null,"Drip",0,"OK",null,null,null,"No change",null,0]
[null,1,null,null,null,null,null,null,"Drip",0,"OK",null,null,null,"No change",null,0]
[null,1,null,null,null,null,null,null,"Drip",0,"OK",null,null,null,"No change",null,0]
[null,1,null,null,null,null,null,null,"Drip",0,"OK",null,null,null,"No change",null,0]
[null,1,null,null,null,null,null,null,"Drip",0,"OK",null,null,null,"No change",null,0]
[null,1,null,null,null,null,null,null,"Drip",0,"OK",null,null,null,"No change",null,0]
[null,1,null,null,null,null,null,null,"Drip",0,"OK",null,null,null,"No change",null,0]
[null,1,null,null,null,null,null,null,"Drip",0,"OK",null,null,null,"No change",null,0]
[null,1,null,null,null,null,null,null,"Drip",0,"OK",null,null,null,"No change",null,0]
[null,1,null,null,null,null,null,null,"Drip",0,"OK",null,null,null,"No change",null,0]
[null,1,null,null,null,null,null,null,"Drip",0,"OK",null,null,null,"No change",null,0]
[null,1,null,null,null,null,null,null,"Drip",0,"OK",null,null,null,"No change",null,0]
[null,1,null,null,null,null,null,null,"Drip",0,"OK",null,null,null,"No change",null,0]
[null,1,null,null,null,null,null,null,"Drip",0,"OK",null,null,null,"No change",null,0]
[null,1,null,null,null,null,null,null,"Drip",0,"OK",null,null,null,"No change",null,0]
[null,1,null,null,null,null,null,null,"Drip",0,"OK",null,null,null,"No change",null,0]
[null,1,null,null,null,null,null,null,"Drip",0,"OK",null,null,null,"No change",null,0]
[null,1,null,null,null,null,null,null,"Drip",0,"OK",null,null,null,"No change",null,0]
[null,1,null,null,null,null,null,null,"Drip",0,"OK",null,null,null,"No change",null,0]
[null,1,null,null,null,null,null,null,"Drip",0,"OK",null,null,null,"No change",null,0]
[null,1,null,null,null,null,null,null,"Drip",0,"OK",null,null,null,"No change",null,0]
[null,1,null,null,null,null,null,null,"Drip",0,"OK",null,null,null,"No change",null,0]
[null,1,null,null,null,null,null,null,"Drip",0,"OK",null,null,null,"No change",null,0]
[null,1,null,null,null,null,null,null,"Drip",0,"OK",null,null,null,"No change",null,0]
[null,1,null,null,null,null,null,null,"Drip",0,"OK",null,null,null,"No change",null,0]
[null,1,null,null,null,null,null,null,"Drip",0,"OK",null,null,null,"No change",null,0]
[null,1,null,null,null,null,null,null,"Drip",0,"OK",null,null,null,"No change",null,0]
[null,1,null,null,null,null,null,null,"Drip",0,"OK",null,null,null,"No change",null,0]
[null,1,null,null,null,null,null,null,"Drip",0,"OK",null,null,null,"No change",null,0]
[null,1,null,null,null,null,null,null,"Drip",0,"OK",null,null,null,"No change",null,0]
[null,1,null,null,null,null,null,null,"Drip",0,"OK",null,null,null,"No change",null,0]
[null,1,null,null,null,null,null,null,"Drip",0,"OK",null,null,null,"No change",null,0]
[null,1,null,null,null,null,null,null,"Drip",0,"OK",null,null,null,"No change",null,0]
[null,1,null,null,null,null,null,null,"Drip",0,"OK",null,null,null,"No change",null,0]
[null,1,null,null,null,null,null,null,"Drip",0,"OK",null,null,null,"No change",null,0]
[null,1,null,null,null,null,null,null,"Drip",0,"OK",null,null,null,"No change",null,0]
[null,1,null,null,null,null,null,null,"Drip",0,"OK",null,null,null,"No change",null,0]
[null,1,null,null,null,null,null,null,"Drip",0,"OK",null,null,null,"No change",null,0]
[null,1,null,null,null,null,null,null,"Drip",0,"OK",null,null,null,"No change",null,0]
[null,1,null,null,null,null,null,null,"Drip",0,"OK",null,null,null,"No change",null,0]
[null,1,null,null,null,null,null,null,"Drip",0,"OK",null,null,null,"No change",null,0]
[null,1,null,null,null,null,null,null,"Drip",0,"OK",null,null,null,"No change",null,0]
[null,1,null,null,null,null,null,null,"Drip",0,"OK",null,null,null,"No change",null,0]
[null,1,null,null,null,null,null,null,"Drip",0,"OK",null,null,null,"No change",null,0]
[null,1,null,null,null,null,null,null,"Drip",0,"OK",null,null,null,"No change",null,0]
[null,1,null,null,null,null,null,null,"Drip",0,"OK",null,null,null,"No change",null,0]
[null,1,null,null,null,null,null,null,"Drip",0,"OK",null,null,null,"No change",null,0]
[null,1,null,null,null,null,null,null,"Drip",0,"OK",null,null,null,"No change",null,0]
[null,1,null,null,null,null,null,null,"Drip",0,"OK",null,null,null,"No change",null,0]
[null,1,null,null,null,null,null,null,"Drip",0,"OK",null,null,null,"No change",null,0]
[null,1,null,null,null,null,null,null,"Drip",0,"OK",null,null,null,"No change",null,0]
[null,1,null,null,null,null,null,null,"Drip",0,"OK",null,null,null,"No change",null,0]
[null,1,null,null,null,null,null,null,"Drip",0,"OK",null,null,null,"No change",null,0]
[null,1,null,null,null,null,null,null,"Drip",0,"OK",null,null,null,"No change",null,0]
[null,1,null,null,null,null,null,null,"Drip",0,"OK",null,null,null,"No change",null,0]
[null,1,null,null,null,null,null,null,"Drip",0,"OK",null,null,null,"No change",null,0]
[null,1,null,null,null,null,null,null,"Drip",0,"OK",null,null,null,"No change",null,0]
[null,1,null,null,null,null,null,null,"Drip",0,"OK",null,null,null,"No change",null,0]
[null,1,null,null,null,null,null,null,"Drip",0,"OK",null,null,null,"No change",null,0]
[null,1,null,null,null,null,null,null,"Drip",0,"OK",null,null,null,"No change",null,0]
[null,1,null,null,null,null,null,null,"Drip",0,"OK",null,null,null,"No change",null,0]
[null,1,null,null,null,null,null,null,"Drip",0,"OK",null,null,null,"No change",null,0]
[null,1,null,null,null,null,null,null,"Drip",0,"OK",null,null,null,"No change",null,0]
[null,1,null,null,null,null,null,null,"Drip",0,"OK",null,null,null,"No change",null,0]
[null,1,null,null,null,null,null,null,"Drip",0,"OK",null,null,null,"No change",null,0]
[null,1,null,null,null,null,null,null,"Drip",0,"OK",null,null,null,"No change",null,0]
[null,1,null,null,null,null,null,null,"Drip",0,"OK",null,null,null,"No change",null,0]
[null,1,null,null,null,null,null,null,"Drip",0,"OK",null,null,null,"No change",null,0]
[null,1,null,null,null,null,null,null,"Drip",0,"OK",null,null,null,"No change",null,0]
[null,1,null,null,null,null,null,null,"Drip",0,"OK",null,null,null,"No change",null,0]
[null,1,null,null,null,null,null,null,"Drip",0,"OK",null,null,null,"No change",null,0]
[null,1,null,null,null,null,null,null,"Drip",0,"OK",null,null,null,"No change",null,0]
[null,1,null,null,null,null,null,null,"Drip",0,"OK",null,null,null,"No change",null,0]
[null,1,null,null,null,null,null,null,"Drip",0,"OK",null,null,null,"No change",null,0]
[null,1,null,null,null,null,null,null,"Drip",0,"OK",null,null,null,"No change",null,0]
[null,1,null,null,null,null,null,null,"Drip",0,"OK",null,null,null,"No change",null,0]
[null,1,null,null,null,null,null,null,"Drip",0,"OK",null,null,null,"No change",null,0]
[null,1,null,null,null,null,null,null,"Drip",0,"OK",null,null,null,"No change",null,0]
[null,1,null,null,null,null,null,null,"Drip",0,"OK",null,null,null,"No change",null,0]
[null,1,null,null,null,null,null,null,"Drip",0,"OK",null,null,null,"No change",null,0]
[null,1,null,null,null,null,null,null,"Drip",0,"OK",null,null,null,"No change",null,0]
[null,1,null,null,null,null,null,null,"Drip",0,"OK",null,null,null,"No change",null,0]
[null,1,null,null,null,null,null,null,"Drip",0,"OK",null,null,null,"No change",null,0]
[null,1,null,null,null,null,null,null,"Drip",0,"OK",null,null,null,"No change",null,0]
[null,1,null,null,null,null,null,null,"Drip",0,"OK",null,null,null,"No change",null,0]
[null,1,null,null,null,null,null,null,"Drip",0,"OK",null,null,null,"No change",null,0]
[null,1,null,null,null,null,null,null,"Drip",0,"OK",null,null,null,"No change",null,0]
[null,1,null,null,null,null,null,null,"Drip",0,"OK",null,null,null,"No change",null,0]
[null,1,null,null,null,null,null,null,"Drip",0,"OK",null,null,null,"No change",null,0]
[null,1,null,null,null,null,null,null,"Drip",0,"OK",null,null,null,"No change",null,0]
[null,1,null,null,null,null,null,null,"Drip",0,"OK",null,null,null,"No change",null,0]
[null,1,null,null,null,null,null,null,"Drip",0,"OK",null,null,null,"No change",null,0]
[null,1,null,null,null,null,null,null,"Drip",0,"OK",null,null,null,"No change",null,0]
[null,1,null,null,null,null,null,null,"Drip",0,"OK",null,null,null,"No change",null,0]
[null,1,null,null,null,null,null,null,"Drip",0,"OK",null,null,null,"No change",null,0]
[null,1,null,null,null,null,null,null,"Drip",0,"OK",null,null,null,"No change",null,0]
[null,1,null,null,null,null,null,null,"Drip",0,"OK",null,null,null,"No change",null,0]
[null,1,null,null,null,null,null,null,"Drip",0,"OK",null,null,null,"No change",null,0]
[null,1,null,null,null,null,null,null,"Drip",0,"OK",null,null,null,"No change",null,0]
[null,1,null,null,null,null,null,null,"Drip",0,"OK",null,null,null,"No change",null,0]
[null,1,null,null,null,null,null,null,"Drip",0,"OK",null,null,null,"No change",null,0]
[null,1,null,null,null,null,null,null,"Drip",0,"OK",null,null,null,"No change",null,0]
[null,1,null,null,null,null,null,null,"Drip",0,"OK",null,null,null,"No change",null,0]
[null,1,null,null,null,null,null,null,"Drip",0,"OK",null,null,null,"No change",null,0]
[null,1,null,null,null,null,null,null,"Drip",0,"OK",null,null,null,"No change",null,0]
[null,1,null,null,null,null,null,null,"Drip",0,"OK",null,null,null,"No change",null,0]
[null,1,null,null,null,null,null,null,"Drip",0,"OK",null,null,null,"No change",null,0]
[null,1,null,null,null,null,null,null,"Drip",0,"OK",null,null,null,"No change",null,0]
[null,1,null,null,null,null,null,null,"Drip",0,"OK",null,null,null,"No change",null,0]
[null,1,null,null,null,null,null,null,"Drip",0,"OK",null,null,null,"No change",null,0]
[null,1,null,null,null,null,null,null,"Drip",0,"OK",null,null,null,"No change",null,0]
[null,1,null,null,null,null,null,null,"Drip",0,"OK",null,null,null,"No change",null,0]
[null,1,null,null,null,null,null,null,"Drip",0,"OK",null,null,null,"No change",null,0]
[null,1,null,null,null,null,null,null,"Drip",0,"OK",null,null,null,"No change",null,0]
[null,1,null,null,null,null,null,null,"Drip",0,"OK",null,null,null,"No change",null,0]
[null,1,null,null,null,null,null,null,"Drip",0,"OK",null,null,null,"No change",null,0]
[null,1,null,null,null,null,null,null,"Drip",0,"OK",null,null,null,"No change",null,0]
[null,1,null,null,null,null,null,null,"Drip",0,"OK",null,null,null,"No change",null,0]
[null,1,null,null,null,null,null,null,"Drip",0,"OK",null,null,null,"No change",null,0]
[null,1,null,null,null,null,null,null,"Drip",0,"OK",null,null,null,"No change",null,0]
[null,1,null,null,null,null,null,null,"Drip",0,"OK",null,null,null,"No change",null,0]
[null,1,null,null,null,null,null,null,"Drip",0,"OK",null,null,null,"No change",null,0]
[null,1,null,null,null,null,null,null,"Drip",0,"OK",null,null,null,"No change",null,0]
[null,1,null,null,null,null,null,null,"Drip",0,"OK",null,null,null,"No change",null,0]
[null,1,null,null,null,null,null,null,"Drip",0,"OK",null,null,null,"No change",null,0]
[null,1,null,null,null,null,null,null,"Drip",0,"OK",null,null,null,"No change",null,0]
[null,1,null,null,null,null,null,null,"Drip",0,"OK",null,null,null,"No change",null,0]
[null,1,null,null,null,null,null,null,"Drip",0,"OK",null,null,null,"No change",null,0]
[null,1,null,null,null,null,null,null,"Drip",0,"OK",null,null,null,"No change",null,0]
[null,1,null,null,null,null,null,null,"Drip",0,"OK",null,null,null,"No change",null,0]
[null,1,null,null,null,null,null,null,"Drip",0,"OK",null,null,null,"No change",null,0]
[null,1,null,null,null,null,null,null,"Drip",0,"OK",null,null,null,"No change",null,0]
[null,1,null,null,null,null,null,null,"Drip",0,"OK",null,null,null,"No change",null,0]
[null,1,null,null,null,null,null,null,"Drip",0,"OK",null,null,null,"No change",null,0]
[null,1,null,null,null,null,null,null,"Drip",0,"OK",null,null,null,"No change",null,0]
[null,1,null,null,null,null,null,null,"Drip",0,"OK",null,null,null,"No change",null,0]
[null,1,null,null,null,null,null,null,"Drip",0,"OK",null,null,null,"No change",null,0]
[null,1,null,null,null,null,null,null,"Drip",0,"OK",null,null,null,"No change",null,0]
[null,1,null,null,null,null,null,null,"Drip",0,"OK",null,null,null,"No change",null,0]
[null,1,null,null,null,null,null,null,"Drip",0,"OK",null,null,null,"No change",null,0]
[null,1,null,null,null,null,null,null,"Drip",0,"OK",null,null,null,"No change",null,0]
[null,1,null,null,null,null,null,null,"Drip",0,"OK",null,null,null,"No change",null,0]
[null,1,null,null,null,null,null,null,"Drip",0,"OK",null,null,null,"No change",null,0]
[null,1,null,null,null,null,null,null,"Drip",0,"OK",null,null,null,"No change",null,0]
[null,1,null,null,null,null,null,null,"Drip",0,"OK",null,null,null,"No change",null,0]
[null,1,null,null,null,null,null,null,"Drip",0,"OK",null,null,null,"No change",null,0]
[null,1,null,null,null,null,null,null,"Drip",0,"OK",null,null,null,"No change",null,0]
[null,1,null,null,null,null,null,null,"Drip",0,"OK",null,null,null,"No change",null,0]
[null,1,null,null,null,null,null,null,"Drip",0,"OK",null,null,null,"No change",null,0]
[null,1,null,null,null,null,null,null,"Drip",0,"OK",null,null,null,"No change",null,0]
[null,1,null,null,null,null,null,null,"Drip",0,"OK",null,null,null,"No change",null,0]
[null,1,null,null,null,null,null,null,"Drip",0,"OK",null,null,null,"No change",null,0]
[null,1,null,null,null,null,null,null,"Drip",0,"OK",null,null,null,"No change",null,0]
[null,1,null,null,null,null,null,null,"Drip",0,"OK",null,null,null,"No change",null,0]
[null,1,null,null,null,null,null,null,"Drip",0,"OK",null,null,null,"No change",null,0]
[null,1,null,null,null,null,null,null,"Drip",0,"OK",null,null,null,"No change",null,0]
[null,1,null,null,null,null,null,null,"Drip",0,"OK",null,null,null,"No change",null,0]
[null,1,null,null,null,null,null,null,"Drip",0,"OK",null,null,null,"No change",null,0]
[null,1,null,null,null,null,null,null,"Drip",0,"OK",null,null,null,"No change",null,0]
[null,1,null,null,null,null,null,null,"Drip",0,"OK",null,null,null,"No change",null,0]
[null,1,null,null,null,null,null,null,"Drip",0,"OK",null,null,null,"No change",null,0]
[null,1,null,null,null,null,null,null,"Drip",0,"OK",null,null,null,"No change",null,0]
[null,1,null,null,null,null,null,null,"Drip",0,"OK",null,null,null,"No change",null,0]
[null,1,null,null,null,null,null,null,"Drip",0,"OK",null,null,null,"No change",null,0]
[null,1,null,null,null,null,null,null,"Drip",0,"OK",null,null,null,"No change",null,0]
[null,1,null,null,null,null,null,null,"Drip",0,"OK",null,null,null,"No change",null,0]
[null,1,null,null,null,null,null,null,"Drip",0,"OK",null,null,null,"No change",null,0]
[null,1,null,null,null,null,null,null,"Drip",0,"OK",null,null,null,"No change",null,0]
[null,1,null,null,null,null,null,null,"Drip",0,"OK",null,null,null,"No change",null,0]
[null,1,null,null,null,null,null,null,"Drip",0,"OK",null,null,null,"No change",null,0]
[null,1,null,null,null,null,null,null,"Drip",0,"OK",null,null,null,"No change",null,0]
[null,1,null,null,null,null,null,null,"Drip",0,"OK",null,null,null,"No change",null,0]
[null,1,null,null,null,null,null,null,"Drip",0,"OK",null,null,null,"No change",null,0]
[null,1,null,null,null,null,null,null,"Drip",0,"OK",null,null,null,"No change",null,0]
[null,1,null,null,null,null,null,null,"Drip",0,"OK",null,null,null,"No change",null,0]
[null,1,null,null,null,null,null,null,"Drip",0,"OK",null,null,null,"No change",null,0]
[null,1,null,null,null,null,null,null,"Drip",0,"OK",null,null,null,"No change",null,0]
[null,1,null,null,null,null,null,null,"Drip",0,"OK",null,null,null,"No change",null,0]
[null,1,null,null,null,null,null,null,"Drip",0,"OK",null,null,null,"No change",null,0]
[null,1,null,null,null,null,null,null,"Drip",0,"OK",null,null,null,"No change",null,0]
[null,1,null,null,null,null,null,null,"Drip",0,"OK",null,null,null,"No change",null,0]
[null,1,null,null,null,null,null,null,"Drip",0,"OK",null,null,null,"No change",null,0]
[null,1,null,null,null,null,null,null,"Drip",0,"OK",null,null,null,"No change",null,0]
[null,1,null,null,null,null,null,null,"Drip",0,"OK",null,null,null,"No change",null,0]
[null,1,null,null,null,null,null,null,"Drip",0,"OK",null,null,null,"No change",null,0]
[null,1,null,null,null,null,null,null,"Drip",0,"OK",null,null,null,"No change",null,0]
[null,1,null,null,null,null,null,null,"Drip",0,"OK",null,null,null,"No change",null,0]
[null,1,null,null,null,null,null,null,"Drip",0,"OK",null,null,null,"No change",null,0]
[null,1,null,null,null,null,null,null,"Drip",0,"OK",null,null,null,"No change",null,0]
[null,1,null,null,null,null,null,null,"Drip",0,"OK",null,null,null,"No change",null,0]
[null,1,null,null,null,null,null,null,"Drip",0,"OK",null,null,null,"No change",null,0]
[null,1,null,null,null,null,null,null,"Drip",0,"OK",null,null,null,"No change",null,0]
[null,1,null,null,null,null,null,null,"Drip",0,"OK",null,null,null,"No change",null,0]
[null,1,null,null,null,null,null,null,"Drip",0,"OK",null,null,null,"No change",null,0]
[null,1,null,null,null,null,null,null,"Drip",0,"OK",null,null,null,"No change",null,0]
[null,1,null,null,null,null,null,null,"Drip",0,"OK",null,null,null,"No change",null,0]
[null,1,null,null,null,null,null,null,"Drip",0,"OK",null,null,null,"No change",null,0]
[null,1,null,null,null,null,null,null,"Drip",0,"OK",null,null,null,"No change",null,0]
[null,1,null,null,null,null,null,null,"Drip",0,"OK",null,null,null,"No change",null,0]
[null,1,null,null,null,null,null,null,"Drip",0,"OK",null,null,null,"No change",null,0]
[null,1,null,null,null,null,null,null,"Drip",0,"OK",null,null,null,"No change",null,0]
[null,1,null,null,null,null,null,null,"Drip",0,"OK",null,null,null,"No change",null,0]
[null,1,null,null,null,null,null,null,"Drip",0,"OK",null,null,null,"No change",null,0]
[null,1,null,null,null,null,null,null,"Drip",0,"OK",null,null,null,"No change",null,0]
[null,1,null,null,null,null,null,null,"Drip",0,"OK",null,null,null,"No change",null,0]
[null,1,null,null,null,null,null,null,"Drip",0,"OK",null,null,null,"No change",null,0]
[null,1,null,null,null,null,null,null,"Drip",0,"OK",null,null,null,"No change",null,0]
[null,1,null,null,null,null,null,null,"Drip",0,"OK",null,null,null,"No change",null,0]
[null,1,null,null,null,null,null,null,"Drip",0,"OK",null,null,null,"No change",null,0]
[null,1,null,null,null,null,null,null,"Drip",0,"OK",null,null,null,"No change",null,0]
[null,1,null,null,null,null,null,null,"Drip",0,"OK",null,null,null,"No change",null,0]
[null,1,null,null,null,null,null,null,"Drip",0,"OK",null,null,null,"No change",null,0]
[null,1,null,null,null,null,null,null,"Drip",0,"OK",null,null,null,"No change",null,0]
[null,1,null,null,null,null,null,null,"Drip",0,"OK",null,null,null,"No change",null,0]
[null,1,null,null,null,null,null,null,"Drip",0,"OK",null,null,null,"No change",null,0]
[null,1,null,null,null,null,null,null,"Drip",0,"OK",null,null,null,"No change",null,0]
[null,1,null,null,null,null,null,null,"Drip",0,"OK",null,null,null,"No change",null,0]
[null,1,null,null,null,null,null,null,"Drip",0,"OK",null,null,null,"No change",null,0]
[null,1,null,null,null,null,null,null,"Drip",0,"OK",null,null,null,"No change",null,0]
[null,1,null,null,null,null,null,null,"Drip",0,"OK",null,null,null,"No change",null,0]
[null,1,null,null,null,null,null,null,"Drip",0,"OK",null,null,null,"No change",null,0]
[null,1,null,null,null,null,null,null,"Drip",0,"OK",null,null,null,"No change",null,0]
[null,1,null,null,null,null,null,null,"Drip",0,"OK",null,null,null,"No change",null,0]
[null,1,null,null,null,null,null,null,"Drip",0,"OK",null,null,null,"No change",null,0]
[null,1,null,null,null,null,null,null,"Drip",0,"OK",null,null,null,"No change",null,0]
[null,1,null,null,null,null,null,null,"Drip",0,"OK",null,null,null,"No change",null,0]
[null,1,null,null,null,null,null,null,"Drip",0,"OK",null,null,null,"No change",null,0]
[null,1,null,null,null,null,null,null,"Drip",0,"OK",null,null,null,"No change",null,0]
[null,1,null,null,null,null,null,null,"Drip",0,"OK",null,null,null,"No change",null,0]
[null,1,null,null,null,null,null,null,"Drip",0,"OK",null,null,null,"No change",null,0]
[null,1,null,null,null,null,null,null,"Drip",0,"OK",null,null,null,"No change",null,0]
[null,1,null,null,null,null,null,null,"Drip",0,"OK",null,null,null,"No change",null,0]
[null,1,null,null,null,null,null,null,"Drip",0,"OK",null,null,null,"No change",null,0]
[null,1,null,null,null,null,null,null,"Drip",0,"OK",null,null,null,"No change",null,0]
[null,1,null,null,null,null,null,null,"Drip",0,"OK",null,null,null,"No change",null,0]
[null,1,null,null,null,null,null,null,"Drip",0,"OK",null,null,null,"No change",null,0]
[null,1,null,null,null,null,null,null,"Drip",0,"OK",null,null,null,"No change",null,0]
[null,1,null,null,null,null,null,null,"Drip",0,"OK",null,null,null,"No change",null,0]
[null,1,null,null,null,null,null,null,"Drip",0,"OK",null,null,null,"No change",null,0]
[null,1,null,null,null,null,null,null,"Drip",0,"OK",null,null,null,"No change",null,0]
[null,1,null,null,null,null,null,null,"Drip",0,"OK",null,null,null,"No change",null,0]
[null,1,null,null,null,null,null,null,"Drip",0,"OK",null,null,null,"No change",null,0]
[null,1,null,null,null,null,null,null,"Drip",0,"OK",null,null,null,"No change",null,0]
[null,1,null,null,null,null,null,null,"Drip",0,"OK",null,null,null,"No change",null,0]
[null,1,null,null,null,null,null,null,"Drip",0,"OK",null,null,null,"No change",null,0]
[null,1,null,null,null,null,null,null,"Drip",0,"OK",null,null,null,"No change",null,0]
[null,1,null,null,null,null,null,null,"Drip",0,"OK",null,null,null,"No change",null,0]
[null,1,null,null,null,null,null,null,"Drip",0,"OK",null,null,null,"No change",null,0]
[null,1,null,null,null,null,null,null,"Drip",0,"OK",null,null,null,"No change",null,0]
[null,1,null,null,null,null,null,null,"Drip",0,"OK",null,null,null,"No change",null,0]
[null,1,null,null,null,null,null,null,"Drip",0,"OK",null,null,null,"No change",null,0]
[null,1,null,null,null,null,null,null,"Drip",0,"OK",null,null,null,"No change",null,0]
[null,1,null,null,null,null,null,null,"Drip",0,"OK",null,null,null,"No change",null,0]
[null,1,null,null,null,null,null,null,"Drip",0,"OK",null,null,null,"No change",null,0]
[null,1,null,null,null,null,null,null,"Drip",0,"OK",null,null,null,"No change",null,0]
[null,1,null,null,null,null,null,null,"Drip",0,"OK",null,null,null,"No change",null,0]
[null,1,null,null,null,null,null,null,"Drip",0,"OK",null,null,null,"No change",null,0]
[null,1,null,null,null,null,null,null,"Drip",0,"OK",null,null,null,"No change",null,0]
[null,1,null,null,null,null,null,null,"Drip",0,"OK",null,null,null,"No change",null,0]
[null,1,null,null,null,null,null,null,"Drip",0,"OK",null,null,null,"No change",null,0]
[null,1,null,null,null,null,null,null,"Drip",0,"OK",null,null,null,"No change",null,0]
[null,1,null,null,null,null,null,null,"Drip",0,"OK",null,null,null,"No change",null,0]
[null,1,null,null,null,null,null,null,"Drip",0,"OK",null,null,null,"No change",null,0]
[null,1,null,null,null,null,null,null,"Drip",0,"OK",null,null,null,"No change",null,0]
[null,1,null,null,null,null,null,null,"Drip",0,"OK",null,null,null,"No change",null,0]
[null,1,null,null,null,null,null,null,"Drip",0,"OK",null,null,null,"No change",null,0]
[null,1,null,null,null,null,null,null,"Drip",0,"OK",null,null,null,"No change",null,0]
[null,1,null,null,null,null,null,null,"Drip",0,"OK",null,null,null,"No change",null,0]
[null,1,null,null,null,null,null,null,"Drip",0,"OK",null,null,null,"No change",null,0]
[null,1,null,null,null,null,null,null,"Drip",0,"OK",null,null,null,"No change",null,0]
[null,1,null,null,null,null,null,null,"Drip",0,"OK",null,null,null,"No change",null,0]
[null,1,null,null,null,null,null,null,"Drip",0,"OK",null,null,null,"No change",null,0]
[null,1,null,null,null,null,null,null,"Drip",0,"OK",null,null,null,"No change",null,0]
[null,1,null,null,null,null,null,null,"Drip",0,"OK",null,null,null,"No change",null,0]
[null,1,null,null,null,null,null,null,"Drip",0,"OK",null,null,null,"No change",null,0]
[null,1,null,null,null,null,null,null,"Drip",0,"OK",null,null,null,"No change",null,0]
[null,1,null,null,null,null,null,null,"Drip",0,"OK",null,null,null,"No change",null,0]
[null,1,null,null,null,null,null,null,"Drip",0,"OK",null,null,null,"No change",null,0]
[null,1,null,null,null,null,null,null,"Drip",0,"OK",null,null,null,"No change",null,0]
[null,1,null,null,null,null,null,null,"Drip",0,"OK",null,null,null,"No change",null,0]
[null,1,null,null,null,null,null,null,"Drip",0,"OK",null,null,null,"No change",null,0]
[null,1,null,null,null,null,null,null,"Drip",0,"OK",null,null,null,"No change",null,0]
[null,1,null,null,null,null,null,null,"Drip",0,"OK",null,null,null,"No change",null,0]
[null,1,null,null,null,null,null,null,"Drip",0,"OK",null,null,null,"No change",null,0]
[null,1,null,null,null,null,null,null,"Drip",0,"OK",null,null,null,"No change",null,0]
[null,1,null,null,null,null,null,null,"Drip",0,"OK",null,null,null,"No change",null,0]
[null,1,null,null,null,null,null,null,"Drip",0,"OK",null,null,null,"No change",null,0]
[null,1,null,null,null,null,null,null,"Drip",0,"OK",null,null,null,"No change",null,0]
[null,1,null,null,null,null,null,null,"Drip",0,"OK",null,null,null,"No change",null,0]
[null,1,null,null,null,null,null,null,"Drip",0,"OK",null,null,null,"No change",null,0]
[null,1,null,null,null,null,null,null,"Drip",0,"OK",null,null,null,"No change",null,0]
[null,1,null,null,null,null,null,null,"Drip",0,"OK",null,null,null,"No change",null,0]
[null,1,null,null,null,null,null,null,"Drip",0,"OK",null,null,null,"No change",null,0]
[null,1,null,null,null,null,null,null,"Drip",0,"OK",null,null,null,"No change",null,0]
[null,1,null,null,null,null,null,null,"Drip",0,"OK",null,null,null,"No change",null,0]
[null,1,null,null,null,null,null,null,"Drip",0,"OK",null,null,null,"No change",null,0]
[null,1,null,null,null,null,null,null,"Drip",0,"OK",null,null,null,"No change",null,0]
[null,1,null,null,null,null,null,null,"Drip",0,"OK",null,null,null,"No change",null,0]
[null,1,null,null,null,null,null,null,"Drip",0,"OK",null,null,null,"No change",null,0]
[null,1,null,null,null,null,null,null,"Drip",0,"OK",null,null,null,"No change",null,0]
[null,1,null,null,null,null,null,null,"Drip",0,"OK",null,null,null,"No change",null,0]
[null,1,null,null,null,null,null,null,"Drip",0,"OK",null,null,null,"No change",null,0]
[null,1,null,null,null,null,null,null,"Drip",0,"OK",null,null,null,"No change",null,0]
[null,1,null,null,null,null,null,null,"Drip",0,"OK",null,null,null,"No change",null,0]
[null,1,null,null,null,null,null,null,"Drip",0,"OK",null,null,null,"No change",null,0]
[null,1,null,null,null,null,null,null,"Drip",0,"OK",null,null,null,"No change",null,0]
[null,1,null,null,null,null,null,null,"Drip",0,"OK",null,null,null,"No change",null,0]
[null,1,null,null,null,null,null,null,"Drip",0,"OK",null,null,null,"No change",null,0]
[null,1,null,null,null,null,null,null,"Drip",0,"OK",null,null,null,"No change",null,0]
[null,1,null,null,null,null,null,null,"Drip",0,"OK",null,null,null,"No change",null,0]
[null,1,null,null,null,null,null,null,"Drip",0,"OK",null,null,null,"No change",null,0]
[null,1,null,null,null,null,null,null,"Drip",0,"OK",null,null,null,"No change",null,0]
[null,1,null,null,null,null,null,null,"Drip",0,"OK",null,null,null,"No change",null,0]
[null,1,null,null,null,null,null,null,"Drip",0,"OK",null,null,null,"No change",null,0]
[null,1,null,null,null,null,null,null,"Drip",0,"OK",null,null,null,"No change",null,0]
[null,1,null,null,null,null,null,null,"Drip",0,"OK",null,null,null,"No change",null,0]
[null,1,null,null,null,null,null,null,"Drip",0,"OK",null,null,null,"No change",null,0]
[null,1,null,null,null,null,null,null,"Drip",0,"OK",null,null,null,"No change",null,0]
[null,1,null,null,null,null,null,null,"Drip",0,"OK",null,null,null,"No change",null,0]
[null,1,null,null,null,null,null,null,"Drip",0,"OK",null,null,null,"No change",null,0]
[null,1,null,null,null,null,null,null,"Drip",0,"OK",null,null,null,"No change",null,0]
[null,1,null,null,null,null,null,null,"Drip",0,"OK",null,null,null,"No change",null,0]
[null,1,null,null,null,null,null,null,"Drip",0,"OK",null,null,null,"No change",null,0]
[null,1,null,null,null,null,null,null,"Drip",0,"OK",null,null,null,"No change",null,0]
[null,1,null,null,null,null,null,null,"Drip",0,"OK",null,null,null,"No change",null,0]
[null,1,null,null,null,null,null,null,"Drip",0,"OK",null,null,null,"No change",null,0]
[null,1,null,null,null,null,null,null,"Drip",0,"OK",null,null,null,"No change",null,0]
[null,1,null,null,null,null,null,null,"Drip",0,"OK",null,null,null,"No change",null,0]
[null,1,null,null,null,null,null,null,"Drip",0,"OK",null,null,null,"No change",null,0]
[null,1,null,null,null,null,null,null,"Drip",0,"OK",null,null,null,"No change",null,0]
[null,1,null,null,null,null,null,null,"Drip",0,"OK",null,null,null,"No change",null,0]
[null,1,null,null,null,null,null,null,"Drip",0,"OK",null,null,null,"No change",null,0]
[null,1,null,null,null,null,null,null,"Drip",0,"OK",null,null,null,"No change",null,0]
[null,1,null,null,null,null,null,null,"Drip",0,"OK",null,null,null,"No change",null,0]
[null,1,null,null,null,null,null,null,"Drip",0,"OK",null,null,null,"No change",null,0]
[null,1,null,null,null,null,null,null,"Drip",0,"OK",null,null,null,"No change",null,0]
[null,1,null,null,null,null,null,null,"Drip",0,"OK",null,null,null,"No change",null,0]
[null,1,null,null,null,null,null,null,"Drip",0,"OK",null,null,null,"No change",null,0]
[null,1,null,null,null,null,null,null,"Drip",0,"OK",null,null,null,"No change",null,0]
[null,1,null,null,null,null,null,null,"Drip",0,"OK",null,null,null,"No change",null,0]
[null,1,null,null,null,null,null,null,"Drip",0,"OK",null,null,null,"No change",null,0]
[null,1,null,null,null,null,null,null,"Drip",0,"OK",null,null,null,"No change",null,0]
[null,1,null,null,null,null,null,null,"Drip",0,"OK",null,null,null,"No change",null,0]
[null,1,null,null,null,null,null,null,"Drip",0,"OK",null,null,null,"No change",null,0]
[null,1,null,null,null,null,null,null,"Drip",0,"OK",null,null,null,"No change",null,0]
[null,1,null,null,null,null,null,null,"Drip",0,"OK",null,null,null,"No change",null,0]
[null,1,null,null,null,null,null,null,"Drip",0,"OK",null,null,null,"No change",null,0]
[null,1,null,null,null,null,null,null,"Drip",0,"OK",null,null,null,"No change",null,0]
[null,1,null,null,null,null,null,null,"Drip",0,"OK",null,null,null,"No change",null,0]
[null,1,null,null,null,null,null,null,"Drip",0,"OK",null,null,null,"No change",null,0]
[null,1,null,null,null,null,null,null,"Drip",0,"OK",null,null,null,"No change",null,0]
[null,1,null,null,null,null,null,null,"Drip",0,"OK",null,null,null,"No change",null,0]
[null,1,null,null,null,null,null,null,"Drip",0,"OK",null,null,null,"No change",null,0]
[null,1,null,null,null,null,null,null,"Drip",0,"OK",null,null,null,"No change",null,0]
[null,1,null,null,null,null,null,null,"Drip",0,"OK",null,null,null,"No change",null,0]
[null,1,null,null,null,null,null,null,"Drip",0,"OK",null,null,null,"No change",null,0]
[null,1,null,null,null,null,null,null,"Drip",0,"OK",null,null,null,"No change",null,0]
[null,1,null,null,null,null,null,null,"Drip",0,"OK",null,null,null,"No change",null,0]
[null,1,null,null,null,null,null,null,"Drip",0,"OK",null,null,null,"No change",null,0]
[null,1,null,null,null,null,null,null,"Drip",0,"OK",null,null,null,"No change",null,0]
[null,1,null,null,null,null,null,null,"Drip",0,"OK",null,null,null,"No change",null,0]
[null,1,null,null,null,null,null,null,"Drip",0,"OK",null,null,null,"No change",null,0]
[null,1,null,null,null,null,null,null,"Drip",0,"OK",null,null,null,"No change",null,0]
[null,1,null,null,null,null,null,null,"Drip",0,"OK",null,null,null,"No change",null,0]
[null,1,null,null,null,null,null,null,"Drip",0,"OK",null,null,null,"No change",null,0]
[null,1,null,null,null,null,null,null,"Drip",0,"OK",null,null,null,"No change",null,0]
[null,1,null,null,null,null,null,null,"Drip",0,"OK",null,null,null,"No change",null,0]
[null,1,null,null,null,null,null,null,"Drip",0,"OK",null,null,null,"No change",null,0]
[null,1,null,null,null,null,null,null,"Drip",0,"OK",null,null,null,"No change",null,0]
[null,1,null,null,null,null,null,null,"Drip",0,"OK",null,null,null,"No change",null,0]
[null,1,null,null,null,null,null,null,"Drip",0,"OK",null,null,null,"No change",null,0]
[null,1,null,null,null,null,null,null,"Drip",0,"OK",null,null,null,"No change",null,0]
[null,1,null,null,null,null,null,null,"Drip",0,"OK",null,null,null,"No change",null,0]
[null,1,null,null,null,null,null,null,"Drip",0,"OK",null,null,null,"No change",null,0]
[null,1,null,null,null,null,null,null,"Drip",0,"OK",null,null,null,"No change",null,0]
[null,1,null,null,null,null,null,null,"Drip",0,"OK",null,null,null,"No change",null,0]
[null,1,null,null,null,null,null,null,"Drip",0,"OK",null,null,null,"No change",null,0]
[null,1,null,null,null,null,null,null,"Drip",0,"OK",null,null,null,"No change",null,0]
[null,1,null,null,null,null,null,null,"Drip",0,"OK",null,null,null,"No change",null,0]
[null,1,null,null,null,null,null,null,"Drip",0,"OK",null,null,null,"No change",null,0]
[null,1,null,null,null,null,null,null,"Drip",0,"OK",null,null,null,"No change",null,0]
[null,1,null,null,null,null,null,null,"Drip",0,"OK",null,null,null,"No change",null,0]
[]
[]
[]
[]
[]
[]
[]
[]
[]
[]
[]
[]
[]
[]
[]
[]
[]
[]
[]
[]
[]
[]
[]
[]
[]
[]
[]
[]
[]
[]
[]
[]
[]
[]
[]
[]
[]
[]
[]
[]
[]
[]
[]
[]
[]
[]
[]
[]
[]
[]
[]
[]
[]
[]
[]
[]
[]
[]
[]
[]
[]
[]
[]
[]
[]
[]
[]
[]
[]
[]
[]
[]
[]
[]
[]
[]
[]
[]
[]
[]
[]
[]
[]
[]
[]
[]
[]
[]
[]
[]
[]
[]
[]
[]
[]
[]
[]
[]
[]
[]
[]
[]
[]
[]
[]
[]
[]
[]
[]
[]
[]
[]
[]
[]
[]
[]
[]
[]
[]
[]
[]
[]
[]
[]
[]
[]
[]
[]
[]
[]
[]
[]
[]
[]
[]
[]
[]
[null,"Type","EFLH","Ref"]
[null,"Process Steam",7752,"[5]"]
[null,"Banks,Financial Center Heating",372,"[10]"]
[null,"College:Classess/Administrative Heating",949,"[10]"]
[null,"College:Dormitory Heating",536,"[10]"]
[null,"Commercial Condo Heating",836,"[10]"]
[null,"Convention Center Heating",836,"[10]"]
[null,"Court House Heating",372,"[10]"]
[null,"Fire Station (Unmanned) Heating",536,"[10]"]
[null,"Hospital Heating",513,"[10]"]
[null,"Hospitals/Health Care Heating",513,"[10]"]
[null,"Mall Concourse Heating",672,"[10]"]
[null,"Multi-Family (Common Areas) Heating",536,"[10]"]
[null,"Nursing Home Heating",836,"[10]"]
[null,"Penitentiary Heating",836,"[10]"]
[null,"Police/Fire Station (24 Hr) Heating",717,"[10]"]
[null,"Residentail (Except Nursing Homes ) Heating",536,"[10]"]
[null,"School/University Heating",949,"[10]"]
[null,"Schools (Jr./Sr. High) Heating",1075,"[10]"]
[null,"Schools (Technical/Vocational) Heating",783,"[10]"]

{"sheet":"EMS","index":25,"n_rows":106,"n_cols":23,"rows_kept":106,"cut":false,"hidden":true,"merged":[[103,12,103,15],[103,10,103,11],[103,6,103,7],[102,1,102,4],[1,1,1,5],[2,1,2,5],[103,8,103,9],[16,1,19,8],[43,1,43,4],[63,1,63,4],[82,1,82,4],[14,2,14,3]]}
[null,"E N E R G Y   M A N A G E M E N T   S Y S T E M S   ( E M S )"]
[null,"Participant must obtain conditional approval from the Utilities prior to the purchase or installation of any energy efficiency measures to be eligible to receive efficiency incentives. \n\nThe following are required for ALL measures:  \n        (1) Proposal to customer\n        (2) ALL specification sheets and supporting documents.\n        (3) Data fields (in yellow) on applicable tabs MUST BE FILLED IN\n        (4) One year of historical electric and natural gas (if applicable) billing data "]
[null,"        (5) Description of Existing & Proposed System tabs must be filled in ----------",null,null,null,null,"h"]
[]
[]
[]
[]
[]
[]
[]
[]
[null,null,null,null,null,null,null,null,null,null,null,null,null,null,null,null,null,null,null,null,null,null,"SEASONAL"]
[null,null,null,null,null,null,null,null,null,null,null,null,null,null,null,null,null,null,null,null,null,null,"Yes"]
[null,null,null,null,null,null,null,null,null,null,null,null,null,null,null,null,null,null,null,null,null,null,"No"]
[null,"Total Project Cost"]
[]
[null,"HEATING PLANT, COOLING PLANT, & AIR SIDE SYSTEM DATA REQUIRED  \n  Provide all heating and cooling plant equipment  as well as air side equipment in the tables below.  Identiy any equipment being replaced during the controls upgrade process.  \n  List existing and replacement equipment and associated control strategies separately (see examples on tables below)"]
[]
[]
[]
[null,"1. HEATING PLANT EQUIPMENT & PUMPS"]
[null,"Edits to the selected table row below are made in the yellow cells of this section."]
[1]
[null,"h",{"$f":"ROW(B35)","v":35}]
[null,"Select any table row below to make edits to the entire row in yellow cells above."]
[null,"Equipment ID","Capacity (MBH)","Type","Efficiency\n (%)","New or existing","Existing Control Strategy","Plant Description"]
[null,"ex.  BOILER 1",3000,"Electric Boiler",0.78,"Remaining","None","Back up"]
[null,"ex. BOILER 2",3000,"Gas Fired Steam Boiler",0.95,"New (didn't exist previously)","Outside Temp Reset","Primary "]
[]
[]
[]
[]
[]
[]
[]
[]
[]
[]
[]
[]
[]
[]
[]
[null,"HEATING PLANT PUMPS:\nEdits to the selected table row below are made in this section that follows."]
[null,"Select any table row below to make edits to the entire row in yellow cells above."]
[null,"Heating Pump ID","Primary/\nSecondary","Backup","hp","Design Flow","Design Head","Existing Control Strategy"]
[null,"ex. H-1","Primary","No",5,50,5,"none"]
[]
[]
[]
[]
[]
[]
[]
[]
[]
[]
[]
[]
[]
[]
[]
[]
[null,"2. COOLING PLANT EQUIPMENT AND PUMPS\nEdits to the selected table row below are made in the yellow cells of this section."]
[null,"Select any table row below to make edits to the entire row in yellow cells above."]
[null,"Equipment ID","Capacity (Tons)","Type","Efficiency (kW/ton)","New or Existing","Existing Control Strategy","Plant Description"]
[null,"ex.  Chiller 1",600,"Water cooled",10.1,"Remaining","none","Primary"]
[]
[]
[]
[]
[]
[]
[]
[]
[]
[]
[]
[]
[]
[]
[]
[null,"CHILLED WATER PUMPS:\nEdits to the selected table row below are made in this section that follows."]
[null,"Select any table row below to make edits to the entire row in yellow cells above."]
[null,"ChW Pump ID","Primary/\nSecondary","Backup","hp","Design Flow","Design Head","Existing Control Strategy"]
[null,"ex. ChW-1","Primary","No",10,200,11,"pressure reset"]
[]
[]
[]
[]
[]
[]
[]
[]
[]
[]
[]
[]
[]
[]
[]
[]
[null,"3. AIR SIDE EQUIPMENT\nEdits to the selected table row below are made in the yellow cells of this section."]
[null,"Select any table row below to make edits to the entire row in yellow cells above.",null,null,null,null,"FANS",null,"Cooling",null,"Heating",null,"Existing Control Strategy"]
[null,"Unit ID","New or Existing","Area Served (Specific)","Total CFM","OA CFM","Supply HP","Exhaust HP","Cooling Type","Capacity\n (Tons)","Heating Type","Capacity \n(MBH)","Schedule","Optimal SS","Economizer","VAV","Proposed Control Strategy"]
[null,"ex. RTU - 1","Existing","1st fl executive offices",16000,3000,30,15,"DX",80,"HW",50000,"Yes","No","Yes","Yes","Dual Enthapy controls"]

{"sheet":"Custom","index":26,"n_rows":63,"n_cols":6,"rows_kept":63,"cut":false,"hidden":true,"merged":[[62,1,67,3],[57,1,57,3],[37,1,37,3],[43,1,43,3],[38,1,38,3],[49,1,49,3],[33,1,33,7],[8,1,8,2],[4,1,4,5],[5,1,5,5],[54,1,54,3]]}
[null,"C U S T O M   M E A S U R E S"]
[19,"h",null,null,null,"h"]
[null,"(Outside the scope of typical efficiency measures.) "]
[null,"Provide all relevant documentation: specs, proposal, etc."]
[null,"Participant must obtain conditional approval from the Utilities prior to the purchase or installation of any energy efficiency measures to be eligible to receive efficiency incentives. \n\nThe following are required for ALL measures:  \n        (1) Proposal to customer\n        (2) ALL specification sheets, calculations and supporting documents (ALL energy savings and annual energy usage calculations should be submitted in a format like Excel so underlying formulas can be displayed and followed.)\n        (3) Data fields (in yellow) on applicable tabs MUST BE FILLED IN"]
[]
[]
[null,"Total Project Cost"]
[]
[null,null,"Please elaborateas needed. Fields will auto expand."]
[null,"Equipment being evaluated"]
[null,"Summarize project and how energy savings will be achieved"]
[null,"Heating Source"]
[null,"Cost of Proposed System"]
[null,"Cost of Baseline System"]
[null,"Incremental Cost",{"$f":"C14-C15","v":0}]
[]
[null,"Proposed EE equipment/systems"]
[null,"Description"]
[null,"Qty to be installed"]
[null,"Cost per Unit"]
[null,"Operating Hours"]
[null,"Estimated Annual Energy Use (ccf or kWh)"]
[null,"Estimated Demand (Summer kW, Winter kW, annual & peak saving in CCF)"]
[]
[null,"Baseline System "]
[null,"Description  (code compliant if applicable, otherwise comparable equipment which is less efficient/more costly.)"]
[null,"Qty to be installed"]
[null,"Cost per Unit"]
[null,"Operating Hours"]
[null,"Estimated Annual Energy Use (ccf or kWh)"]
[null,"Estimated Demand (Summer kW, Winter kW, annual & peak saving in CCF)"]
[null,"Existing equipment serial number(s)"]
[]
[]
[]
[]
[null,"Use this table to add any other relevant information about the project as it should be installed. Be specific in describing how the equipement and parameters impact the project design and energy outcomes. Column D and check boxes are intended to be used as utility's post inpection record (leave blank/unchecked until post inspection)."]
[null,"EQUIPMENT:  Provide a list of equipment or materials installed as part of this project.  Include equipment counts, HP, kW, efficiency and capacity ratings, rating conditions, location of controls hardware, etc."]
[null,"Compliance","Project Design Intent","Post Inspection Findings"]
[null,1]
[null,2]
[null,3]
[null,"SEQUENCES OF OPERATION:  Provide a description of equipment operating sequences, setpoints, operating schedules, balancing requirements (flow, velocity, head, etc.) or any other required operating parameters.  Describe requirements separately."]
[null,4]
[null,5]
[null,6]
[null,7]
[null,8]
[null,"DOCUMENTATION:  List written documentation required to train, verify, operate, or maintain the equipment being installed or controlled.  This may include specification sheets, test reports, construction drawings, etc."]
[null,9]
[null,10]
[null,11]
[null,12]
[null,"POST INSTALLATION VERIFICATION:  Provide a list of controls and monitoring capabilities required to verify proper system operation.  Trends should document operational sequences, set points and scheduling of equipment as described in TA Study."]
[null,13]
[null,14]
[null,"OTHER REQUIREMENTS:  Describe any requirements for demolition, removal, etc. of existing equipment."]
[null,15]
[null,16]
[]
[]
[null,"Provide any additional information felt to be relevant here."]

{"sheet":"Refrig. Equip","index":27,"n_rows":181,"n_cols":10,"rows_kept":181,"cut":false,"hidden":true,"merged":[[42,7,43,11],[180,2,180,8],[181,2,192,8],[11,2,11,3],[15,1,15,6],[16,1,16,6],[40,1,40,7],[41,1,41,7]]}
[null,"R E F R I G E R A T I O N   E Q U I P M E N T"]
[null,"h",null,null,null,"h"]
[null,"Measures covered:"]
[null,"Evaporator Fan Motor Replacement"]
[null,"Evaporator Fan Controls"]
[null,"Doors"]
[null,"Refrigerator LED Lighting and/or Controls"]
[null,"Case Night Covers"]
[null,"Vending Machine Controls"]
[]
[]
[null,"Total Project Cost"]
[]
[]
[null,"Evaporator Fan Motor Replacement  (EC Motors)"]
[]
[]
[null,"Edits to the selected row are made in this section."]
[null,"Select any cell to make edits."]
[null,"Case or Walk in Description","Existing Controls?","Refrig. Type","Motor Type","Motor Phase","# of Fans","Volts","Amps per motor"," $ per Motor"]
[]
[]
[]
[]
[]
[]
[]
[]
[]
[]
[]
[]
[]
[]
[]
[]
[]
[]
[]
[null,"Evaporator Fan Controls "]
[null,"Participant must obtain conditional approval from the Utilities prior to the purchase or installation of any energy efficiency measures to be eligible to receive efficiency incentives. \n\nThe following are required for ALL measures:  \n        (1) Proposal to customer\n        (2) ALL specification sheets and supporting documents.\n        (3) Data fields (in yellow) on applicable tabs MUST BE FILLED IN"]
[]
[null,"Edits to the selected row are made in this section.",null,null,null,null,null,"Provide any additional information felt to be relevant here."]
[2]
[]
[null,"Select any cell to make edits."]
[null,"Case or Walk in Description","Control Type","Motor Type *","Motor Phase","# of Fans","# of Controllers","Volts","Amps per Motor"," $ per Controller"]
[]
[]
[]
[]
[]
[]
[]
[]
[]
[]
[]
[]
[]
[]
[]
[]
[null,null,null,"*Note: If volt/amp readings were taken after fan motors were replaced, select \"No Replacement\" for Motor Type"]
[]
[null,"Door Heater Controls"]
[null,"Edits to the selected row are made in this section."]
[null,"Select any cell to make edits."]
[null,"Case or Walk in Description","Case Type","Number of Doors","# of Controllers","Volts","Amps per door"," $ per Controller"]
[]
[]
[]
[]
[]
[]
[]
[]
[]
[]
[]
[]
[]
[]
[]
[]
[]
[null,"Refrigerator LED Lighting and/or Controls"]
[null,"Edits to the selected row are made in this section."]
[null,"Select any cell to make edits."]
[null,"Case #/ Location","Case Type","Number of Doors","# of Controllers","Lights per door","Light wattage","Cost"]
[]
[]
[]
[]
[]
[]
[]
[]
[]
[]
[]
[]
[]
[]
[]
[]
[]
[]
[null,"Door addition to Existing Open Refrigeration Cases"]
[null,"Edits to the selected table row below are made in this section."]
[null,"Select any cell to make edits."]
[null,"Case or Walk in Description","Refrigeration Type","Length of Doors (ft.)","Door Heater?***","Gap?***","Cost/ft.","Fuel Type"]
[]
[]
[]
[]
[]
[]
[]
[]
[]
[]
[]
[]
[]
[]
[]
[]
[]
[null,null,null,null,"**Doors either have:  "]
[null,null,null,null,null,"(a) gap between the doors "]
[null,null,null,null,null,"(b) door heaters to the reduce condensation. "]
[]
[null,"Night Covers"]
[null,"Edits to the selected table rows below are made in this section."]
[6]
[null,"h",{"$f":"ROW(B154)","v":154}]
[null,"Select any cell to make edits."]
[null,"Case # or Description","Case Temperature","Total Width (ft.)","Annual Hours","Cost"]
[]
[]
[]
[]
[]
[]
[]
[]
[]
[]
[]
[]
[]
[]
[]
[]
[null,"Vending Machine Controls"]
[null,"Edits to the selected table row below are made in this section."]
[null,"Select any cell to make edits."]
[null,"Vending Machine Qty.","Equipment Type","Volts - Amps Known","Voltage","Amps","Timer or Occupancy Sensor","Hours After\n"," $ per Controller"]
[]
[]
[]
[]
[]
[]
[]
[]
[]
[]
[]
[]
[]
[]
[]
[]
[null,null,null,null,null,null,null,"(only include if Timer-based system)"]
[]
[]
[]
[]
[null,null,"Note:-"]

{"sheet":"Refrigerator Door","index":28,"n_rows":42,"n_cols":16,"rows_kept":42,"cut":false,"hidden":true,"merged":[[0,0,1,10],[41,1,41,7],[42,1,43,7],[2,1,2,3],[5,7,5,8],[7,4,7,6],[7,7,7,8],[8,4,8,5],[7,2,7,3]]}
["Participant must obtain conditional approval from the Utilities prior to the purchase or installation of any energy efficiency measures to be eligible to receive efficiency incentives. \n\nThe following are required for ALL measures:  \n        (1) Proposal to customer\n        (2) ALL specification sheets and supporting documents.\n        (3) Data fields (in yellow) on applicable tabs MUST BE FILLED IN"]
[]
[]
[]
[]
[null,"Case Door Retrofit to Open Refrigeration Cases (EO only)",null,null,null,null,"Heating Fuel: ",null,null,null,null,null,null,"Units","Annual","Peak day"]
[null,null,null,null,null,null,null,null,null,null,null,null,"1- Natural Gas","ccf",1,1]
[null,"Total Project Cost",null,null,null,null,null,null,null,null,null,null,"2-Propane","Gallons (Propane)",{"$f":"102900/91330","v":1.1267},0]
[null,null,null,null,null,null,null,null,null,null,null,null,"3-Oil","Gallons (Oil)",{"$f":"102900/138690","v":0.7419},0]
[null,"Case description (coolers)","Case Length (ft)","Door Type:  \nGap or Heaters *"]
[1]
[2,null,null,null,null,null,null,null,null,null,null,null,"cooler "]
[3,null,null,null,null,null,null,null,null,null,null,null,"1-gap"]
[4,null,null,null,null,null,null,null,null,null,null,null,"2-door heater"]
[5,null,null,null,null,null,null,null,null,null,null,null,"3-No gap or door heater"]
[6]
[7]
[8,null,null,null,null,null,null,null,null,null,null,null,"freezer"]
[9,null,null,null,null,null,null,null,null,null,null,null,"1-gap"]
[10,null,null,null,null,null,null,null,null,null,null,null,"2-door heater"]
[null,null,null,null,null,null,null,null,null,null,null,null,"3-No gap or door heater"]
[null,"Case description (freezers)","Case Length (ft)","Door Type:  \nGap or Heaters *"]
[6]
[7]
[8]
[9]
[10]
[11]
[12]
[13]
[14]
[15]
[]
[]
[null,"* New doors will either have a gap between the doors or door heaters to the reduce condensation.  Identify the proposed."]
[null,"** For these retrofit projects it is likely that they will have gaps, so verify anything else"]
[]
[]
[]
[]
[]
[null,"Note:-"]

{"sheet":"Commercial Kitchen Equipment","index":29,"n_rows":213,"n_cols":21,"rows_kept":213,"cut":false,"hidden":true,"merged":[[30,1,30,6],[31,1,37,6],[0,1,0,6],[1,1,1,6],[3,1,4,7]]}
[null,"Measure Name: Commercial Kitchen Equipment"]
[null,"Installation of ENERGY STAR qualified commercial kitchen equipment"]
[]
[null,"Participant must obtain conditional approval from the Utilities prior to the purchase or installation of any energy efficiency measures to be eligible to receive efficiency incentives. \n\n\nThe following are required for ALL measures:  \n        (1) Proposal to customer\n        (2) ALL specification sheets and supporting documents.\n        (3) Data fields (in yellow) on applicable tabs MUST BE FILLED IN"]
[]
[]
[null,"The choices in \"Equipment Type\" and \"Measure Description /Equipment Type\" will change dependent on the type of fuel selected (Electric / Gas)."]
[null,null,null,null,null,null,null,null,null,null,null,null,null,null,null,null,null,null,null,null,"Gas_Equipment"]
[null,"Total Project Cost",null,null,null,null,null,null,null,null,null,null,null,null,null,null,null,null,null,null,"Electric_Equipment"]
[]
[null,"Manufacturer","Model Number","Fuel Serving Equipment (Electric or Gas)","Equipment Type","Measure Description/Equipment Type","Quantity","Building Type","Est. Install Cost"]
[null,"Ex 111","Example ","Electric_Equipment","Electric_Other","Induction Cooktop ",2,"Restaurant",1000]
[null,null,null,null,null,null,null,"Restaurant"]
[null,null,null,null,null,null,null,"Restaurant"]
[null,null,null,null,null,null,null,"Restaurant"]
[null,null,null,null,null,null,null,"Restaurant"]
[null,null,null,null,null,null,null,"Restaurant"]
[null,null,null,null,null,null,null,"Restaurant"]
[null,null,null,null,null,null,null,"Restaurant"]
[null,null,null,null,null,null,null,"Restaurant"]
[null,null,null,null,null,null,null,"Restaurant"]
[null,null,null,null,null,null,null,"Restaurant"]
[null,null,null,null,null,null,null,"Restaurant"]
[null,null,null,null,null,null,null,"Restaurant"]
[null,null,null,null,null,null,null,"Restaurant"]
[null,null,null,null,null,null,null,"Restaurant"]
[]
[]
[null,null,null,null,null,null,"Total",null,{"$f":"SUM(I12:I26)","v":1000}]
[]
[]
[]
[]
[]
[]
[]
[]
[]
[]
[]
[]
[]
[]
[]
[]
[]
[]
[]
[]
[]
[]
[]
[]
[]
[]
[]
[]
[]
[]
[]
[]
[]
[]
[]
[]
[]
[]
[]
[]
[]
[]
[]
[]
[]
[]
[]
[]
[]
[]
[]
[]
[]
[]
[]
[]
[]
[]
[]
[]
[]
[]
[]
[]
[]
[]
[]
[]
[]
[]
[]
[]
[]
[]
[]
[]
[]
[]
[]
[]
[]
[]
[]
[]
[]
[]
[]
[]
[]
[]
[]
[]
[]
[]
[]
[]
[]
[]
[]
[]
[]
[]
[]
[]
[]
[]
[]
[]
[]
[]
[]
[]
[]
[]
[]
[]
[]
[]
[]
[]
[]
[]
[]
[]
[]
[]
[]
[]
[]
[]
[]
[]
[]
[]
[]
[]
[]
[]
[]
[]
[]
[]
[]
[]
[]
[]
[]
[]
[]
[]
[]
[]
[]
[]
[]
[]
[]
[]
[]
[]
[]
[]
[]
[]
[]
[]
[]
[]
[]
[]
["Level 1","Level 2","Level 2","Level 3","Level 3","Level 3","Level 3","Level 3","Level 3","Level 3","Level 3","Level 3","Level 3","Level 3","Level 3","Level 3","Level 3"]
["Fuel_Type","Electric_Equipment","Gas_Equipment","Broiler","Electric Dishwasher","Freezer","Electric Fryer","Griddle","Hot Folding Cabinet","Ice Machine","Electric Other","Electric Oven","Refrigerator","Gas Dishwasher","Gas Fryer","Gas Other","Gas Oven"]
["Gas_Equipment","Broiler","Gas_Dishwasher","Energy-efficient commercial underfired broiler ","Electric dishwasher high temp – door type","Freezer, glass door, self-contained (< 15 cubic ft) ","Electric fryer - standard vat","Electric griddle – up to 36”","Electric hot food holding cabinets – full size","Electric ice machine, remote cond./split unit, continuous 1,750 lb/day","Induction Cooktop ","Electric combination oven","Refrigerator, solid door, self-contained (< 15 cubic ft)","Gas dishwasher high temp – door type","Gas fryer - standard vat","Gas griddle with 3 ft countertop width","Gas combination oven"]
["Electric_Equipment","Electric_Dishwasher","Gas_Fryer","Energy-efficient commercial conveyor broilers, < 20\" wide ","Electric dishwasher high temp – multi-tank conveyor","Freezer, glass door, self-contained (15-29.9 cubic ft)","Electric fryer - large vat","Electric griddle – over 36”","Electric hot food holding cabinets – ¾ size","Electric ice machine, self-contained 200 lb/day","Electric steam cooker","Electric convection oven (full size)","Refrigerator, solid door, self-contained (15-29.9 cubic ft) ","Gas dishwasher high temp – multi-tank conveyor ","Gas fryer – large vat","Gas pre-rinse spray valve","Gas convection oven"]
[null,"Freezer","Gas_Other","Energy-efficient commercial conveyor broilers, 20-26\" wide ","Electric dishwasher high temp – pot, pan, utensil","Freezer, glass door, self-contained (30-49.9 cubic ft) ",null,null,"Electric hot food holding cabinets – half size","Electric ice making, head 0-500 lb/day ","On-demand commercial electric hand wrap machine ","Electric convection oven (half size)","Refrigerator, solid door, self-contained (30-49.9 cubic ft) ","Gas dishwasher high temp – pot, pan, utensil ",null,"Gas steamer","Gas conveyor oven"]
[null,"Electric_Fryer","Gas_Oven","Energy-efficient commercial conveyor broilers, > 26\" wide ","Electric dishwasher high temp – single tank conveyor","Freezer, glass door, self-contained (50+ cubic ft) ",null,null,null,"Electric ice machine, remote cond./split unit, batch 1,250 lb/day ",null,"Commercial electric deck ovens","Refrigerator, solid door, self-contained (50+ cubic ft) ","Gas dishwasher high temp – single-tank conveyor ",null,null,"Gas rack oven "]
[null,"Griddle",null,null,"Electric dishwasher high temp – under counter","Freezer, solid door, self-contained (< 15 cubic ft) ",null,null,null,null,null,null,"Refrigerator, glass door, self-contained (< 15 cubic ft) ","Gas dishwasher high temp – under counter "]
[null,"Hot_Folding_Cabinet",null,null,"Electric dishwasher low temp – door type","Freezer, solid door, self-contained (15-29.9 cubic ft) ",null,null,null,null,null,null,"Refrigerator, glass door, self-contained (15-29.9 cubic ft)","Gas dishwasher low temp – door type"]
[null,"Ice_Machine",null,null,"Electric dishwasher low temp – multi-tank conveyor","Freezer, solid door, self-contained (30-49.9 cubic ft)",null,null,null,null,null,null,"Refrigerator, glass door, self-contained (30-49.9 cubic ft) ","Gas dishwasher low temp – multi-tank conveyor"]
[null,"Electric_Other",null,null,"Electric dishwasher low temp – single-tank conveyor","Freezer, solid door, self-contained (50+ cubic ft) ",null,null,null,null,null,null,"Refrigerator, glass door, self-contained (50+ cubic ft)","Gas dishwasher low temp – single-tank conveyor "]
[null,"Electric_Oven",null,null,"Electric dishwasher low temp – under counter ","Ultra-low temp freezers ",null,null,null,null,null,null,"Refrigerated chef bases, 35-54” ","Gas dishwasher low temp – under Counter "]
[null,"Refrigerator",null,null,null,null,null,null,null,null,null,null,"Refrigerated chef bases, 55-73” "]
[null,null,null,null,null,null,null,null,null,null,null,null,"Refrigerated chef bases, 74-89” "]
[null,null,null,null,null,null,null,null,null,null,null,null,"Refrigerated chef bases, 90-120” "]

{"sheet":"Kitchen Hoods","index":30,"n_rows":31,"n_cols":11,"rows_kept":31,"cut":false,"hidden":true,"merged":[[32,1,33,10],[2,1,2,5],[3,1,3,5],[1,1,1,5],[9,1,9,10],[5,2,5,3],[4,2,4,3]]}
[null,"K I T C H E N   H O O D   V F D S"]
[null,"Participant must obtain conditional approval from the Utilities prior to the purchase or installation of any energy efficiency measures to be eligible to receive efficiency incentives. \n\nThe following are required for ALL measures:  \n        (1) Proposal to customer\n        (2) ALL specification sheets and supporting documents.\n        (3) Data fields (in yellow) on applicable tabs MUST BE FILLED IN"]
[]
[null,"Note:- Oil and Propane Incentives are available"]
[null,"Type of Heating"]
[{"$f":"ROW(B16)","v":16},"Total Project Cost",null,null,null,"h"]
[]
[null,"Edits to the selected row are made in this section."]
[null,"Select any table row below and make associated edits."]
[null,"Kitchen Hoods Proposed"]
[null,"Unit Description","HP","Load Factor","Motor Efficiency","CFM","Cooling System EER","Heating System Efficiency","Heating \nSetpoint (⁰F)","Cooling \nSetpoint (⁰F)","Total Installed Cost to Add \nVFD control"]
[null,"Hood #1 (EXAMPLE)",1,0.8,0.85,2200,12,0.8,70,75,2350]
[]
[]
[]
[]
[]
[]
[]
[]
[]
[]
[]
[]
[]
[]
[]
[]
[]
[]
[null,"Provide any additional information felt to be relevant in the space below.  (different occupied hours for different hoods, etc.)"]

{"sheet":"Insulation","index":31,"n_rows":22,"n_cols":11,"rows_kept":22,"cut":false,"hidden":true,"merged":[[5,7,5,8],[6,7,6,8],[18,4,18,5],[19,4,19,5],[20,4,20,5],[53,0,53,4],[21,4,21,5],[17,4,17,5],[11,4,11,5],[12,4,12,5],[13,4,13,5],[14,4,14,5],[1,1,1,5],[2,1,2,5],[52,0,52,4],[3,3,3,4],[4,3,4,4],[5,3,5,4],[6,3,6,4],[8,1,8,2],[8,3,8,5],[9,1,9,2],[9,3,9,5],[16,1,16,2],[16,3,16,5],[15,3,15,5],[15,1,15,2]]}
[null,"B U I L D I N G   E N V E L O P E   I N S U L A T I O N"]
[null,"Participant must obtain conditional approval from the Utilities prior to the purchase or installation of any energy efficiency measures to be eligible to receive efficiency incentives. \n\nThe following are required for ALL measures:  \n        (1) Proposal to customer\n        (2) ALL specification sheets and supporting documents.\n        (3) Data fields (in yellow) on applicable tabs MUST BE FILLED IN"]
[]
[null,null,"Heating Temp Setpoint","Percent of building cooled"]
[null,null,"Cooling Temp Setpoint","Cooling EER"]
[null,null,"Setback Degrees","Heating System Efficiency (Default = 80%) Use average COP for electric",null,null,null,"Incremental Cost"]
[null,null,"Heating Fuel Type","Perimeter Zones Balance Point\n (OA Temp °F)",null,null,null,"Total Project Cost"]
[]
[null,"Area A (description)",null,"Area B (description)"]
[null,null,null,null,null,null,null,null,"Program Baseline (IECC 2021)"]
[null,null,"Assembly Type",null,"Assembly Type",null,null,null,"Opaque Elements","Assembly Maximum","Insulation Min R-Value"]
[null,null,"Total SF area A",null,"Total SF area B",null,null,null,"Roofs"]
[null,null,null,null,null,null,null,null,"Insulation Entirely Above Deck","U-0.032","R-30.0 c.i."]
[null,null,null,null,null,null,null,null,"Metal Building","U-0.035","R-19.0"]
[null,null,"Proposed U-Value",null,"Proposed U-Value",null,null,null,"Attic and Other","U-0.027","R-38.0"]
[null,"Area C (description)",null,"Area D (Description)",null,null,null,null,"Walls, Above-Grade"]
[null,null,null,null,null,null,null,null,"Mass","U-0.090","R-11.4 c.i."]
[null,null,"Assembly Type",null,"Assembly Type",null,null,null,"Metal Building","U-0.052","R-13.0"]
[null,null,"Total SF area C",null,"Total SF area D",null,null,null,"Steel-Framed","U-0.064","R-13.0 + R-7.5 c.i."]
[null,null,null,null,null,null,null,null,"Wood-Framed and Other","U-0.064","R-13.0 + R-3.8 c.i. or R-20"]
[null,null,null,null,null,null,null,null,"Walls, Below-Grade"]
[null,null,"Proposed U-Value",null,"Proposed U-Value",null,null,null,"Walls, Below-Grade","C-0.119","R-7.5 c.i."]

{"sheet":"Windows","index":32,"n_rows":38,"n_cols":30,"rows_kept":38,"cut":false,"hidden":true,"merged":[[1,1,1,7],[37,1,39,4],[9,1,10,1],[9,2,10,2],[8,7,8,8],[10,7,10,8]]}
[null,"W I N D O W S"]
[null,"Participant must obtain conditional approval from the Utilities prior to the purchase or installation of any energy efficiency measures to be eligible to receive efficiency incentives. \n\nThe following are required for ALL measures:  \n        (1) Proposal to customer (a) Code Compliant window installation & (b) High Efficiency windows installation.\n        (2) ALL specification sheets and supporting documents.\n        (3) Data fields (in yellow) on applicable tabs MUST BE FILLED IN"]
[]
[19]
[null,"Project Type:"]
[null,null,"Heating Temp Setpoint (°F)"]
[null,null,"Cooling Temp Setpoint (°F)"]
[null,null,"Setback Degrees (°F)","Incremental Cost",null,null,null,"Qty of windows (A)",null,null,null,null,null,null,null,null,null,null,null,null,null,null,null,null,null,null,"SHGC: Table C402.4 IECC 2021"]
[null,null,"Heating Fuel Type","Total Project Cost",null,null,null,"Qty of windows (B)",null,null,null,null,null,null,null,null,null,null,null,null,null,null,null,null,null,null,"Orientation","Fixed","Operable","Entrance Doors"]
[null,null,"Heating System Eff. \n(Default = 80%) use avg. COP for electric",null,null,null,null,"Qty of windows (C)",null,null,null,null,null,null,null,null,null,null,null,null,null,null,null,null,null,null,"PF < 0.2",0.38,0.33,0.33]
[null,null,null,"Cooling EER: ",null,null,null,"Qty of windows (D)",null,null,null,null,null,null,null,null,null,null,null,null,null,null,null,null,null,null,"0.2 <= PF < 0.5",0.46,0.4,0.4]
[null,null,"Perimeter Zones Balance Point\n (OA Temp °F)","% building cooled: ",null,null,null,null,null,null,null,null,null,null,null,null,null,null,null,null,null,null,null,null,null,null,"PF >= 0.5",0.61,0.53,0.53]
[null,"Side A",null,"Side B"]
[null,null,"Window Orientation",null,"Window Orientation"]
[null,null,"Projection Factor",null,"Projection Factor"]
[null,null,"Fixed, Operable, or Entrance Door",null,"Fixed, Operable, or Entrance Door"]
[]
[]
[null,null,"Total Window Area (ft²)",null,"Total Window Area (ft²)"]
[]
[null,null,"U-Value Proposed Window (BTU/h·ft²·°F)",null,"U-Value Proposed Window (BTU/h·ft²·°F)"]
[null,null,"SHGC Proposed Window",null,"SHGC Proposed Window"]
[null,"Side C",null,"Side D"]
[null,null,"Window Orientation",null,"Window Orientation"]
[null,null,"Projection Factor",null,"Projection Factor"]
[null,null,"Fixed, Operable, or Entrance Door",null,"Fixed, Operable, or Entrance Door"]
[]
[]
[null,null,"Total Window Area (ft²)",null,"Total Window Area (ft²)"]
[]
[null,null,"U-Value Proposed Window (BTU/h·ft²·°F)",null,"U-Value Proposed Window (BTU/h·ft²·°F)"]
[null,null,"SHGC Proposed Window",null,"SHGC Proposed Window"]
[]
[]
[]
[]
[]
[null,"Provide any additional information felt to be relevant here."]

{"sheet":"Air Compressor & Dryer","index":33,"n_rows":98,"n_cols":11,"rows_kept":98,"cut":false,"hidden":true,"merged":[[3,1,3,5],[4,1,4,5],[97,1,97,7],[98,1,109,7]]}
[null,"A I R   C O M P R E S S O R   &   D R Y E R"]
[19,"h",null,null,null,"h"]
[null,"CAGI data sheets must be submitted along with the cost proposal for both Base and Premium Efficient models."]
[null,"Participant must obtain conditional approval from the Utilities prior to the purchase or installation of any energy efficiency measures to be eligible to receive efficiency incentives. \n\nThe following are required for ALL measures:  \n        (1) Proposal to customer\n        (2) ALL specification sheets and supporting documents including CAGI data sheet (example below).\n        (3) Data fields (in yellow) on applicable tabs MUST BE FILLED IN"]
[]
[]
[null,"Compressed Air Load Profile:",null,null,null,null,null,null,null,"Air Compressors Incentives"]
[null,"(2 loads min.)           ","Flow (cfm)","Run Time (hrs)","Description",null,null,null,null,"Incremental Cost",0.75]
[null,"Load 1",null,null,null,null,null,null,null,"Measure Cap (greater of)","$0.40/kWh or $1,000.00/summer peak kW"]
[null,"Load 2",null,null,null,null,null,null,null,"Prescriptive:"]
[null,"Load 3",null,null,null,null,null,null,null,"< 5 hp",0]
[null,"Load 4",null,null,null,null,null,null,null,"≥ 5 hp < 40 hp","$310.00 / hp"]
[null,null,null,null,null,null,null,null,null,"≥ 40hp < 50 hp","$240.00 / hp"]
[null,"Total Project Cost",null,null,null,null,null,null,null,"≥ 50hp ≤ 100 hp","$205.00 / hp"]
[null,"Air Compressor              (yellow data fields are required)",null,null,null,null,null,"Yes","Cycling","> 100 hp","Custom – Contact applicable utility-Eversource or UI for details"]
[null,null,null,null,null,null,null,"No","Noncycling"]
[null,"Base Model"]
[null,"Manufacturer"]
[null,"Model Number",null,null,null,null,null,"Single","Water Cooled"]
[null,"Cost Each",null,null,null,null,null,"Two","Air Cooled"]
[null,"Air Cooled"]
[null,"Water Cooled"]
[null,"Oil Injected",null,null,null,null,null,null,"Oil Injected"]
[null,"Oil Free",null,null,null,null,null,null,"Oil Free"]
[null,"Compressor Type"]
[null,"# of Stages"]
[null,"Number of Compressors"]
[null,"Rated Capacity @ Full Load Operating Pressure acfm"]
[null,"Full Load Operating Pressure psig"]
[null,"Drive Motor Nominal Rating hp"]
[null,"Drive Motor Nominal Efficiency %"]
[null,"Fan Motor Nominal Rating hp"]
[null,"Fan Motor Nominal Efficiency %"]
[null,"Total Package Input Power\n@ Rated Capacity & Full Load Pressure   kW"]
[]
[null,"Premium Energy Efficient Model (VFD control, other)"]
[null,"Manufacturer"]
[null,"Model  Number"]
[null,"Cost Each"]
[null,"Air Cooled"]
[null,"Water Cooled"]
[null,"Oil Injected"]
[null,"Oil Free"]
[null,"Compressor Type"]
[null,"# of Stages"]
[null,"Number of Compressors"]
[null,"Rated Operating Pressure psig"]
[null,"Drive Motor Nominal Rating hp"]
[null,"Drive Motor Nominal Efficiency %"]
[null,"Fan Motor Nominal Rating hp"]
[null,"Fan Motor Efficiency %"]
[null,"Total installed cost of Compressor(s):"]
[null,"Input Power profile (kW):","xx      (kW)"," @ yy     (cfm)"]
[null,"(2 loads min.)          Max."]
[]
[]
[]
[]
[]
[null,"Min."]
[null,"Total Package Input Power \n@ Zero Flow kW",null,"`"]
[]
[]
[null,"Refrigerated Air Dryer:"]
[]
[null,"Base Model"]
[null,"Manufacturer"]
[null,"Model Number"]
[null,"Cost Each"]
[null,"Air Cooled"]
[null,"Water Cooled"]
[null,"Cycling/Non Cycling"]
[null,"Refrigerant"]
[null,"Refrigerant"]
[null,"Tested Flow scfm"]
[null,"# of Air Dryers:"]
[null,"Outlet Pressure Dewpoint  °F"]
[null,"Pressure Drop  psi"]
[null,"Total Dryer Input Power kW"]
[]
[null,"Premium Energy Efficient Model"]
[null,"Manufacturer"]
[null,"Model Number"]
[null,"Total installed cost of Dryer(s)"]
[null,"Cost Each"]
[null,"Air Cooled"]
[null,"Water Cooled"]
[null,"Cycling/Non Cycling"]
[null,"Refrigerant"]
[null,"Tested Flow scfm"]
[null,"Number of Air Dryers:"]
[null,"Outlet Pressure Dewpoint  °F"]
[null,"Pressure Drop psi"]
[null,"Total Dryer Input Power kW"]
[null,"Total installed cost of Dryer(s):"]
[]
[]
[null,"Note:-"]

{"sheet":"Air Compressor Heat Recovery","index":34,"n_rows":61,"n_cols":11,"rows_kept":61,"cut":false,"hidden":true,"merged":[[5,1,11,4],[13,1,13,4],[3,1,3,5],[4,1,4,5],[60,1,64,4],[47,7,51,9],[41,7,44,9],[53,1,57,4],[15,9,16,9],[14,1,14,2],[18,9,19,9],[22,1,23,5],[24,1,25,5],[16,1,18,4]]}
[null,"A I R   C O M P R E S S O R   H E A T   R E C O V E R Y     ( A I R - C O O L E D   C O M P R E S S O R S   O N L Y )"]
[19,"h",null,null,null,"h"]
[null,"Air-cooled compressors only"]
[null,"Participant must obtain conditional approval from the Utilities prior to the purchase or installation of any energy efficiency measures to be eligible to receive efficiency incentives. \n\nThe following are required for ALL measures:  \n        (1) Proposal to customer\n        (2) ALL specification sheets and supporting documents.\n        (3) Data fields (in yellow) on applicable tabs MUST BE FILLED IN"]
[]
[null,"For conditions where the air compressor takes in outside/indoor air to cool itself.  This is not for water cooled compressors.  This measure can effect heating or cooling of a building space but not both.  See notes below. The occupied building space must be served by Electric air conditioning equipment or Fossil Fuel heating equipment and the customer must be on a firm rate.  The sheet calculations are based on bin data analysis and the thermostat setpoint at which the system will automatically switch over to begin to recover heat. System must have automated control with motorized dampers, thermostatic control and correct control logic for safe  compressor operation."]
[]
[]
[]
[]
[]
[]
[null,"How would you best describe the location of the compressor?"]
[]
[]
[null,"If \"Other\" location was selected, please describe:"]
[null,null,null,null,null,null,null,null,null,null,"Heating Fule Type"]
[]
[null,null,null,null,null,null,null,null,null,null,"Electric"]
[null,"If the air compressor is located in an occupied building space (not a separate back room) that is air ",null,null,null,null,null,null,null,null,"Natural Gas"]
[null,"conditioned and draws and exhausts  its cooling air from this occupied space then indicate ",null,null,null,null,null,null,null,null,"Oil"]
[]
[null,"Select \"No\" for 'Is Space Cooled?' if the air compressor draws its cooling air from the outside or a separate mechanical room and does not currently exhaust this air into heated occupied building space.  "]
[]
[null,"Select \"Yes\" for 'Is Space Cooled?' if the air compressor is located in an occupied building space (not a separate back room) that is air conditioned and draws/exhausts its cooling air from this occupied space."]
[]
[null,null,null,null,null,null,null,null,null,null,"Propane"]
[null,null,"Is space cooled?",null,null,null,null,null,null,null,"Others"]
[null,null,"TOTAL INSTALLED COSTS"]
[]
[null,"Compressor Data",null,null,null,null,null,"HVAC Data (for area where heating/cooling will be supplied)",null,null,"Existing"]
[null,null,"Existing or New Compressor",null,null,null,null,null,"OA temperature setpoint for heating (winter operation, typically 45-50°F)",null,"New"]
[null,null,"Compressor Rating (hp)",null,null,null,null,null,"Heating Fuel"]
[null,null,"Compressor Qty.",null,null,null,null,null,"Heating Equipment Type"]
[null,null,"Rated Capacity at Full Load Operating Pressure (cfm for each comp.) - CAGI",null,null,null,null,null,"Heating Capacity (Btu/h)",null,"compressor location"]
[null,null,"% useful compressor heat recovered (assume 80% due to skin/ducting losses)",null,null,null,null,null,"Heating Efficiency"]
[null,null,"Quantity of Thermostats",null,null,null,null,null,"Cooling Equipment Type"]
[null,null,"Heating Thermostat Setpoint (°F)",null,null,null,null,null,"Cooling Capacity (Btu/h)"]
[null,null,"Compressor Heat Recovery Setpoint",null,null,null,null,null,"Cooling EER"]
[]
[null,"Facility Loads",null,null,null,null,null,"Describe the Location of Thermostats (below):"]
[null,"Loads","CFM","HRS"]
[]
[null,1]
[null,2]
[null,3]
[null,4,null,null,null,null,null,"Describe the Location where ductwork will vent from the compressor (below):"]
[]
[]
[null,"TOTAL ENERGY SAVINGS",null,"CCF % Savings (adjust based on bill bill data)"]
[null,null,null,"kWh % Savings (adjust based on bill bill data)"]
[]
[]
[null,"Note: Discussions with the customer in regards to the space where heat will be recovered to are required. If space is positively pressured, it is highly recommended to take air from interior space for heat recovery during heating season. If space is negatively pressured, intake air from either the interior space or outside will help with infiltration losses."]
[]
[null,null,null,null,null,null,null,null,null,null,"In conditioned space"]
[null,null,null,null,null,null,null,null,null,null,"In room with venting to the outside"]
[null,null,null,null,null,null,null,null,null,null,"Other -describe below"]
[]
[]
[null,"Program assumptions include 80% of compressor power generates waste heat. Of that 80%, only 80% of that will be effectively recovered to the space (skin losses of compressor and duct work). Space is assumed to have a heating system that is 80% efficient which is specified in the Program Savings Document."]

{"sheet":"PIMMS","index":35,"n_rows":43,"n_cols":6,"rows_kept":43,"cut":false,"hidden":true,"merged":[[42,3,44,6],[2,3,2,7]]}
[null,"P L A S T I C   I N J E C T I O N   M O L D I N G   M A C H I N E S   ( P I M M )"]
[19,"h",null,null,null,"h"]
[null,null,null,"Participant must obtain conditional approval from the Utilities prior to the purchase or installation of any energy efficiency measures to be eligible to receive efficiency incentives. \n\nThe following are required for ALL measures:  \n        (1) Proposal to customer\n        (2) ALL specification sheets and supporting documents.\n        (3) Data fields (in yellow) on applicable tabs MUST BE FILLED IN"]
[null,"Notes:","1. Baseline for IMM producing medical and electronic parts shall be an all-electric machine. All electric machines will therefore not qualify for incentives."]
[null,null,"2. Baseline for IMM less than 200 tons clamping force is an all-electric machine. As such, no incentives will be available for these applications."]
[null,null,"3. Baseline for IMM packaging and high speed molders shall be a hydraulic/hybrid machine with a servo motor driven hydraulic pumping."]
[null,null,"4. Baseline for all other IMM shall:"]
[null,null,"a. have variable volume hydraulic pumping"]
[null,null,"b. have a minimum clamping force large enough for the expected molds"]
[null,null,"c. be able to produce parts at the speed required by the site for the part"]
[null,null,"d. be able to meet the required specifications (materials, tolerances) for the expected parts"]
[null,null,"e. be a machine the manufacturer still currently manufactures (i.e., not a custom-built machine)"]
[null,null,"5. Annual operating hours would normally be the same for hybrid-hydraulic & the electric. "]
[null,null,"6. The \"Peak Molding Cycle kW' is the measured kW for the Lock Up/Injection portion of the molding cycle."]
[null,null,"7.  Full proposals for both units must be provided in submittal"]
[]
[null,null,null,null,"All Electric vs. Hybrid-Hydraulic/electric"]
[null,null,null,"Total Project Cost"]
[]
[null,null,"INJECTION MOLDING MACHINE INFORMATION"]
[null,null,null,null,"Hybrid-Hydraulic/Electric","ALL ELECTRIC"]
[null,null,null,"Manufacturer"]
[null,null,null,"Model Number"]
[null,null,null,"Nominal Tons"]
[null,null,null,"Machine Cost"]
[null,null,null,"Annual Operating Hours"]
[null,null,null,"Machine Scrap Rate (%)"]
[null,null,null,"Peak Molding Cycle kW"]
[null,null,null,"Hydraulic Oil Cooling Method"]
[null,null,"CYCLE TIMES (sec.):"]
[null,null,null,"Mold Open"]
[null,null,null,"Ejection"]
[null,null,null,"Mold Close"]
[null,null,null,"Lock Up / Injection"]
[null,null,null,"Recovery and Charge"]
[null,null,null,"Mold Cooling"]
[null,null,null,"Total Cycle Time",{"$f":"SUM(E31:E36)","v":0},{"$f":"SUM(F31:F36)","v":0}]
[]
[]
[]
[]
[]
[null,null,null,"Provide any additional information felt to be relevant here."]

{"sheet":"Compressed Air Leak Survey","index":36,"n_rows":65,"n_cols":9,"rows_kept":65,"cut":false,"hidden":true,"merged":[[58,0,58,6],[56,0,56,6],[34,1,34,6],[0,0,0,7],[29,2,30,7],[31,5,33,7],[33,2,33,4],[32,2,32,4],[31,2,31,4],[6,0,8,2],[11,0,12,2],[13,0,15,2],[16,0,17,2],[18,0,22,2],[23,0,25,2],[26,0,26,2],[37,1,37,3],[38,1,38,3],[39,1,39,3],[41,0,41,8],[49,0,49,3]]}
["                            C O M P R E S S E D   A I R  L E A K  S U R V E Y"]
[]
["Air Leak Study Deliverables"]
[]
["Level 1 - Air Leak Audit"]
[]
["An Air Leak Audit is an overview of the entire plant compressed air system identifying areas where compressed air is inappropriately being released and where the distribution system and/or end use equipment needs repair. Use Compressed Air Challenge best practices"]
[]
[]
["https://compressedairchallenge.org/ "]
[]
["An audit of the compressed air system with approved tools utilizing industry standard     practices is conducted."]
[]
["A submittal and/or spreadsheet is required documenting the specific areas of the air leaks. All air leaks must be tagged in the field. Pictures of the tagged air leaks are required unless not allowed due to sensitive equipment."]
[]
[]
["The submittal should summarize the tools and approach utilized to find and determine the losses of the air leaks."]
[]
["Indication of the compressed air system should be included and should list all air compressors, make and model numbers, size and capacity, and operating pressure. The report should estimate a typical load profile and identify which units typically operate to satisfy loads and which are backups. If available, CAGI data sheets showing power consumption of installed units per cfm produced should be supplied. Otherwise, available estimates must be supplied."]
[]
[]
[]
[]
["Each leak must list the pressure at the area, dB of the leak and calculated loss in cfm. Estimated kWh in energy savings would be helpful. Spreadsheets that show assumptions and calculations must be provided."]
[]
[]
["The submittal must include the estimated cost for repairing the identified air leaks."]
[]
[]
["Date of Leak Survey"]
["Leak Detector Tool Mfg & model"]
["Compressors simultaneously operating",null,"Number (not including back ups or add'l lead/ lag units"]
["Total Hours Air Compressor Runs per yr",null,"(not plant operating hours)"]
["CAGI Sheets Submitted (Yes or No)"]
["Leak Detection Survey Comments on approach and conditions. (Submit savings calculations with industry standard calculator separately) "]
["Estimated Cost of Repairs"]
[]
["Number of shifts"]
["Air Compressor Type"]
["Compresor control type"]
[]
["Air Compressor Survey Information"]
["Air Compressor System in typical priority of running","Manufacturer","Model #","Compressor type","Nominal HP","Max Pressure","Capacity CFM at Max","System Pressure psig","Compressor Control"]
[]
[]
[]
[]
[]
[]
["Load Profile"]
["(2 loads min.)","Flow (cfm)","Run Time (hrs)","Description"]
["Load 1"]
["Load 2"]
["Load 3"]
["Load 4"]
[]
["Attach pictures of tagged compressed air leak locations"]
[]
["Survey results example (submit separately with standard tool spreadsheet)"]
["Leak #","Area Name","Specific Location","Problem Description","Pressure at Leak","dB Reading","Repaired (Y or N)"]
["1 - example","maintenance garage","west wall","1/2 union leaking",100,20]
["2 - example","maintenance garage","east wall","quick connect ",80,32]
["3 - example","Prod area 1","machine 4","air hose gun leaking ",100,15]
["4 - example","Prod area 1","machine 9","1/2 inch line filter assembly leaking ",80,50]
["5 - example","Prod area 2","machine 17","regulator leaking",100,55]

{"sheet":"Washers","index":37,"n_rows":31,"n_cols":22,"rows_kept":31,"cut":false,"hidden":true,"merged":[[30,2,30,8],[31,2,32,8],[1,0,3,7]]}
[]
["Participant must obtain conditional approval from the Utilities prior to the purchase or installation of any energy efficiency measures to be eligible to receive efficiency incentives. \n\nThe following are required for ALL measures:  \n        (1) Proposal to customer\n        (2) ALL specification sheets and supporting documents.\n        (3) Data fields (in yellow) on applicable tabs MUST BE FILLED IN"]
[]
[]
[]
[null,null,"Clothes Washers",null,null,null,null,null,null,null,null,null,null,null,null,null,null,null,null,null,null,"Drop-down Inputs"]
[null,null,null,null,null,null,null,null,null,null,null,null,null,null,null,null,null,null,null,null,null,"Top Load Washer"]
[null,null,null,null,null,null,null,null,null,null,null,null,null,null,null,null,null,null,null,null,null,"Front Load Washer"]
[null,null,null,null,null,null,null,null,null,null,null,null,null,null,null,null,null,null,null,null,null,"Top Load Dryer"]
[null,"Facility Type:",null,null,null,null,null,null,null,null,null,null,null,"Front Load Washer",null,null,null,null,null,null,null,"Front Load Dryer"]
[null,"Washer Load Type",null,null,null,null,null,null,null,null,null,null,null,"Top Load Washer","dryer code"]
[null,"Dryer Type",null,null,null,null,null,null,null,null,null,null,null,"No Dryer",{"$f":"IF(N12=$C$12,0,1)","v":1}]
[null,"Dryer Load Type",null,"If all not the same, pick based on the largest number or most used.",null,null,null,null,null,null,null,null,null,"Electric Dryer",{"$f":"IF(N13=$C$12,1,0)","v":0}]
[null,"DHW type",null,null,null,null,null,null,null,null,null,null,null,"Gas Dryer",{"$f":"IF(N14=$C$12,1,0)","v":0}]
[null,"Estimated Install Cost",null,null,null,null,null,null,null,null,null,null,null,"Front Load Dryer"]
[null,"Inputs",null,null,null,null,null,null,null,null,null,null,null,"Top Load Dryer"]
[null,"Symbol","Description","Units","Electric Washer"]
[null,"Top Load Washer/Dryer",null," -- ",{"$f":"+C11","v":0},null,null,null,null,null,null,null,null,"Electric DHW","Gas DHW","Propane DHW","Oil DHW"]
[null,"N","# units","#"]
[null,"MEFi","Modified Energy Factor, installed","ft3/kWh/cycle"]
[null,"LDS","avg # load/wk","Loads/wk"]
[null,"WK","avg # weeks/yr","wk/yr"]
[null,"WkWhes","washer kWh/load Estar","kWh/load",8.5000000000000006E-2]
[null,"WBTUb","washer BTU/load Estar","BTU/load"," -- "]
[]
[]
[]
[]
[]
[]
[null,null,"Note:-"]

{"sheet":"Lighting Instructions","index":38,"n_rows":58,"n_cols":5,"rows_kept":58,"cut":false,"hidden":true,"merged":[[11,2,11,4],[32,3,32,4],[12,2,12,4],[13,2,13,4],[5,2,5,4],[6,2,6,4],[7,2,7,4],[8,2,8,4],[10,2,10,4],[14,2,14,4],[15,2,15,4],[17,2,17,4],[18,2,18,4],[19,2,19,4],[21,3,21,4],[32,2,33,2],[23,3,23,4],[30,3,30,4],[31,3,31,4],[33,3,33,4],[39,3,39,4],[36,3,36,4],[37,3,37,4],[38,3,38,4],[35,3,35,4],[34,3,34,4],[40,3,40,4],[41,3,41,4],[42,3,42,4],[43,3,43,4],[44,3,44,4],[47,3,47,4],[48,3,48,4],[49,3,49,4],[50,3,50,4],[57,3,57,4],[52,3,52,4],[53,3,53,4],[54,3,54,4],[55,3,55,4],[56,3,56,4]]}
[]
[]
[null,"Lighting Data Form Instructions"]
[]
[]
[null,"Administrative requirements:","1. Projects that qualify for the \"Standard\" tier should be submitted through the expedited lighting portal.  Project submitted through the expedited lighting portal do not need spec sheets or DLC screen shots.  "]
[null,null,"2. Projects that qualify for higher tiers than \"Standard\" are encouraged to to gothrough the expedited lighting portal, but not required."]
[null,null,"3. Enter savings data into Tracksys prior to sumitting the project to Engineering."]
[null,null,"4. When performing preliminary review of project, please ensure that all LED Requirements, Project Data and Fixture Data requirements are met (see below)."]
[]
[null,"LED requirements:","1.  Include copy of LED spec sheet. (Not required for with the expedited lighting portal)"]
[null,null,"2.  Include copy of Design Lights Consortium (DLC) approval or Energy Star approval.  This can be a website screen shot. (Not required with the expedited lighting portal)"]
[null,null,"3.  Include the DLC Product ID in Column L, this will help prevent mis-identification and improve approval time."]
[null,null,"4.  LEDs must be approved by DLC, Energy Star, or EE engineering prior to submitting the project for engineering review."]
[null,null,"5.  The descriptions of LEDs in this spreadsheet must match the model number, manufacturer, and product code listed on the included spec sheet and DLC/Energy Star approval."]
[null,null,"6.  For High Performance Lighting projects, please add a new tab in the beginning of this workbook and paste in the required control narrative that should come from either the customer or contractor."]
[]
[null,"Tab Name","Instructions"]
[null,"Project Data","Fill in all of the red background cells with the requested information."]
[null,null,"Fill in the yellow background cells as applicable."]
[]
[null,"Fixture Data","Column A  \"Area Description\"","Enter a description of the area where the lights are located, be specific and avoid repeated descriptions."]
[null,null,"Column B  \"Unit Quantity Before\"","Enter the quantity of fixtures for this area."]
[null,null,"Column C  \"Description Before\"","Enter a description of the existing lights.  Note the lamp type, lamp wattage, quantity of lamps in the fixture, and ballast type if applicable.  \nFor existing LEDs being replaced: List the LED manufacturer and model number.  Use the \"Existing Wattage Table\" tab for the correct configuration and wattage."]
[null,null,null,"Examples: ","13W COMPACT HW"]
[null,null,null,null,"1L4’ 25W T8EE/ELEE HIGH PWR "]
[null,null,null,null,"4L4’ 54W T5HO/ELIG"]
[null,null,null,null,"60W INC"]
[null,null,null,null,"150W HPS"]
[null,null,null,null,"Acme LED Co. - 24ABC Troffer"]
[null,null,"Column D  \"Watts/ Unit Before\"","Enter wattage for existing fixture, include ballast if applicable. Use the \"Existing Wattage Table\" tab for the correct configuration and wattage."]
[null,null,"Column E \"Annual Hours Before\"","Enter annual usage hours for existing fixture. If the area has existing occupancy sensors, reduce hours to reflect the current \"on\" time.  If over 6,000 hours, provide written verification to corroborate."]
[null,null,"Column G \"Item Type\"","New Fixtures - New fixtures being installed (includes retrofit kits). Retrofit downlights only qualify if the existing fixture is pin based CFL and proposed fixture is hard wired, ballast and socket have been removed (see picture to right), and listed as a downlight on Energy Star. Must confirm connector on spec sheet. Energy Star fixtures not categorized as downlights will only be eligible until Dec. 31 2024.\nNew Fixtures w/ LLLC or NLC – New fixture (or retrofit kit) which includes Luminaire-Level Lighting Control (LLLC) capability or is controlled by Network Lighting Controls (NLC) system listed on the DLC NLC Qualified Product List.  LLLC must be listed with DLC and on spec sheet. MUST BE NETWORKED AND COMMISSIONED.\nDefault LLLC Fixtures  - New fixture (or retrofit kit) which includes LLLC capability or is controlled by an NLC.  The system will not be networked and commissioned.\nTLED Type A & B (Non-Eligible)– Not eligible for incentives through EO, customer must go through Upstream or Express Rebate program.  Type A&B TLEDs may be allowed in the spreadsheet for accountability purposes (will not count energy savings or cost).\nLamp Replacement -  Includes mogul base lamps, pin-based lamps and TLED Type C linear replacement Lamp which requires rewiring of the existing fixture to replace the ballast with a new external driver.\nControls Only - New occupancy sensor or daylight harvesting controls added to existing fixtures or lamps.\nMisc. Costs - Extraordinary installation costs with itemized costing for items not directly associated with labor or materials for the part of the project."]
[null,null,null,"Non-Eligible – Product that does not meet program criteria such as DLC or Energy Star requirements, as well as downlights that do not meet the criteria above and any other products on the following Energy Star lists: Lamps and Luminaires, Ceiling Fan Light, Kits Ceiling and Vent fans with Lighting. New fixtures that are replacing general service lamps are also not eligible. \nRefrigerator – Product installed in a refrigerator case or walk-in.\nFreezer - Product installed in a freezer case or walk-in.                                                                                \nFixture Removal - Removal of unnecessary fixtures \n*NOTE SCREW-IN LED REMOVED FROM LIST FOR 2024-  Per new federal mandate, these are no longer eligible for savings/incentive. See note on \"non'eligible\" fixutures."]
[null,null,"Column H \"Lighting Group Type\"","Standard – LEDs only. Includes fixtures, retrofit kits, and Type C TLEDs.\nEnhanced Performance – Minimum of 1 control strategy per fixture and 2 strategies across entire project.  System must be able to digitally & wirelessly initialize, configure, and commission the LED fixtures.\nHigh Performance – Requires use of DLC qualified Networked Lighting Control system with energy monitoring and load shedding (demand response) capabilities.  Requires control narrative & requires 3 months of post-installation energy monitoring."]
[null,null,"Column I  \"Unit Quantity After\"","Enter the quantity of fixtures / lamps."]
[null,null,"Column J  \"Proposed Equipment - \n                      Manufacturer\"","Enter the manufacturer of the proposed lights."]
[null,null,"Column K  \"Proposed Equipment - \n                       Model Number\"","Enter the model number of the proposed lights, include the driver type if applicable.  Make sure to include entire model number (including controls package) if applicable "]
[null,null,"Column L  \"DLC Product ID\"","Enter the DLC Product ID for items on the DLC Qualified Product List, not applicable to Energy Star Certified LEDs.   Enter \"ES\" if the product is on the Energy Star list.  DLC Product ID: ABCDEFGH"]
[null,null,"Column M  \"Watts/ Unit After","Enter wattage for proposed fixture, include driver if applicable. Wattage should be taken directly from manufacturer's cut sheet, not DLC or Energy Star approval. For fixtures with selectable wattages, select wattage that will be used and should match option on spec sheet. Selection will be reviewed for reasonability"]
[null,null,"Column N  \"Dimmable Fixture or Lamp (Y or N)\"","If the new fixtures have dimming capabilty - click Y\nIf the new fixtures don't have dimming capabilty - click N\n(Can be verified through DLC ID or spec sheet)"]
[null,null,"Column O  \"NEW\" Occupancy Sensor Controlled? (Y or N)\"","If fixtures don't have existing occupancy sensors and they are to be added - select Y\nIf fixtures have existing occupancy sensors, but they are going to be removed and new sensors installed - select Y-Existing.\nIf fixtures have existing occupancy sensors and they are going to be re-used - select N\nIf occupancy sensors are NOT going to be added to control this fixture group - select N\nIf some of the fixtures in a group are to be controlled by new occupancy sensors and others are not, they must be split onto separate lines on the sheet."]
[null,null,"Column P  \"Occupancy Sensor Dim Level (%)\"","If the fixture will dim when the sensor indicates the space is unnoccupied, enter the dimmed light level as a percentage.  (ie enter 60% if the lights dim to 60% light output)"]
[null,null,"Column Q  \"Daylight Controls Used?\"","Enter \"Y\" if the items in that line that are using Daylight Harvesting capablilties to dim the lights when ambient daylight is available.  Only select \"Y\" for lights in the daylight area. \nThe daylight area is the portion of a building’s interior floor area that is illuminated by natural light."]
[null,null,"Column R  \"High End Trim %\"","Enter the proposed maximum light output, if the LED will have a High End Trim level set.  Lowest acceptable value is 60%."]
[null,null,"Column S  \"Installed Cost/ Fixture\"","Enter the installed cost per fixture / lamp."]
[]
[null,null,"TLED Type","Definition"]
[null,null,"Type A","Linear Replacement Lamp which operates on the existing ballast."]
[null,null,"Type B","Linear Replacement Lamp which operates on line voltage and bypasses the existing ballast."]
[null,null,"Type C","Linear Replacement Lamp which requires rewiring of the existing fixture to replace the ballast with a new external driver. "]
[]
[null,null,"Capability","Definition"]
[null,null,"Networking of Luminaires and Devices","The capability of individual luminaires and control devices to exchange digital data with other luminaires and controls devices on the system.  This capability is required at the room, space, or area level, but not at the whole building level or beyond (e.g. non-lighting systems, or the internet)."]
[null,null,"Occupancy Sensing","The capability to affect the operation of lighting equipment based upon detecting the presence or absence of people in a space."]
[null,null,"Daylight Harvesting / Photocell Control","The capability to automatically affect the operation of lighting based on the amount of daylight and/or ambient light that is present in a space, area,  or exterior environment.  This capability is typically called Daylight Harvesting for Interior systems, and Photocell Control for Exterior systems."]
[null,null,"High-End Trim","The capability to set the maximum light output to a less-than-maximum state of an individual or group of luminaires at the time of installation or commissioning. High-End Trim must be field reconfigurable.  For fixtures that will have factor enabled with high end trim, must provide proof of setting upon close out "]
[null,null,"Energy Monitoring","The capability of a system, luminaire, or device to report its own energy consumption, or the energy consumption of any controlled device via direct measurement or other methodology. The method by which the system implements this capability must be clearly described. The sampling frequency and accuracy of reported data must be specified."]

{"sheet":"Existing Fixtures","index":39,"n_rows":752,"n_cols":19,"rows_kept":752,"cut":false,"hidden":true,"merged":[]}
[]
[]
[null,"Existing Fixture Information",null,null,"2-ft T8 H.E.  ",null,"CFL's",null,null,"Pulse Start Metal Halide Lamp/Ballast",null,"T5  ",null,null,null,"Fluorescent Abbreviations:"]
[null,null,null,null,"3-ft T8 H.E.  ",null,"Low Volt. Halogen Fixture (incl. transf.)",null,null,"2-ft T8 / T12  ",null,"2-ft H.E. T8  ",null,null,null,"BX","Biax /Twin Tube Lamp","HPF","High Power Ballast Factor > 1.0"]
[null,null,null,null,"4-ft T8 H.E. / Reduce Wattage  ",null,"Halogen/Quartz Lamps",null,null,"3-ft T8 / T12  ",null,"3-ft H.E. T8  ",null,null,null,"EE","Energy-Efficient Lamp","HW","Hard Wire Fixture"]
[null,null,null,null,"3-ft T8 H.E.   ",null,"Mercury Vapor (MV)",null,null,"4-ft F48 T12  ",null,"4-ft T8 H.E. / Reduce Wattage  ",null,null,null,"EEMAG","Energy-Efficient Magnetic Balt.","LPF","Low Power Ballast Factor < 0.80"]
[null,null,null,null,"4-ft T8 H.E. / Reduce Wattage   ",null,"Low Pressure Sodium (LPS)",null,null,"4-ft F48VHO T12  ",null,"8-ft T8  ",null,null,null,"ELIG","Electronic Ballast","RW","Reduced Wattage T8 Systems"]
[null,null,null,null,"6-ft T8",null,"High Pressure Sodium (HPS)",null,null,"4-ft T12  ",null,"Tandem Wired T8 H.E.",null,null,null,"HO","High Output Lamp","STD","Standard Ballast or Lamp"]
[null,null,null,null,"8-ft T8   ",null,"Electronic Metal Halide Lamps",null,null,"4-ft T8  ",null,"Tandem-Wired Fluorescent  ",null,null,null,"HP","High Performance T8 Systems","VHO","Very High Output Lamp"]
[null,null,null,null,"U-Tube T8 H.E.  ",null,"MH Track Lighting",null,null,"Five Foot T8 / T12  "]
[null,null,null,null,"MH Track Lighting ",null,"Metal Halide (MH)",null,null,"Six Foot T12 & T12HO  "]
[null,"Click on any cell in the list below to make selection.",null,null,"Incandescent Lamps ",null,null,null,null,"8-ft T12HO  "]
["Device Code","Lighting Category","Fixture  Description","Watts"]
[null,"2-ft H.E. T8   "]
["1F17ESN ","2-ft H.E. T8   ","1L2’ 17W T8EE/ELEE ",17]
["1F17ESH ","2-ft H.E. T8   ","1L2’ 17W T8EE/ELEE HIGH PWR ",20]
["1F28BXE ","2-ft H.E. T8   ","1L2’ F28BX/ELIG ",32]
["2F17ESL ","2-ft H.E. T8   ","2L2’ 17W T8EE/ELEE LOW PWR ",27]
["2F17ESN ","2-ft H.E. T8   ","2L2’ 17W T8EE/ELEE ",32]
["2F17ESH ","2-ft H.E. T8   ","2L2’ 17W T8EE/ELEE HIGH PWR ",40]
["2F28BXE ","2-ft H.E. T8   ","2L2’ F28BX/ELIG ",63]
["3F17ESL ","2-ft H.E. T8   ","3L2’ 17W T8EE/ELEE LOW PWR ",39]
["3F17ESN ","2-ft H.E. T8   ","3L2’ 17W T8EE/ELEE ",46]
["3F17ESH ","2-ft H.E. T8   ","3L2’ 17W T8EE/ELEE HIGH PWR ",61]
["3F28BXE ","2-ft H.E. T8   ","3L2’ F28BX/ELIG ",94]
["1F17ESL ","2-ft H.E. T8   ","1L2’ 17W T8EE/ELEE LOW PWR ",14]
[null,"3-ft H.E. T8   "]
["1F25ESL ","3-ft H.E. T8   ","1L3’ 25W T8EE/ELEE LOW PWR ",21]
["1F25ESN ","3-ft H.E. T8   ","1L3’ 25W T8EE/ELEE ",24]
["1F25ESH ","3-ft H.E. T8   ","1L3’ 25W T8EE/ELEE HIGH PWR ",30]
["2F25ESL ","3-ft H.E. T8   ","2L3’ 25W T8EE/ELEE LOW PWR ",40]
["2F25ESN ","3-ft H.E. T8   ","2L3’ 25W T8EE/ELEE ",45]
["2F25ESH ","3-ft H.E. T8   ","2L3’ 25W T8EE/ELEE HIGH PWR ",60]
["3F25ESL ","3-ft H.E. T8   ","3L3’ 25W T8EE/ELEE LOW PWR ",58]
["3F25ESN ","3-ft H.E. T8   ","3L3’ 25W T8EE/ELEE ",67]
["3F25ESH ","3-ft H.E. T8   ","3L3’ 25W T8EE/ELEE HIGH PWR ",90]
[null,"4-ft T8 H.E. / Reduce Wattage  "]
["1F25EEH ","4-ft T8 H.E. / Reduce Wattage  ","1L4’ 25W T8EE/ELEE HIGH PWR ",30]
["1F25EEE ","4-ft T8 H.E. / Reduce Wattage  ","1L4’ 25W T8EE/ELEE ",22]
["1F25EEL ","4-ft T8 H.E. / Reduce Wattage  ","1L4’ 25W T8EE/ELEE LOW PWR ",19]
["2F25EEH ","4-ft T8 H.E. / Reduce Wattage  ","2L4’ 25W T8EE/ELEE HIGH PWR ",57]
["2F25EEE ","4-ft T8 H.E. / Reduce Wattage  ","2L4’ 25W T8EE/ELEE ",43]
["2F25EEL ","4-ft T8 H.E. / Reduce Wattage  ","2L4’ 25W T8EE/ELEE LOW PWR ",37]
["3F25EEH ","4-ft T8 H.E. / Reduce Wattage  ","3L4’ 25W T8EE/ELEE HIGH PWR ",86]
["3F25EEE ","4-ft T8 H.E. / Reduce Wattage  ","3L4’ 25W T8EE/ELEE ",64]
["3F25EEL ","4-ft T8 H.E. / Reduce Wattage  ","3L4’ 25W T8EE/ELEE LOW PWR ",57]
["4F25EEH ","4-ft T8 H.E. / Reduce Wattage  ","4L4’ 25W T8EE/ELEE HIGH PWR ",111]
["4F25EEE ","4-ft T8 H.E. / Reduce Wattage  ","4L4’ 25W T8EE/ELEE ",86]
["4F25EEL ","4-ft T8 H.E. / Reduce Wattage  ","4L4’ 25W T8EE/ELEE LOW PWR ",75]
["1F28EEH ","4-ft T8 H.E. / Reduce Wattage  ","1L4’ 28W T8EE/ELEE HIGH PWR ",33]
["1F28EEE ","4-ft T8 H.E. / Reduce Wattage  ","1L4’ 28W T8EE/ELEE ",24]
["1F28EEL ","4-ft T8 H.E. / Reduce Wattage  ","1L4’ 28W T8EE/ELEE LOW PWR ",22]
["2F28EEH ","4-ft T8 H.E. / Reduce Wattage  ","2L4’ 28WT8EE/ELEE HIGH PWR ",64]
["2F28EEE ","4-ft T8 H.E. / Reduce Wattage  ","2L4’ 28W T8EE/ELEE ",48]
["2F28EEL ","4-ft T8 H.E. / Reduce Wattage  ","2L4’ 28W T8EE/ELEE LOW PWR ",42]
["3F28EEH ","4-ft T8 H.E. / Reduce Wattage  ","3L4’ 28W T8EE/ELEE HIGH PWR ",96]
["3F28EEE ","4-ft T8 H.E. / Reduce Wattage  ","3L4’ 28W T8EE/ELEE ",72]
["3F28EEL ","4-ft T8 H.E. / Reduce Wattage  ","3L4’ 28W T8EE/ELEE LOW PWR ",63]
["4F28EEH ","4-ft T8 H.E. / Reduce Wattage  ","4L4’ 28W T8EE/ELEE HIGH PWR ",126]
["4F28EEE ","4-ft T8 H.E. / Reduce Wattage  ","4L4’ 28W T8EE/ELEE ",94]
["4F28EEL ","4-ft T8 H.E. / Reduce Wattage  ","4L4’ 28W T8EE/ELEE LOW PWR ",83]
["1F30EEH ","4-ft T8 H.E. / Reduce Wattage  ","1L4’ 30W T8EE/ELEE HIGH PWR ",36]
["1F30EEE ","4-ft T8 H.E. / Reduce Wattage  ","1L4’ 30W T8EE/ELEE ",26]
["1F30EEL ","4-ft T8 H.E. / Reduce Wattage  ","1L4’ 30W T8EE/ELEE LOW PWR ",24]
["2F30EEH ","4-ft T8 H.E. / Reduce Wattage  ","2L4’ 30WT8EE/ELEE HIGH PWR ",69]
["2F30EEE ","4-ft T8 H.E. / Reduce Wattage  ","2L4’ 30W T8EE/ELEE ",52]
["2F30EEL ","4-ft T8 H.E. / Reduce Wattage  ","2L4’ 30W T8EE/ELEE LOW PWR ",45]
["3F30EEH ","4-ft T8 H.E. / Reduce Wattage  ","3L4’ 30W T8EE/ELEE HIGH PWR ",103]
["3F30EEE ","4-ft T8 H.E. / Reduce Wattage  ","3L4’ 30W T8EE/ELEE ",77]
["3F30EEL ","4-ft T8 H.E. / Reduce Wattage  ","3L4’ 30W T8EE/ELEE LOW PWR ",68]
["4F30EEH ","4-ft T8 H.E. / Reduce Wattage  ","4L4’ 30W T8EE/ELEE HIGH PWR ",133]
["4F30EEE ","4-ft T8 H.E. / Reduce Wattage  ","4L4’ 30W T8EE/ELEE ",101]
["4F30EEL ","4-ft T8 H.E. / Reduce Wattage  ","4L4’ 30W T8EE/ELEE LOW PWR ",89]
["1F32EEH ","4-ft T8 H.E. / Reduce Wattage  ","1L4’ 32W T8EE/ELEE HIGH PWR ",38]
["1F32EEE ","4-ft T8 H.E. / Reduce Wattage  ","1L4’ 32W T8EE/ELEE ",28]
["1F32EEL ","4-ft T8 H.E. / Reduce Wattage  ","1L4’ 32W T8EE/ELEE LOW PWR ",25]
["1F32SSE ","4-ft T8 H.E. / Reduce Wattage  ","1L4’ 32W T8/ELIG ",30]
["2F32SSE ","4-ft T8 H.E. / Reduce Wattage  ","2L4’ 32W T8/ELIG ",60]
["5F32EEH ","4-ft T8 H.E. / Reduce Wattage  ","5L4’ 32W T8EE/ELEE HIGH PWR ",182]
["6F28EEE ","4-ft T8 H.E. / Reduce Wattage  ","6L4’ 28W T8EE/ELEE ",144]
["6F28EEH ","4-ft T8 H.E. / Reduce Wattage  ","6L4’ 28W T8EE/ELEE HIGH PWR ",192]
["6F28EEL ","4-ft T8 H.E. / Reduce Wattage  ","6L4’ 28W T8EE/ELEE LOW PWR ",126]
["6F30EEE ","4-ft T8 H.E. / Reduce Wattage  ","6L4’ 30W T8EE/ELEE ",154]
["6F30EEL ","4-ft T8 H.E. / Reduce Wattage  ","6L4’ 30W T8EE/ELEE LOW PWR ",136]
["7F32EEH ","4-ft T8 H.E. / Reduce Wattage  ","7L4’ 32W T8EE/ELEE HIGH PWR ",250]
["2F32EEH ","4-ft T8 H.E. / Reduce Wattage  ","2L4’ 32W T8EE/ELEE HIGH PWR ",73]
["2F32EEE ","4-ft T8 H.E. / Reduce Wattage  ","2L4’ 32W T8EE/ELEE ",53]
["2F32EEL ","4-ft T8 H.E. / Reduce Wattage  ","2L4’ 32W T8EE/ELEE LOW PWR ",47]
["3F32EEH ","4-ft T8 H.E. / Reduce Wattage  ","3L4’ 32W T8EE/ELEE HIGH PWR ",109]
["3F32EEE ","4-ft T8 H.E. / Reduce Wattage  ","3L4’ 32W T8EE/ELEE ",82]
["3F32EEL ","4-ft T8 H.E. / Reduce Wattage  ","3L4’ 32W T8EE/ELEE LOW PWR ",72]
["4F32EEH ","4-ft T8 H.E. / Reduce Wattage  ","4L4’ 32W T8EE/ELEE HIGH PWR ",141]
["4F32EEE ","4-ft T8 H.E. / Reduce Wattage  ","4L4’ 32W T8EE/ELEE ",107]
["4F32EEL ","4-ft T8 H.E. / Reduce Wattage  ","4L4’ 32W T8EE/ELEE LOW PWR ",95]
["6F32EEH ","4-ft T8 H.E. / Reduce Wattage  ","6L4’ 32W T8EE/ELEE HIGH PWR ",218]
["6F32EEE ","4-ft T8 H.E. / Reduce Wattage  ","6L4’ 32W T8EE/ELEE ",168]
["6F32EEL ","4-ft T8 H.E. / Reduce Wattage  ","6L4’ 32W T8EE/ELEE LOW PWR ",146]
[null,"3-ft H.E. T8   "]
["1F25ESL ","3-ft H.E. T8   ","1L3’ 25W T8EE/ELEE LOW PWR ",21]
["1F25ESN ","3-ft H.E. T8   ","1L3’ 25W T8EE/ELEE ",24]
["1F25ESH ","3-ft H.E. T8   ","1L3’ 25W T8EE/ELEE HIGH PWR ",30]
["2F25ESL ","3-ft H.E. T8   ","2L3’ 25W T8EE/ELEE LOW PWR ",40]
["2F25ESN ","3-ft H.E. T8   ","2L3’ 25W T8EE/ELEE ",45]
["2F25ESH ","3-ft H.E. T8   ","2L3’ 25W T8EE/ELEE HIGH PWR ",60]
["3F25ESL ","3-ft H.E. T8   ","3L3’ 25W T8EE/ELEE LOW PWR ",58]
["3F25ESN ","3-ft H.E. T8   ","3L3’ 25W T8EE/ELEE ",67]
["3F25ESH ","3-ft H.E. T8   ","3L3’ 25W T8EE/ELEE HIGH PWR ",90]
[null,"4-ft T8 H.E. / Reduce Wattage   "]
["1F25EEH ","4-ft T8 H.E. / Reduce Wattage   ","1L4’ 25W T8EE/ELEE HIGH PWR ",30]
["1F25EEE ","4-ft T8 H.E. / Reduce Wattage   ","1L4’ 25W T8EE/ELEE ",22]
["1F25EEL ","4-ft T8 H.E. / Reduce Wattage   ","1L4’ 25W T8EE/ELEE LOW PWR ",19]
["2F25EEH ","4-ft T8 H.E. / Reduce Wattage   ","2L4’ 25W T8EE/ELEE HIGH PWR ",57]
["2F25EEE ","4-ft T8 H.E. / Reduce Wattage   ","2L4’ 25W T8EE/ELEE ",43]
["2F25EEL ","4-ft T8 H.E. / Reduce Wattage   ","2L4’ 25W T8EE/ELEE LOW PWR ",37]
["3F25EEH ","4-ft T8 H.E. / Reduce Wattage   ","3L4’ 25W T8EE/ELEE HIGH PWR ",86]
["3F25EEE ","4-ft T8 H.E. / Reduce Wattage   ","3L4’ 25W T8EE/ELEE ",64]
["3F25EEL ","4-ft T8 H.E. / Reduce Wattage   ","3L4’ 25W T8EE/ELEE LOW PWR ",57]
["4F25EEH ","4-ft T8 H.E. / Reduce Wattage   ","4L4’ 25W T8EE/ELEE HIGH PWR ",111]
["4F25EEE ","4-ft T8 H.E. / Reduce Wattage   ","4L4’ 25W T8EE/ELEE ",86]
["4F25EEL ","4-ft T8 H.E. / Reduce Wattage   ","4L4’ 25W T8EE/ELEE LOW PWR ",75]
["1F28EEH ","4-ft T8 H.E. / Reduce Wattage   ","1L4’ 28W T8EE/ELEE HIGH PWR ",33]
["1F28EEE ","4-ft T8 H.E. / Reduce Wattage   ","1L4’ 28W T8EE/ELEE ",24]
["1F28EEL ","4-ft T8 H.E. / Reduce Wattage   ","1L4’ 28W T8EE/ELEE LOW PWR ",22]
["2F28EEH ","4-ft T8 H.E. / Reduce Wattage   ","2L4’ 28WT8EE/ELEE HIGH PWR ",64]
["2F28EEE ","4-ft T8 H.E. / Reduce Wattage   ","2L4’ 28W T8EE/ELEE ",48]
["2F28EEL ","4-ft T8 H.E. / Reduce Wattage   ","2L4’ 28W T8EE/ELEE LOW PWR ",42]
["3F28EEH ","4-ft T8 H.E. / Reduce Wattage   ","3L4’ 28W T8EE/ELEE HIGH PWR ",96]
["3F28EEE ","4-ft T8 H.E. / Reduce Wattage   ","3L4’ 28W T8EE/ELEE ",72]
["3F28EEL ","4-ft T8 H.E. / Reduce Wattage   ","3L4’ 28W T8EE/ELEE LOW PWR ",63]
["4F28EEH ","4-ft T8 H.E. / Reduce Wattage   ","4L4’ 28W T8EE/ELEE HIGH PWR ",126]
["4F28EEE ","4-ft T8 H.E. / Reduce Wattage   ","4L4’ 28W T8EE/ELEE ",94]
["4F28EEL ","4-ft T8 H.E. / Reduce Wattage   ","4L4’ 28W T8EE/ELEE LOW PWR ",83]
["1F30EEH ","4-ft T8 H.E. / Reduce Wattage   ","1L4’ 30W T8EE/ELEE HIGH PWR ",36]
["1F30EEE ","4-ft T8 H.E. / Reduce Wattage   ","1L4’ 30W T8EE/ELEE ",26]
["1F30EEL ","4-ft T8 H.E. / Reduce Wattage   ","1L4’ 30W T8EE/ELEE LOW PWR ",24]
["2F30EEH ","4-ft T8 H.E. / Reduce Wattage   ","2L4’ 30WT8EE/ELEE HIGH PWR ",69]
["2F30EEE ","4-ft T8 H.E. / Reduce Wattage   ","2L4’ 30W T8EE/ELEE ",52]
["2F30EEL ","4-ft T8 H.E. / Reduce Wattage   ","2L4’ 30W T8EE/ELEE LOW PWR ",45]
["3F30EEH ","4-ft T8 H.E. / Reduce Wattage   ","3L4’ 30W T8EE/ELEE HIGH PWR ",103]
["3F30EEE ","4-ft T8 H.E. / Reduce Wattage   ","3L4’ 30W T8EE/ELEE ",77]
["3F30EEL ","4-ft T8 H.E. / Reduce Wattage   ","3L4’ 30W T8EE/ELEE LOW PWR ",68]
["4F30EEH ","4-ft T8 H.E. / Reduce Wattage   ","4L4’ 30W T8EE/ELEE HIGH PWR ",133]
["4F30EEE ","4-ft T8 H.E. / Reduce Wattage   ","4L4’ 30W T8EE/ELEE ",101]
["4F30EEL ","4-ft T8 H.E. / Reduce Wattage   ","4L4’ 30W T8EE/ELEE LOW PWR ",89]
["1F32EEH ","4-ft T8 H.E. / Reduce Wattage   ","1L4’ 32W T8EE/ELEE HIGH PWR ",38]
["1F32EEE ","4-ft T8 H.E. / Reduce Wattage   ","1L4’ 32W T8EE/ELEE ",28]
["1F32EEL ","4-ft T8 H.E. / Reduce Wattage   ","1L4’ 32W T8EE/ELEE LOW PWR ",25]
["1F32SSE ","4-ft T8 H.E. / Reduce Wattage   ","1L4’ 32W T8/ELIG ",30]
["2F32SSE ","4-ft T8 H.E. / Reduce Wattage   ","2L4’ 32W T8/ELIG ",60]
["5F32EEH ","4-ft T8 H.E. / Reduce Wattage   ","5L4’ 32W T8EE/ELEE HIGH PWR ",182]
["6F28EEE ","4-ft T8 H.E. / Reduce Wattage   ","6L4’ 28W T8EE/ELEE ",144]
["6F28EEH ","4-ft T8 H.E. / Reduce Wattage   ","6L4’ 28W T8EE/ELEE HIGH PWR ",192]
["6F28EEL ","4-ft T8 H.E. / Reduce Wattage   ","6L4’ 28W T8EE/ELEE LOW PWR ",126]
["6F30EEE ","4-ft T8 H.E. / Reduce Wattage   ","6L4’ 30W T8EE/ELEE ",154]
["6F30EEL ","4-ft T8 H.E. / Reduce Wattage   ","6L4’ 30W T8EE/ELEE LOW PWR ",136]
["7F32EEH ","4-ft T8 H.E. / Reduce Wattage   ","7L4’ 32W T8EE/ELEE HIGH PWR ",250]
["2F32EEH ","4-ft T8 H.E. / Reduce Wattage   ","2L4’ 32W T8EE/ELEE HIGH PWR ",73]
["2F32EEE ","4-ft T8 H.E. / Reduce Wattage   ","2L4’ 32W T8EE/ELEE ",53]
["2F32EEL ","4-ft T8 H.E. / Reduce Wattage   ","2L4’ 32W T8EE/ELEE LOW PWR ",47]
["3F32EEH ","4-ft T8 H.E. / Reduce Wattage   ","3L4’ 32W T8EE/ELEE HIGH PWR ",109]
["3F32EEE ","4-ft T8 H.E. / Reduce Wattage   ","3L4’ 32W T8EE/ELEE ",82]
["3F32EEL ","4-ft T8 H.E. / Reduce Wattage   ","3L4’ 32W T8EE/ELEE LOW PWR ",72]
["4F32EEH ","4-ft T8 H.E. / Reduce Wattage   ","4L4’ 32W T8EE/ELEE HIGH PWR ",141]
["4F32EEE ","4-ft T8 H.E. / Reduce Wattage   ","4L4’ 32W T8EE/ELEE ",107]
["4F32EEL ","4-ft T8 H.E. / Reduce Wattage   ","4L4’ 32W T8EE/ELEE LOW PWR ",95]
["6F32EEH ","4-ft T8 H.E. / Reduce Wattage   ","6L4’ 32W T8EE/ELEE HIGH PWR ",218]
["6F32EEE ","4-ft T8 H.E. / Reduce Wattage   ","6L4’ 32W T8EE/ELEE ",168]
["6F32EEL ","4-ft T8 H.E. / Reduce Wattage   ","6L4’ 32W T8EE/ELEE LOW PWR ",146]
[null,"U-Tube H.E. T8   "]
[null,"4-ft T8 H.E. / Reduce Wattage   ","1L U-Tube 28W T8EE/ELEE ",24]
["1F59SSE ","4-ft T8 H.E. / Reduce Wattage   ","1L U-Tube 28W T8EE/ELEE HIGH PWR ",33]
["1F80SSE ","4-ft T8 H.E. / Reduce Wattage   ","1L U-Tube 28W T8EE/ELEE LOW PWR ",22]
["2F59SSE ","4-ft T8 H.E. / Reduce Wattage   ","1L U-Tube 32W T8/ELIG ",30]
["2F59SSL ","4-ft T8 H.E. / Reduce Wattage   ","1L U-Tube 32W T8EE/ELEE ",28]
["2F80SSE ","4-ft T8 H.E. / Reduce Wattage   ","1L U-Tube 32W T8EE/ELEE HIGH PWR ",38]
[null,"4-ft T8 H.E. / Reduce Wattage   ","1L U-Tube 32W T8EE/ELEE LOW PWR ",25]
["1M0100E ","4-ft T8 H.E. / Reduce Wattage   ","2L U-Tube 28W T8EE/ELEE ",48]
["1M0150E ","4-ft T8 H.E. / Reduce Wattage   ","2L U-Tube 28W T8EE/ELEE LOW PWR ",42]
[null,"4-ft T8 H.E. / Reduce Wattage   ","2L U-Tube 28WT8EE/ELEE HIGH PWR ",64]
["1F72HSE","4-ft T8 H.E. / Reduce Wattage   ","2L U-Tube 32W T8/ELIG ",60]
[null,"4-ft T8 H.E. / Reduce Wattage   ","2L U-Tube 32W T8EE/ELEE ",53]
["1I0015","4-ft T8 H.E. / Reduce Wattage   ","2L U-Tube 32W T8EE/ELEE HIGH PWR ",73]
["1I0020","4-ft T8 H.E. / Reduce Wattage   ","2L U-Tube 32W T8EE/ELEE LOW PWR ",47]
["1I0025","4-ft T8 H.E. / Reduce Wattage   ","3L U-Tube 28W T8EE/ELEE ",72]
["1I0034","4-ft T8 H.E. / Reduce Wattage   ","3L U-Tube 28W T8EE/ELEE HIGH PWR ",96]
["1I0036","4-ft T8 H.E. / Reduce Wattage   ","3L U-Tube 28W T8EE/ELEE LOW PWR ",63]
["1I0040","4-ft T8 H.E. / Reduce Wattage   ","3L U-Tube 32W T8EE/ELEE ",82]
["1I0042","4-ft T8 H.E. / Reduce Wattage   ","3L U-Tube 32W T8EE/ELEE HIGH PWR ",109]
["1I0045","4-ft T8 H.E. / Reduce Wattage   ","3L U-Tube 32W T8EE/ELEE LOW PWR ",72]
["1I0052","8-ft T8   "]
["1I0054","8-ft T8   ","1L8’ T8/ELIG ",60]
["1I0055","8-ft T8   ","1L8’ T8 HO/ELIG ",85]
["1I0060","8-ft T8   ","2L8’ T8/ELIG ",109]
["1I0065","8-ft T8   ","2L8’ T8/ELIG LOW PWR ",100]
["1I0067","8-ft T8   ","2L8’ T8 HO/ELIG ",160]
["1I0069","MH Track Lighting "]
["1I0072","MH Track Lighting ","100W MH SPOT ",111]
["1I0075","MH Track Lighting ","150W MH SPOT ",162]
["1I0080","Six Foot   "]
["1I0085","Six Foot   ","1L6' T8HO/ELIG",80]
["1I0090","Incandescent Lamps "]
["1I0093","Incandescent Lamps ","15W INC",15]
["1I0100","Incandescent Lamps ","20W INC",20]
["1I0120","Incandescent Lamps ","25W INC",25]
["1I0125","Incandescent Lamps ","34W INC",34]
["1I0135","Incandescent Lamps ","36W INC",36]
["1I0150","Incandescent Lamps ","40W INC",40]
["1I0200","Incandescent Lamps ","42W INC",42]
["1I0300","Incandescent Lamps ","45W INC",45]
["1I0448","Incandescent Lamps ","50W INC",50]
["1I0500","Incandescent Lamps ","52W INC",52]
["1I0750","Incandescent Lamps ","54W INC",54]
["1I1000","Incandescent Lamps ","55W INC",55]
["1I1500","Incandescent Lamps ","60W INC",60]
[null,"Incandescent Lamps ","65W INC",65]
["1C0005S","Incandescent Lamps ","67W INC",67]
["1C0007S","Incandescent Lamps ","69W INC",69]
["1C0009S","Incandescent Lamps ","72W INC",72]
["1C0011S","Incandescent Lamps ","75W INC",75]
["1C0013S","Incandescent Lamps ","80W INC",80]
["1C0018E","Incandescent Lamps ","85W INC",85]
["1C0018S","Incandescent Lamps ","90W INC",90]
["1C0022S","Incandescent Lamps ","93W INC",93]
["1C0023E","Incandescent Lamps ","100W INC",100]
["1C0026E","Incandescent Lamps ","120W INC",120]
["1C0026S","Incandescent Lamps ","125W INC",125]
["1C0028S","Incandescent Lamps ","135W INC",135]
["1C0032E","Incandescent Lamps ","150W INC",150]
["1C0032S","Incandescent Lamps ","200W INC",200]
["1C0042E","Incandescent Lamps ","300W INC",300]
["1C0044S","Incandescent Lamps ","448W INC",448]
["1C0057E","Incandescent Lamps ","500W INC",500]
["1C2232S","Incandescent Lamps ","750W INC",750]
["1C2D10E","Incandescent Lamps ","1000W INC",1000]
["1C2D16E","Incandescent Lamps ","1500W INC",1500]
["1C2D21E","CFL's"]
["1C2D28E","CFL's","5W COMPACT HW",7]
["1C2D38E","CFL's","7W COMPACT HW",9]
["1C3240S","CFL's","9W COMPACT HW",11]
["2C0005S","CFL's","11W COMPACT HW",13]
["2C0007S","CFL's","13W COMPACT HW",15]
["2C0009S","CFL's","18W COMPACT HW ELIG",20]
["2C0011S","CFL's","18W COMPACT HW",20]
["2C0013E","CFL's","22W COMPACT HW",24]
["2C0013S","CFL's","1/23W COMPACT HW ELIG",25]
["2C0018E","CFL's","26W COMPACT HW ELIG",28]
["2C0026E","CFL's","26W COMPACT HW",28]
["2C0032E","CFL's","28W COMPACT HW",30]
["2C0042E","CFL's","32W COMPACT HW ELIG",34]
["2C0057E","CFL's","32W CIRCLINE HW",34]
["3C0009S","CFL's","1/42W COMPACT HW ELIG",48]
["3C0013S","CFL's","44W CIRCLINE HW",46]
["3C0018E","CFL's","1/57W COMPACT HW ELIG",65]
["3C0026E","CFL's","22/32W CIRCLINE HW",58]
["3C0032E","CFL's","10W 2D COMPACT HW ELIG",12]
["3C0042E","CFL's","16W 2D COMPACT HW ELIG",18]
["4C0026E","CFL's","21W 2D COMPACT HW ELIG",22]
["4C0032E","CFL's","28W 2D COMPACT HW ELIG",28]
["4C0042E","CFL's","38W 2D COMP.HW ELIG",36]
["6C0026E","CFL's","32/40W CIRCLINE HW",80]
["6C0032E","CFL's","2/5W COMPACT HW",14]
["6C0042E","CFL's","2/7W COMPACT HW",18]
["8C0026E","CFL's","2/9W COMPACT HW",22]
["8C0032E","CFL's","2/11W COMPACT HW",26]
["8C0042E","CFL's","2/13W COMPACT HW ELIG",28]
["4C0018E","CFL's","2/13W COMPACT HW",30]
[null,"CFL's","2/18W COMP. HW ELIG",40]
["1R0020","CFL's","2/26W COMP. HW ELIG",54]
["1R0025","CFL's","2/32W COMPACT HW ELIG",68]
["1R0035","CFL's","2/42W COMPACT HW ELIG",100]
["1R0042","CFL's","2/57W COMPACT HW ELIG",130]
["1R0050","CFL's","3/9W COMPACT HW",33]
["1R0065","CFL's","3/13W COMPACT HW",45]
["1R0075","CFL's","3/18W COMPACT HW ELIG",60]
[null,"CFL's","3/26W COMPACT HW ELIG",82]
["1T0035","CFL's","3/32W COMPACT HW ELIG",114]
["1T0040","CFL's","3/42W COMPACT HW ELIG",141]
["1T0042","CFL's","4/26W COMPACT HW ELIG",108]
["1T0045","CFL's","4/32W COMPACT HW ELIG",152]
["1T0047","CFL's","4/42W COMPACT HW ELIG",188]
["1T0050","CFL's","6/26W COMPACT HW ELIG",162]
["1T0052","CFL's","6/32W COMPACT HW ELIG",228]
["1T0055","CFL's","6/42W COMPACT HW ELIG",282]
["1T0060","CFL's","8/26W COMPACT HW ELIG",216]
["1T0072","CFL's","8/32W COMPACT HW ELIG",304]
["1T0075","CFL's","8/42W COMPACT HW ELIG",376]
["1T0090","CFL's","4/18W COMPACT HW ELIG",80]
["1T0100","Low Voltage Halogen Fixture (includes Transformer)"]
["1T0150","Low Voltage Halogen Fixture (includes Transformer)","20W LV HALOGEN FIXT",30]
["1T0200","Low Voltage Halogen Fixture (includes Transformer)","25W LV HALOGEN FIXT",35]
["1T0250","Low Voltage Halogen Fixture (includes Transformer)","35W LV HALOGEN FIXT",45]
["1T0300","Low Voltage Halogen Fixture (includes Transformer)","42W LV HALOGEN FIXT",52]
["1T0350","Low Voltage Halogen Fixture (includes Transformer)","50W LV HALOGEN FIXT",60]
["1T0400","Low Voltage Halogen Fixture (includes Transformer)","65W LV HALOGEN FIXT",75]
["1T0425","Low Voltage Halogen Fixture (includes Transformer)","75W LV HALOGEN FIXT",85]
["1T0500","Halogen/Quartz Lamps"]
["1T0750","Halogen/Quartz Lamps","35W HALOGEN LAMP",35]
["1T0900","Halogen/Quartz Lamps","40W HALOGEN LAMP",40]
["1T1000","Halogen/Quartz Lamps","42W HALOGEN LAMP",42]
["1T1200","Halogen/Quartz Lamps","45W HALOGEN LAMP",45]
["1T1500","Halogen/Quartz Lamps","47W HALOGEN LAMP",47]
[null,"Halogen/Quartz Lamps","50W HALOGEN LAMP",50]
["1V0040S","Halogen/Quartz Lamps","52W HALOGEN LAMP",52]
["1V0050S","Halogen/Quartz Lamps","55W HALOGEN LAMP",55]
["1V0075S","Halogen/Quartz Lamps","60W HALOGEN LAMP",60]
["1V0100S","Halogen/Quartz Lamps","72W HALOGEN LAMP",72]
["1V0175S","Halogen/Quartz Lamps","75W HALOGEN LAMP",75]
["1V0250S","Halogen/Quartz Lamps","90W HALOGEN LAMP",90]
["1V0400S","Halogen/Quartz Lamps","100W HALOGEN LAMP",100]
["1V0700S","Halogen/Quartz Lamps","150W HALOGEN LAMP",150]
["1V1000S","Halogen/Quartz Lamps","200W HALOGEN LAMP",200]
["2V0400S","Halogen/Quartz Lamps","250W HALOGEN LAMP",250]
[null,"Halogen/Quartz Lamps","300W HALOGEN LAMP",300]
["1L0035S","Halogen/Quartz Lamps","350W HALOGEN LAMP",350]
["1L0055S","Halogen/Quartz Lamps","400W HALOGEN LAMP",400]
["1L0090S","Halogen/Quartz Lamps","425W HALOGEN LAMP",425]
["1L0135S","Halogen/Quartz Lamps","500W HALOGEN LAMP",500]
["1L0180S","Halogen/Quartz Lamps","750W HALOGEN LAMP",750]
[null,"Halogen/Quartz Lamps","900W HALOGEN LAMP",900]
["1H0035S","Halogen/Quartz Lamps","1000W HALOGEN LAMP",1000]
["1H0050S","Halogen/Quartz Lamps","1200W HALOGEN LAMP",1200]
["1H0070S","Halogen/Quartz Lamps","1500W HALOGEN LAMP",1500]
["1H0100S","Mercury Vapor (MV)"]
["1H0150S","Mercury Vapor (MV)","40W MERCURY",50]
["1H0200S","Mercury Vapor (MV)","50W MERCURY",75]
["1H0225S","Mercury Vapor (MV)","75W MERCURY",95]
["1H0250S","Mercury Vapor (MV)","100W MERCURY",120]
["1H0310S","Mercury Vapor (MV)","175W MERCURY",205]
["1H0360S","Mercury Vapor (MV)","250W MERCURY",290]
["1H0400S","Mercury Vapor (MV)","400W MERCURY",455]
["1H0600S","Mercury Vapor (MV)","700W MERCURY",775]
["1H0750S","Mercury Vapor (MV)","1000W MERCURY",1075]
["1H1000S","Mercury Vapor (MV)","2/400W MERCURY",880]
[null,"Low Pressure Sodium (LPS)"]
["1M0150E","Low Pressure Sodium (LPS)","35W LPS",60]
["1M0200E","Low Pressure Sodium (LPS)","55W LPS",85]
["1M0250E","Low Pressure Sodium (LPS)","90W LPS",130]
["1M0320E","Low Pressure Sodium (LPS)","135W LPS",180]
["1M0350E","Low Pressure Sodium (LPS)","180W LPS",230]
["1M0400E","High Pressure Sodium (HPS)"]
["1M0450E","High Pressure Sodium (HPS)","35W HPS",45]
["1M0875P","High Pressure Sodium (HPS)","50W HPS",65]
["1M0875R","High Pressure Sodium (HPS)","70W HPS",90]
[null,"High Pressure Sodium (HPS)","100W HPS",130]
["1M0020E","High Pressure Sodium (HPS)","150W HPS",190]
["1M0025E","High Pressure Sodium (HPS)","200W HPS",240]
["1M0035E","High Pressure Sodium (HPS)","225W HPS",275]
["1M0039E","High Pressure Sodium (HPS)","250W HPS",295]
["1M0050E","High Pressure Sodium (HPS)","310W HPS",350]
["1M0070E","High Pressure Sodium (HPS)","360W HPS",435]
[null,"High Pressure Sodium (HPS)","400W HPS",460]
["1M0032S","High Pressure Sodium (HPS)","600W HPS",675]
["1M0050S","High Pressure Sodium (HPS)","750W HPS",835]
["1M0070S","High Pressure Sodium (HPS)","1000W HPS",1085]
["1M0100S","Electronic Metal Halide Lamps"]
["1M0150S","Electronic Metal Halide Lamps","150W METAL HALIDE EB",160]
["1M0175S","Electronic Metal Halide Lamps","200W METAL HALIDE EB",215]
["1M0250S","Electronic Metal Halide Lamps","250W METAL HALIDE EB",270]
["1M0360S","Electronic Metal Halide Lamps","320W METAL HALIDE EB",345]
["1M0400S","Electronic Metal Halide Lamps","350W METAL HALIDE EB",375]
["1M0750S","Electronic Metal Halide Lamps","400W METAL HALIDE EB",430]
["1M0875P","Electronic Metal Halide Lamps","400W METAL HALIDE EB",480]
["1M0875R","Electronic Metal Halide Lamps","875W MH CWA",950]
["1M1000S","Electronic Metal Halide Lamps","875W MH LINEAR",927]
["1M1500S","MH Track Lighting"]
["1M1800S","MH Track Lighting","20W MH SPOT",25]
[null,"MH Track Lighting","25W MH SPOT",25]
["1M0100P","MH Track Lighting","35W MH SPOT",44]
["1M0100R","MH Track Lighting","39W MH SPOT",47]
["1M0150P","MH Track Lighting","50W MH SPOT",60]
["1M0150R","MH Track Lighting","70W MH SPOT",80]
["1M0175P","Metal Halide (MH)"]
["1M0175R","Metal Halide (MH)","32W METAL HALIDE",40]
["1M0200P","Metal Halide (MH)","50W METAL HALIDE",65]
["1M0200R","Metal Halide (MH)","70W METAL HALIDE",95]
["1M0250P","Metal Halide (MH)","100W METAL HALIDE",120]
["1M0250R","Metal Halide (MH)","150W METAL HALIDE",190]
["1M0300P","Metal Halide (MH)","175W METAL HALIDE",205]
["1M0300R","Metal Halide (MH)","250W METAL HALIDE",295]
["1M0320P","Metal Halide (MH)","360W METAL HALIDE",430]
["1M0320R","Metal Halide (MH)","400W METAL HALIDE",455]
["1M0350P","Metal Halide (MH)","750W METAL HALIDE",825]
["1M0350R","Metal Halide (MH)","875W MH CWA",950]
["1M0400P","Metal Halide (MH)","875W MH LINEAR",927]
["1M0400R","Metal Halide (MH)","1000W METAL HALIDE",1075]
["1M0450P","Metal Halide (MH)","1500W METAL HALIDE",1615]
["1M0450R","Metal Halide (MH)","1800W METAL HALIDE",1875]
["1M0750P","Pulse Start Metal Halide Lamp/Ballast"]
["1M0750R","Pulse Start Metal Halide Lamp/Ballast","100W MH CWA",128]
["1M1000P","Pulse Start Metal Halide Lamp/Ballast","100W MH LINEAR",118]
[null,"Pulse Start Metal Halide Lamp/Ballast","150W MH CWA",190]
["1F17SSE","Pulse Start Metal Halide Lamp/Ballast","150W MH LINEAR",172]
["1F20SSS","Pulse Start Metal Halide Lamp/Ballast","175W MH CWA",208]
["1F28BXE","Pulse Start Metal Halide Lamp/Ballast","175W MH LINEAR",190]
["1F40BXE","Pulse Start Metal Halide Lamp/Ballast","200W MH CWA",232]
["1F50BXE","Pulse Start Metal Halide Lamp/Ballast","200W MH LINEAR",218]
["1F55BXE","Pulse Start Metal Halide Lamp/Ballast","250W MH CWA",288]
["1F80BXE","Pulse Start Metal Halide Lamp/Ballast","250W MH LINEAR",265]
["2F14EEE","Pulse Start Metal Halide Lamp/Ballast","300W MH CWA",342]
["2F17EEE","Pulse Start Metal Halide Lamp/Ballast","300W MH LINEAR",324]
["2F17SSE","Pulse Start Metal Halide Lamp/Ballast","320W MH CWA",365]
["2F17SSL","Pulse Start Metal Halide Lamp/Ballast","320W MH LINEAR",345]
["2F17SSM","Pulse Start Metal Halide Lamp/Ballast","350W MH CWA",400]
["2F20SSS","Pulse Start Metal Halide Lamp/Ballast","350W MH LINEAR",375]
["2F24HSS","Pulse Start Metal Halide Lamp/Ballast","400W MH CWA",455]
["2F28BXE","Pulse Start Metal Halide Lamp/Ballast","400W MH LINEAR",430]
[null,"Pulse Start Metal Halide Lamp/Ballast","450W MH CWA",508]
["2F40BXE","Pulse Start Metal Halide Lamp/Ballast","450W MH LINEAR",480]
["2F50BXE","Pulse Start Metal Halide Lamp/Ballast","750W MH CWA",815]
["2F55BXE","Pulse Start Metal Halide Lamp/Ballast","750W MH LINEAR",805]
["3F17SSE","Pulse Start Metal Halide Lamp/Ballast","1000W MH CWA",1080]
["3F17SSL","2-ft T8 / T12  "]
["3F20SSS","2-ft T8 / T12  ","1L2’ 17WT8/ELIG",17]
["3F28BXE","2-ft T8 / T12  ","1L2’ 20W T12/HPF(1)",32]
["3F40BXE","2-ft T8 / T12  ","1L2’ F28BX/ELIG",32]
["3F50BXE","2-ft T8 / T12  ","1L2’ F40BX/ELIG",46]
["3F55BXE","2-ft T8 / T12  ","1L2’ F50BX/ELIG",54]
["4F17SSE","2-ft T8 / T12  ","1L2’ F55BX/ELIG",56]
["4F20SSS","2-ft T8 / T12  ","1L2’F80BXE/ELIG",90]
["4F36BXE","2-ft T8 / T12  ","2L2’ T5/EEELIG",32]
["4F40BXE","2-ft T8 / T12  ","2L2’ 17W T8EE/ELEE",29]
["4F40BXH","2-ft T8 / T12  ","2L2’ 17W T8/ELIG",37]
["4F50BXE","2-ft T8 / T12  ","2L2’ 17W T8/ELIG LOW POWER",27]
["4F55BXE","2-ft T8 / T12  ","2L2’ 17W T8/EEMAG",45]
["5F40BXE","2-ft T8 / T12  ","2L2’ 20WT12/HPF(2)",56]
["5F50BXE","2-ft T8 / T12  ","2L2’ 24 T12HO/STD/STD",85]
["5F55BXE","2-ft T8 / T12  ","2L2’ F28BX/ELIG",63]
["6F36BXE","2-ft T8 / T12  "]
["6F40BXE","2-ft T8 / T12  ","2L2’ F40BX/ELIG",72]
["6F50BXE","2-ft T8 / T12  ","2L2’ F50BX/ELIG",108]
["6F55BXE","2-ft T8 / T12  ","2L2’55BXE/ELIG",112]
["8F36BXE","2-ft T8 / T12  ","3L2’ 17W T8/ELIG",53]
["8F40BXE","2-ft T8 / T12  ","3L2’ 17W T8/ELIG LOW POWER",39]
["8F50BXE","2-ft T8 / T12  ","3L2’ 20WT12/HPF(3)",78]
["8F55BXE","2-ft T8 / T12  ","3L2’ F28BX/ELIG",94]
["9F36BXE","2-ft T8 / T12  ","3L2’ F40BX/ELIG",102]
["9F40BXE","2-ft T8 / T12  ","3L2’ F50BX/ELIG",162]
["9F50BXE","2-ft T8 / T12  ","3L2’ F55BX/ELIG",168]
["9F55BXE","2-ft T8 / T12  ","4L2’ 17W T8/ELIG",62]
["12F40BE","2-ft T8 / T12  ","4L2’ 20WT12/HPF(2)",112]
["12F50BE","2-ft T8 / T12  ","4L2’ F36BX/ELIG",148]
["12F55BE","2-ft T8 / T12  ","4L2’ F40BX/ELIG",144]
[null,"2-ft T8 / T12  ","4L 40W T5 (Std.) HIGH LMN",170]
["1F25SSE","2-ft T8 / T12  ","4L2’ F50BX/ELIG",216]
["2F25SSE","2-ft T8 / T12  ","4L2’ F55BX/ELIG",224]
["2F25SSM","2-ft T8 / T12  ","5L2’ F40BX/ELIG",190]
["1F30SEM","2-ft T8 / T12  ","5L2’ F50BX/ELIG",270]
["1F30SES","2-ft T8 / T12  ","5L2’ F55BX/ELIG",280]
["1F30SSS","2-ft T8 / T12  ","6L2’ F36BX/ELIG",212]
["2F30SEE","2-ft T8 / T12  ","6L2’ F40BX/ELIG",204]
["2F30SEM","2-ft T8 / T12  ","6L2’ F50BX/ELIG",324]
["2F30SES","2-ft T8 / T12  ","6L2’ F55BX/ELIG",336]
["2F30SSS","2-ft T8 / T12  ","8L2’ F36BX/ELIG",296]
["2F25SSE","2-ft T8 / T12  ","8L2’ F40BX/ELIG",288]
["2F25SSM","2-ft T8 / T12  ","8L2’ F50BX/ELIG",432]
["3F30SSS","2-ft T8 / T12  ","8L2’ F55BX/ELIG",448]
["3F30SES","2-ft T8 / T12  ","9L2’ F36BX/ELIG",318]
["4F25ESH","2-ft T8 / T12  ","9L2’ F40BX/ELIG",306]
["4F25ESL","2-ft T8 / T12  ","9L2’ F50BX/ELIG",486]
["4F25ESN","2-ft T8 / T12  ","9L2’ F55BX/ELIG",504]
["4F25SSE","2-ft T8 / T12  ","12L2’ F40BX/ELIG",408]
["4F25SSL","2-ft T8 / T12  ","12L2’ F50BX/ELIG",648]
["4F30SES","2-ft T8 / T12  ","12L2’ F55BX/ELIG",672]
[null,"3-ft T8 / T12  "]
["1F48SES","3-ft T8 / T12  ","1L3’ 25W T8/ELIG",24]
["1F48SSS","3-ft T8 / T12  ","2L3’ 25W T8/ELIG",47]
["2F48SES","3-ft T8 / T12  ","2L3’ 25W T8/EEMAG",65]
["2F48SSS","3-ft T8 / T12  ","1L3’ 30W T12 EE/EEMAG",38]
["3F48SES","3-ft T8 / T12  ","1L3’ 30W T12 EE/STD",42]
["3F48SSS","3-ft T8 / T12  ","1L3’ 30W T12 STD/STD",46]
["4F48SES","3-ft T8 / T12  ","2L3’ 30W T12 EE/ELIG",49]
["4F48SSS","3-ft T8 / T12  ","2L3’ 30W T12 EE/EEMAG",66]
["1F48HES","3-ft T8 / T12  ","2L3’ 30W T12 EE/STD",73]
["1F48HSS","3-ft T8 / T12  ","2L3’ 30W T12 STD/STD",80]
["2F48HES","3-ft T8 / T12  ","2L3’ 25W T8/ELIG",47]
["2F48HSS","3-ft T8 / T12  ","2L3’ 25W T8/EEMAG",65]
["3F48HES","3-ft T8 / T12  ","3L3’ 30W T12 STD/STD",140]
["3F48HSS","3-ft T8 / T12  ","3L3’ 30W T12 EE/STD",127]
["4F48HES","3-ft T8 / T12  ","4L3’ 25W T8EE/ELEE HIGH PWR'",120]
["4F48HSS","3-ft T8 / T12  ","4L3’ 25W T8EE/ELEE LOW PWR'",74]
[null,"3-ft T8 / T12  ","4L3’ 25W T8EE/ELEE’",90]
["1F48VES","3-ft T8 / T12  ","4L3’ 25W T8/ELIG",88]
["1F48VSS","3-ft T8 / T12  ","4L3’ 25WT8/ELIG LOW PWR",74]
["2F48VES","3-ft T8 / T12  ","4L3’ 30W T12EE/STD",146]
["2F48VSS","4-ft F48 T12  "]
["3F48VES","4-ft F48 T12  ","1L4’ F48T12EE/STD",50]
["3F48VSS","4-ft F48 T12  ","1L4’ F48T12/STD",60]
["4F48VES","4-ft F48 T12  ","2L4’ F48T12EE/STD",82]
["4F48VSS","4-ft F48 T12  ","2L4’ F48T12/STD",102]
[null,"4-ft F48 T12  ","3L4’ F48T12EE/STD",132]
["1F40SEE","4-ft F48 T12  ","3L4’ F48T12/STD",162]
["1F40SEM","4-ft F48 T12  ","4L4’ F48T12EE/STD",164]
["1F40SES","4-ft F48 T12  ","4L4’ F48T12/STD",204]
["1F40SSE","4-ft F48 T12  ","1L4’ F48HO/EE/STD",80]
["1F40SSM","4-ft F48 T12  ","1L4’ F48H0/STD/STD",85]
["1F40SSS","4-ft F48 T12  ","2L4’ F48HO/EE/STD",135]
["2F40SEE","4-ft F48 T12  ","2L4’ F48H0/STD/STD",145]
["2F40SEM","4-ft F48 T12  ","3L4’ F48HO/EE/STD",215]
["2F40SES","4-ft F48 T12  ","3L4’ F48H0/STD/STD",230]
["2F40SSE","4-ft F48 T12  ","4L4’ F48HO/EE/STD",270]
["2F40SSM","4-ft F48 T12  ","4L4’ F48H0/STD/STD",290]
["2F40SSS","4-ft F48VHO T12  "]
["3F40SEE","4-ft F48VHO T12  ","1L4’ F48VHO/EE/STD",123]
["3F40SEM","4-ft F48VHO T12  ","1L4’ F48VHO/STD/STD",138]
["3F40SES","4-ft F48VHO T12  ","2L4’ F48VHO/EE/STD",210]
["3F40SSE","4-ft F48VHO T12  ","2L4’ F48VHO/STD/STD",240]
["3F40SSM","4-ft F48VHO T12  ","3L4’ F48VHO/EE/STD",333]
["3F40SSS","4-ft F48VHO T12  ","3L4’ F48VHO/STD/STD",378]
["4F40SEE","4-ft F48VHO T12  ","4L4’ F48VHO/EE/STD",420]
["4F40SEM","4-ft F48VHO T12  ","4L4’ F48VHO/STD/STD",480]
["4F40SES","4-ft T12  "]
["4F40SSE","4-ft T12  ","1L4’ EE/ELIG",38]
["4F40SSM","4-ft T12  ","1L4’ EE/EEMAG",40]
["4F40SSS","4-ft T12  ","1L4’ EE/STD",50]
["6F40SSS","4-ft T12  ","1L4’ STD/ELIG",46]
[null,"4-ft T12  ","1L4’ STD/EEMAG",50]
["1F32SSE","4-ft T12  ","1L4’ STD/STD",57]
["1F32SSL","4-ft T12  ","2L4’ EE/ELIG",60]
["1F32SSM","4-ft T12  ","2L4’ EE/EEMAG",70]
["2F32SSE","4-ft T12  ","2L4’ EE/STD",80]
["2F32SSH","4-ft T12  ","2L4’ STD/ELIG",72]
["2F32SSL","4-ft T12  ","2L4’ STD/EEMAG",86]
["2F32SSM","4-ft T12  ","2L4’ STD/STD",94]
["3F32SSE","4-ft T12  ","3L4’ EE/ELIG",90]
["3F32SSH","4-ft T12  ","3L4’ EE/EEMAG",110]
["3F32SSL","4-ft T12  ","3L4’ EE/STD",130]
["3F32SSM","4-ft T12  ","3L4’ STD/ELIG",110]
["4F32SSE","4-ft T12  ","3L4’ STD/EEMAG",136]
["4F32SSH","4-ft T12  ","3L4’ STD/STD",151]
["4F32SSL","4-ft T12  ","4L4’ EE/ELIG",120]
["4F32SSM","4-ft T12  ","4L4’ EE/EEMAG",140]
["5F32SSE","4-ft T12  ","4L4’ EE/STD",160]
["5F32SSH","4-ft T12  ","4L4’ STD/ELIG",144]
["6F32SSE","4-ft T12  ","4L4’ STD/EEMAG",172]
["6F32SSH","4-ft T12  ","4L4’ STD/STD",188]
["8F32SSH","4-ft T12  ","6L4’ STD/STD",282]
[null,"4-ft T8  "]
["1F40HSE","4-ft T8  ","1L4’ T8/ELIG",30]
["1F60HSM","4-ft T8  ","1L4 T8/ELIG LOW POWER",26]
["1F60SSM","4-ft T8  ","1L4’ T8/EEMAG",37]
["1F60TSM","4-ft T8  ","2L4’ T8/ELIG",60]
["2F40HSE","4-ft T8  ","2L4’ T8/ELIG HIGH LMN",78]
["2F40TSE","4-ft T8  ","2L4 T8/ELIG LOW PWR",52]
["2F60HSM","4-ft T8  ","2L4’ T8/EEMAG",70]
["2F60SSM","4-ft T8  ","3L4’ T8/ELIG",88]
["3F40TSE","4-ft T8  ","3L4’ T8/ELIG HIGH LMN",112]
[null,"4-ft T8  ","3L4 T8/ELIG LOW POWER",76]
["1F72HSE","4-ft T8  ","3L4’ T8/EEMAG",107]
["1F72HSS","4-ft T8  ","4L4’ T8/ELIG",112]
["1F72SSM","4-ft T8  ","4L4’ T8/ELIG HIGH LMN",156]
["1F72SSS","4-ft T8  ","4L4 T8/ELIG LOW PWR",98]
["2F72HSE","4-ft T8  ","4L4’ T8/EEMAG",140]
["2F72HSM","4-ft T8  ","5L4’ T8/ELIG",148]
["2F72HSS","4-ft T8  ","5L4’ T8/ELIG HIGH LMN",190]
["2F72SSM","4-ft T8  ","6L4’ T8/ELIG",174]
["2F72SSS","4-ft T8  ","6L4’ 32W T8/ELIG HIGH LMN",224]
[null,"4-ft T8  ","8L4’ T8/ELIG HIGH LMN",312]
["1F96HES","Five Foot T8 / T12  "]
["1F96HSS","Five Foot T8 / T12  ","1L5’ HO/STD/ELIG",59]
["2F96HEE","Five Foot T8 / T12  ","1L5’ HO/STD/EEMAG",90]
["2F96HEM","Five Foot T8 / T12  ","1L5’/STD/EEMAG",73]
["2F96HES","Five Foot T8 / T12  ","1L5’ T10HO/STD/EEMAG",135]
["2F96HSE","Five Foot T8 / T12  ","2L5’ HO/STD/ELIG",123]
["2F96HSM","Five Foot T8 / T12  ","2L5’T8/ELIG",68]
["2F96HSS","Five Foot T8 / T12  ","2L5’ HO/STD/EEMAG",178]
["3F96HES","Five Foot T8 / T12  ","2L5’/STD/EEMAG",122]
["3F96HSS","Five Foot T8 / T12  ","3L5’T8/ELIG",106]
["4F96HEE","Six Foot T12 & T12HO  "]
["4F96HEM","Six Foot T12 & T12HO  ","1L6’ T8HO/ELIG",80]
["4F96HES","Six Foot T12 & T12HO  ","1L6’ F72HO/STD/STD",113]
["4F96HSE","Six Foot T12 & T12HO  ","1L6’ STD/EEMAG",80]
["4F96HSM","Six Foot T12 & T12HO  ","1L6’ STD/STD",95]
["4F96HSS","Six Foot T12 & T12HO  ","2L6’T8 HO/ELIG",160]
["1F96VES","Six Foot T12 & T12HO  ","2L6’ F72HO/STD/EEMAG",193]
["1F96VSS","Six Foot T12 & T12HO  ","2L6’ F72HO/STD",195]
["2F96VES","Six Foot T12 & T12HO  ","2L6’ STD/EEMAG",135]
["2F96VSS","Six Foot T12 & T12HO  ","2L6’ STD/STD",173]
["3F96VES","8-ft T12HO  "]
["3F96VSS","8-ft T12HO  ","1L8’ HO/EE/STD",125]
[null,"8-ft T12HO  ","1L8’ HO/STD/STD",135]
["1F14SSE","8-ft T12HO  ","2L8’ HO/EE/ELIG",170]
["1F21SSE","8-ft T12HO  ","2L8’ HO/EE/EEMAG",207]
["1F24HSE","8-ft T12HO  ","2L8’ HO/EE/STD",227]
["1F28SSE","8-ft T12HO  ","2L8’ HO/STD/ELIG",195]
["1F39HSE","8-ft T12HO  ","2L8’ HO/STD/EEMAG",237]
["1F47HSE","8-ft T12HO  ","2L8’ HO/STD/STD",257]
["1F50HSE","8-ft T12HO  ","3L8’ HO/EE/STD",352]
["1F54HSE","8-ft T12HO  ","3L8’ HO/STD/STD",392]
["2F14SSE","8-ft T12HO  ","4L8’ HO/EE/ELIG",340]
["2F21SSE","8-ft T12HO  ","4L8’ HO/EE/EEMAG",414]
["2F24HSE","8-ft T12HO  ","4L8’ HO/EE/STD",454]
["2F28SSE","8-ft T12HO  ","4L8’ HO/STD/ELIG",390]
["2F39HSE","8-ft T12HO  ","4L8’ HO/STD/EEMAG",474]
["2F47HSE","8-ft T12HO  ","4L8’ HO/STD/STD",514]
["2F50HSE","8-ft T12HO  ","1L8’ VHO/EE/STD",200]
["2F54HSE","8-ft T12HO  ","1L8’ VHO/STD/STD",230]
["3F14SSE","8-ft T12HO  ","2L8’ VHO/EE/STD",390]
["3F24HSE","8-ft T12HO  ","2L8’ VHO/STD/STD",450]
["3F28SSE","8-ft T12HO  ","3L8’ VHO/EE/STD",590]
["3F47HSE","8-ft T12HO  ","3L8’ VHO/STD/STD",680]
["3F50HSE","T5  "]
["3F54HSE","T5  ","1L2’ 14W T5/ELIG",16]
["4F14SSE","T5  ","1L3’ 21W T5/ELIG",24]
["4F28SSE","T5  ","1L2’ 24W T5HO/ELIG",29]
["4F47HSE","T5  ","1L4’ 28W T5/ELIG",32]
["4F50HSE","T5  ","1L3’ 39W T5HO/ELIG",42]
["4F54ESH","T5  ","1L4’ 47W T5HO/ELIG",53]
["4F54HSE","T5  ","1L4’ 50W T5HO/ELIG",58]
["5F47HSE","T5  ","1L4’ 54W T5HO/ELIG",59]
["5F50HSE","T5  ","2L2’ 14W T5/ELIG",32]
["5F54HSE","T5  ","2L3’ 21W T5/ELIG",47]
["6F28SSE","T5  ","2L2’ 24W T5HO/ELIG",52]
["6F47HSE","T5  ","2L4’ 28W T5/ELIG",63]
["6F50HSE","T5  ","2L3’ 39W T5HO/ELIG",85]
["6F54HSE","T5  ","2L4’ 47W T5HO/ELIG",103]
["8F54HSE","T5  ","2L4’ 50W T5HO/ELIG",110]
["10F54HSE","T5  ","2L4’ 54W T5HO/ELIG",117]
[null,"T5  ","3L2’ 14W T5/ELIG",50]
["1F17ESL","T5  ","3L4’ T5HO/ELIG",80]
["1F17ESN","T5  ","3L4’ 28W T5/ELIG",95]
["1F17ESH","T5  ","3L4’ 47W T5HO/ELIG",157]
["1F28BXE","T5  ","3L4’ 50W T5HO/ELIG",168]
["2F17ESL","T5  ","3L4’ 54W T5HO/ELIG",177]
["2F17ESN","T5  ","4L2’ 14W T5/ELIG",68]
["2F17ESH","T5  ","4L4’ 28W T5/ELIG",126]
["2F28BXE","T5  ","4L4’ 47W T5HO/ELIG",200]
["3F17ESL","T5  ","4L4’ 50W T5HO/ELIG",215]
["3F17ESN","T5  ","4L4’ 54W T5HO/ELEE",218]
["3F17ESH","T5  ","4L4’ 54W T5HO/ELIG",234]
["3F28BXE","T5  ","5L4’ 47W T5HO/ELIG",260]
[null,"T5  ","5L4’ 50W T5HO/ELIG",278]
["1F25ESL","T5  ","5L4’ 54W T5HO/ELIG",294]
["1F25ESN","T5  ","6L4’ 28W T5/ELIG",189]
["1F25ESH","T5  ","6L4’ 47W T5HO/ELIG",303]
["2F25ESL","T5  ","6L4’ 50W T5HO/ELIG",325]
["2F25ESN","T5  ","6L4’ 54W T5HO/ELIG",351]
["2F25ESH","T5  ","8L4’ 54W T5HO/ELIG",468]
["3F25ESL","T5  ","10L4’ 54W T5HO/ELIG",585]
["3F25ESN","2-ft H.E. T8  "]
["3F25ESH","2-ft H.E. T8  ","1L2’ 17W T8EE/ELEE LOW PWR ",14]
[null,"2-ft H.E. T8  ","1L2’ 17W T8EE/ELEE",17]
["1F25EEH","2-ft H.E. T8  ","1L2’ 17W T8EE/ELEE HIGH PWR",20]
["1F25EEE","2-ft H.E. T8  ","1L2’ F28BX/ELIG",32]
["1F25EEL","2-ft H.E. T8  ","2L2’ 17W T8EE/ELEE LOW PWR",27]
["2F25EEH","2-ft H.E. T8  ","2L2’ 17W T8EE/ELEE",32]
["2F25EEE","2-ft H.E. T8  ","2L2’ 17W T8EE/ELEE HIGH PWR",40]
["2F25EEL","2-ft H.E. T8  ","2L2’ F28BX/ELIG",63]
["3F25EEH","2-ft H.E. T8  ","3L2’ 17W T8EE/ELEE LOW PWR",39]
["3F25EEE","2-ft H.E. T8  ","3L2’ 17W T8EE/ELEE",46]
["3F25EEL","2-ft H.E. T8  ","3L2’ 17W T8EE/ELEE HIGH PWR",61]
["4F25EEH","2-ft H.E. T8  ","3L2’ F28BX/ELIG",94]
["4F25EEE","3-ft H.E. T8  "]
["4F25EEL","3-ft H.E. T8  ","1L3’ 25W T8EE/ELEE LOW PWR",21]
["1F28EEH","3-ft H.E. T8  ","1L3’ 25W T8EE/ELEE",24]
["1F28EEE","3-ft H.E. T8  ","1L3’ 25W T8EE/ELEE HIGH PWR",30]
["1F28EEL","3-ft H.E. T8  ","2L3’ 25W T8EE/ELEE LOW",40]
["2F28EEH","3-ft H.E. T8  ","2L3’ 25W T8EE/ELEE",45]
["2F28EEE","3-ft H.E. T8  ","2L3’ 25W T8EE/ELEE HIGH PWR",60]
["2F28EEL","3-ft H.E. T8  ","3L3’ 25W T8EE/ELEE LOW PWR",58]
["3F28EEH","3-ft H.E. T8  ","3L3’ 25W T8EE/ELEE",67]
["3F28EEE","3-ft H.E. T8  ","3L3’ 25W T8EE/ELEE HIGH",90]
["3F28EEL","4-ft T8 H.E. / Reduce Wattage  "]
["4F28EEH","4-ft T8 H.E. / Reduce Wattage  ","1L4’ 25W T8EE/ELEE HIGH PWR",30]
["4F28EEE","4-ft T8 H.E. / Reduce Wattage  ","1L4’ 25W T8EE/ELEE",22]
["4F28EEL","4-ft T8 H.E. / Reduce Wattage  ","1L4’ 25W T8EE/ELEE LOW PWR",19]
["1F30EEH","4-ft T8 H.E. / Reduce Wattage  ","2L4’ 25W T8EE/ELEE HIGH PWR",57]
["1F30EEE","4-ft T8 H.E. / Reduce Wattage  ","2L4’ 25W T8EE/ELEE",43]
["1F30EEL","4-ft T8 H.E. / Reduce Wattage  ","2L4’ 25W T8EE/ELEE LOW PWR",37]
["2F30EEH","4-ft T8 H.E. / Reduce Wattage  ","3L4’ 25W T8EE/ELEE HIGH PWR",86]
["2F30EEE","4-ft T8 H.E. / Reduce Wattage  ","3L4’ 25W T8EE/ELEE",64]
["2F30EEL","4-ft T8 H.E. / Reduce Wattage  ","3L4’ 25W T8EE/ELEE LOW PWR",57]
["3F30EEH","4-ft T8 H.E. / Reduce Wattage  ","4L4’ 25W T8EE/ELEE HIGH PWR",111]
["3F30EEE","4-ft T8 H.E. / Reduce Wattage  ","4L4’ 25W T8EE/ELEE",86]
["3F30EEL","4-ft T8 H.E. / Reduce Wattage  ","4L4’ 25W T8EE/ELEE LOW PWR",75]
["4F30EEH","4-ft T8 H.E. / Reduce Wattage  ","1L4’ 28W T8EE/ELEE HIGH PWR",33]
["4F30EEE","4-ft T8 H.E. / Reduce Wattage  ","1L4’ 28W T8EE/ELEE",24]
["4F30EEL","4-ft T8 H.E. / Reduce Wattage  ","1L4’ 28W T8EE/ELEE LOW PWR",22]
["1F32EEH","4-ft T8 H.E. / Reduce Wattage  ","2L4’ 28WT8EE/ELEE HIGH PWR",64]
["1F32EEE","4-ft T8 H.E. / Reduce Wattage  ","2L4’ 28W T8EE/ELEE",48]
["1F32EEL","4-ft T8 H.E. / Reduce Wattage  ","2L4’ 28W T8EE/ELEE LOW PWR",42]
["2F32EEH","4-ft T8 H.E. / Reduce Wattage  ","3L4’ 28W T8EE/ELEE HIGH PWR",96]
["2F32EEE","4-ft T8 H.E. / Reduce Wattage  ","3L4’ 28W T8EE/ELEE",72]
["2F32EEL","4-ft T8 H.E. / Reduce Wattage  ","3L4’ 28W T8EE/ELEE LOW PWR",63]
["3F32EEH","4-ft T8 H.E. / Reduce Wattage  ","4L4’ 28W T8EE/ELEE HIGH PWR",126]
["3F32EEE","4-ft T8 H.E. / Reduce Wattage  ","4L4’ 28W T8EE/ELEE",94]
["3F32EEL","4-ft T8 H.E. / Reduce Wattage  ","4L4’ 28W T8EE/ELEE LOW PWR",83]
["4F32EEH","4-ft T8 H.E. / Reduce Wattage  ","1L4’ 30W T8EE/ELEE HIGH PWR",36]
["4F32EEE","4-ft T8 H.E. / Reduce Wattage  ","1L4’ 30W T8EE/ELEE",26]
["4F32EEL","4-ft T8 H.E. / Reduce Wattage  ","1L4’ 30W T8EE/ELEE LOW PWR",24]
["5F32EEH","4-ft T8 H.E. / Reduce Wattage  ","2L4’ 30WT8EE/ELEE HIGH PWR",69]
["6F28EEE","4-ft T8 H.E. / Reduce Wattage  ","2L4’ 30W T8EE/ELEE",52]
["6F28EEH","4-ft T8 H.E. / Reduce Wattage  ","2L4’ 30W T8EE/ELEE LOW PWR",45]
["6F28EEL","4-ft T8 H.E. / Reduce Wattage  ","3L4’ 30W T8EE/ELEE HIGH PWR",103]
["6F30EEE","4-ft T8 H.E. / Reduce Wattage  ","3L4’ 30W T8EE/ELEE",77]
["6F30EEL","4-ft T8 H.E. / Reduce Wattage  ","3L4’ 30W T8EE/ELEE LOW PWR",68]
["6F32EEH","4-ft T8 H.E. / Reduce Wattage  ","4L4’ 30W T8EE/ELEE HIGH PWR",133]
["6F32EEE","4-ft T8 H.E. / Reduce Wattage  ","4L4’ 30W T8EE/ELEE",101]
["6F32EEL","4-ft T8 H.E. / Reduce Wattage  ","4L4’ 30W T8EE/ELEE LOW PWR",89]
["7F32EEH","4-ft T8 H.E. / Reduce Wattage  ","1L4’ 32W T8EE/ELEE HIGH PWR",38]
[null,"4-ft T8 H.E. / Reduce Wattage  ","1L4’ 32W T8EE/ELEE",28]
["1F59SSE","4-ft T8 H.E. / Reduce Wattage  ","1L4’ 32W T8EE/ELEE LOW PWR",25]
["1F80SSE","4-ft T8 H.E. / Reduce Wattage  ","2L4’ 32W T8EE/ELEE HIGH PWR",73]
["2F59SSE","4-ft T8 H.E. / Reduce Wattage  ","2L4’ 32W T8EE/ELEE",53]
["2F59SSL","4-ft T8 H.E. / Reduce Wattage  ","2L4’ 32W T8EE/ELEE LOW PWR",47]
["2F80SSE","4-ft T8 H.E. / Reduce Wattage  ","3L4’ 32W T8EE/ELEE HIGH PWR",109]
[null,"4-ft T8 H.E. / Reduce Wattage  ","3L4’ 32W T8EE/ELEE",82]
["2W32EEE","4-ft T8 H.E. / Reduce Wattage  ","3L4’ 32W T8EE/ELEE LOW PWR",72]
["2W32EEL","4-ft T8 H.E. / Reduce Wattage  ","4L4’ 32W T8EE/ELEE HIGH PWR",141]
["3W32EEE","4-ft T8 H.E. / Reduce Wattage  ","4L4’ 32W T8EE/ELEE",107]
["3W32EEL","4-ft T8 H.E. / Reduce Wattage  ","4L4’ 32W T8EE/ELEE LOW PWR",95]
["4W32EEE","4-ft T8 H.E. / Reduce Wattage  ","5L4’ 32W T8EE/ELEE HIGH PWR",182]
["4W32EEL","4-ft T8 H.E. / Reduce Wattage  ","6L4’ 28W T8EE/ELEE",144]
[null,"4-ft T8 H.E. / Reduce Wattage  ","6L4’ 28W T8EE/ELEE HIGH PWR",192]
["2W32SSE","4-ft T8 H.E. / Reduce Wattage  ","6L4’ 28W T8EE/ELEE LOW PWR",126]
["2W32SSH","4-ft T8 H.E. / Reduce Wattage  ","6L4’ 30W T8EE/ELEE",154]
["2W40SEE","4-ft T8 H.E. / Reduce Wattage  ","6L4’ 30W T8EE/ELEE LOW",136]
["2W40SSE","4-ft T8 H.E. / Reduce Wattage  ","6L4’ 32W T8EE/ELEE HIGH PWR",218]
["2W59HSE","4-ft T8 H.E. / Reduce Wattage  ","6L4’ 32W T8EE/ELEE",168]
["2W59SSE","4-ft T8 H.E. / Reduce Wattage  ","6L4’ 32W T8EE/ELEE LOW PWR",146]
["2W96HEE","4-ft T8 H.E. / Reduce Wattage  ","7L4’ 32W T8EE/ELEE HIGH PWR",250]
["2W96HSE","8-ft T8  "]
["2W96SEE","8-ft T8  ","1L8’ T8/ELIG",60]
["2W96SSE","8-ft T8  ","1L8’ T8 HO/ELIG",85]
["3W32SSE","8-ft T8  ","2L8’ T8/ELIG",109]
["4D17SSE","8-ft T8  ","2L8’ T8/ELIG LOW PWR",100]
["4D32EEE","8-ft T8  ","2L8’ T8 HO/ELIG",160]
["4D32EEL","Tandem Wired T8 H.E."]
["4D32SSE","Tandem Wired T8 H.E.","2L4’ TW T8EE/ELIG",27]
["4D32SSL","Tandem Wired T8 H.E.","2L4’ TW T8EE/ELEE LOW PWR",24]
["4W32SSE","Tandem Wired T8 H.E.","3L4’ TW T8EE/ELIG",39]
["4W32SSL","Tandem Wired T8 H.E.","3L4’ TW T8EE/ELEE LOW PWR",34]
[null,"Tandem Wired T8 H.E.","4L4’ TW T8EE/ELIG",51]
[null,"Tandem Wired T8 H.E.","4L4’ TW T8EE/ELEE LOW PWR",45]
[null,"Tandem-Wired Fluorescent  "]
[null,"Tandem-Wired Fluorescent  ","2L4’ TW T8/ELIG",30]
[null,"Tandem-Wired Fluorescent  ","2L4’ TW T8/HI-LUM",39]
[null,"Tandem-Wired Fluorescent  ","2L4’ TW EE/ELIG",30]
[null,"Tandem-Wired Fluorescent  ","2L4’ TW STD/ELIG",36]
[null,"Tandem-Wired Fluorescent  ","2L8’ TW T8 HO/ELIG",80]
[null,"Tandem-Wired Fluorescent  ","2L8’ TW T8/ELIG",55]
[null,"Tandem-Wired Fluorescent  ","2L8’ TW HO-EE/ELIG",85]
[null,"Tandem-Wired Fluorescent  ","2L8’ TW HO-STD/ELIG",98]
[null,"Tandem-Wired Fluorescent  ","2L8’ TW EE/ELIG",55]
[null,"Tandem-Wired Fluorescent  ","2L8’ TW STD/ELIG",67]
[null,"Tandem-Wired Fluorescent  ","3L4’ TW T8/ELIG",29]
[null,"Tandem-Wired Fluorescent  ","4L2’ TW T8/ELIG",31]
[null,"Tandem-Wired Fluorescent  ","4L4’ DTW T8EE/ELIG",51]
[null,"Tandem-Wired Fluorescent  ","4L4’ DTW T8EE/ELEE LOW PWR",45]
[null,"Tandem-Wired Fluorescent  ","4L4’ DTW T8/ELIG",53]
[null,"Tandem-Wired Fluorescent  ","4L4 DTWT8/ELIG LOW POWER",49]
[null,"Tandem-Wired Fluorescent  ","4L4’ TW T8/ELIG",27]
[null,"Tandem-Wired Fluorescent  ","4L4 TWT8/ELIG LOW POWER",25]

{"sheet":"New-Fixtures","index":40,"n_rows":75,"n_cols":7,"rows_kept":75,"cut":false,"hidden":true,"merged":[[59,1,59,2],[64,1,64,2],[65,6,65,13],[66,1,66,2],[60,1,60,2],[0,1,0,14],[8,1,8,3],[8,6,8,13],[31,1,32,2],[57,1,57,2]]}
[null,"Instructions for entering Proposed lighting fixtures and retrofits.\n  \nMust be either DLC or Energy Star Approved for to qualify for incentives"]
[]
[null,"Proposed Lighting Fixtures (DLC Qualified):",null,null,null,null,"Proposed Lighting Fixtures (Energy Star):"]
[]
[1,"Use below link to go to the DLC Qualified Products List: **Please note that you must possess a DLC account",null,null,null,1,"Use below link to go to the Energy Star Certified Products List:"]
[null,"https://www.designlights.org/search/?search=",null,null,null,null,"https://www.energystar.gov/productfinder/product/certified-light-fixtures/results?scrollTo=500&search_text=&fixture_type_isopen=&markets_filter=United+States&zip_code_filter=&product_types=Select+a+Product+Category&sort_by=light_output_lumens&sort_direction=asc&page_number=0&lastpage=0"]
[null,"Log into your DLC account to access the QPLs"]
[]
[2,"On this page, use the Filters on left-hand side to refine your search to find desired manufacturer, model, etc. as shown.  Customize the view to show the relevant information needed to complete form:",null,null,null,2,"On this page, use the Filters on left-hand side to refine your search to find desired manufacturer, model, etc. as shown:"]
[]
[]
[]
[]
[]
[]
[]
[]
[]
[]
[]
[]
[]
[]
[]
[]
[]
[]
[]
[]
[]
[]
[3,"This produces the output below.  Selecting                      gives you the full product listing that must be provided in along with the product spec. sheet to complete the request for a lighting efficiency incentive. "]
[]
[]
[]
[]
[]
[]
[]
[]
[]
[]
[]
[]
[]
[]
[]
[]
[]
[]
[]
[]
[]
[]
[]
[]
[]
[4,"Using whatever tools available, create a file (pdf preferable) of the product QPL using the following naming convention:"]
[]
[null,"Manufacturer    ModelNum  [brief description]  - DLC.pdf"]
[null,"RAB         EZPANHE2X4    2x4 troffer            - DLC.pdf"]
[]
[5,"Likewise, use the same naming convention for the product specification:"]
[null,null,null,null,null,3,"Follow instructions 4-7 for DLC lighting fixtures.  In this case, the file naming convention should look like:"]
[null,"RAB         EZPANHE2X4    2x4 troffer            - spec.pdf"]
[null,null,null,null,null,null,"MaxLite         RF408ICAT27WJ    Downlight            - EStar.pdf"]
[6,"The identical naming convention should be entered on the Fixture Data tab, along with the fixture wattage.  The description at the end may be expanded as desired/necessary.\nNote:  If a descripency exists between the specification and DLC wattages, enter the specification wattage."]
[]
[]
[]
[]
[]
[]
[]
[7,"For TLED - Type C retrofits, provide the same information for both the TLED and its approved driver."]

{"sheet":"Std Ltg","index":41,"n_rows":23,"n_cols":6,"rows_kept":23,"cut":false,"hidden":true,"merged":[[11,3,11,15],[5,2,5,15],[14,5,14,7]]}
[]
[]
[null,"Standard Lighting"]
[]
[]
[null,null,"As of June 12, 2020, all Lighting projects that use Standard Fixtures only, are required to go through either of the following paths in order to receive incentives:"]
[]
[]
[]
[null,null,"1.                              Lighting Portal"]
[]
[null,null,null,"The  Amplify lighting portal has been developed to simplify the way lighting submittals are handled.  The benefits include:\n  - Eliminates the requirement to submit lighting cut sheets and DLC/Energy Star snapshots\n  - Eliminates back and forth between utility and contractor\n  - Speeds up the turn around time to receive a Letter of Agreement (LOA) necessary to receive the incentive.\n\n"]
[null,null,null,"To enroll in this program, please contact Leidos (program administrator):"]
[]
[null,null,null,null,"email:","Lars.J.Brasz@Leidos.com"]
[null,null,null,null,"phone:","(315) 434 7206"]
[]
[]
[null,null,"2.  Lighting Express Rebates or Upstream Rebates"]
[]
[null,null,null,"Click on the link for the latest Express/Downstream rebates."]
[]
[null,null,null,null,null,"https://energizect.com/explore-solutions/energy-efficient-lighting/commercial-lighting"]

{"sheet":"EMS existing","index":42,"n_rows":35,"n_cols":4,"rows_kept":35,"cut":false,"hidden":true,"merged":[[20,3,32,3],[35,3,49,3]]}
[]
[]
[null,"Existing System Description"]
[]
[null,null,"Provide a complete description of the existing EMS equipment (if any)"]
[]
[null,null,"a.","Which of the building equipment listed on the prior form are currently (or not) being controlled - (AHU's, RTU's, chillers, boilers, lighting, etc."]
[null,null,"b.","Any existing control system and strategies being used to manage equipment operation.  This can include:  manual controls, programable thermostats, time clocks, equipment scheduling, etc.  Provide documentation substantiating scheduling \"time of day\" controls."]
[null,null,"c.","Building personell or contractor that maintains and/or has the ability to make changes to system."]
[]
[]
[null,"EXAMPLE:","Existing System"]
[null,null,null,"The building was originally built in 2002. It is a two story, multi-tenant outpatient cancer treatment center with two (2) Packaged Rooftop HVAC Units and 72 VAV's serving 36,000 sq. ft. of exam, lab, & office spaces. Fintube radiation runs along the northern exposure of the building with hot water reheat coils in each VAV. Original to the building there is an Andover Continuum DDC system currently controlling the 2 RTU's and VAV's. The general hours of operation are M-F 7am to 5pm, Sa = OFF and Su= OFF."]
[]
[null,null,"Existing System Strategy"]
[null,null,null,"The VAV's serving the first and second floor are Enviro-Tec's with hot water reheat coils. Original to the building there is an Andover Continuum DDC system currently controlling the 2 RTU's and 72 VAV's. The dry bulb economizer sequence is controlled through the RTU manufacturer's control."]
[]
[]
[]
[null,null,"Existing System"]
[]
[]
[]
[]
[]
[]
[]
[]
[]
[]
[]
[]
[]
[]
[null,null,"Existing System Strategy"]

{"sheet":"High Perform Ltg","index":43,"n_rows":0,"n_cols":0,"rows_kept":0,"cut":false,"hidden":true,"merged":[]}

{"sheet":"Daylighting","index":44,"n_rows":46,"n_cols":11,"rows_kept":46,"cut":false,"hidden":true,"merged":[[24,7,24,9],[21,4,21,5],[10,2,10,5]]}
[]
[]
[null,"Daylighting Controls:"]
[]
[null,null,"Lighting Schedule","Months included in analysis"]
[null,null,null,"Jan.","Feb.","Mar.","Apr.","May","June"]
[null,null,"Months",0,0,0,0,0,0]
[null,null,null,"July","Aug.","Sept.","Oct.","Nov.","Dec."]
[null,null,null,0,0,0,0,0,0]
[]
[null,null,"Hours of Operation",null,null,null,null,null,null,"Controlled Fixture Schedule"]
[null,null,null,"Start Time","End \nTime","Hours/ day",null,null,null,"Fixture designation","Qty controlled"]
[null,null,"Monday",{"$f":"'Project Data'!G22","v":"00:00:00"},{"$f":"'Project Data'!H22","v":"00:00:00"},{"$f":"(E13-D13)*24","v":0}]
[null,null,"Tuesday",{"$f":"'Project Data'!#REF!","v":{"$error":"#REF!"}},{"$f":"'Project Data'!#REF!","v":{"$error":"#REF!"}},{"$error":"#REF!"}]
[null,null,"Wednesday",{"$f":"'Project Data'!#REF!","v":{"$error":"#REF!"}},{"$f":"'Project Data'!#REF!","v":{"$error":"#REF!"}},{"$error":"#REF!"}]
[null,null,"Thursday",{"$f":"'Project Data'!G25","v":"00:00:00"},{"$f":"'Project Data'!H25","v":"00:00:00"},0]
[null,null,"Friday",{"$f":"'Project Data'!G26","v":"00:00:00"},{"$f":"'Project Data'!H26","v":"00:00:00"},{"$f":"(E17-D17)*24","v":0},null,null,null,{"$f":"Picklists!D5","v":0},{"$f":"SUMIFS(Lighting!#REF!,Lighting!#REF!,\"Y\",Lighting!#REF!,Picklists!D5)","v":{"$error":"#REF!"}}]
[null,null,"Saturday",{"$f":"'Project Data'!G23","v":"00:00:00"},{"$f":"'Project Data'!H23","v":"00:00:00"},0,null,null,null,{"$f":"Picklists!D9","v":0},{"$f":"SUMIFS(Lighting!#REF!,Lighting!#REF!,\"Y\",Lighting!#REF!,Picklists!D9)","v":{"$error":"#REF!"}}]
[null,null,"Sunday",{"$f":"'Project Data'!G24","v":"00:00:00"},{"$f":"'Project Data'!H24","v":"00:00:00"},0,null,null,null,{"$f":"Picklists!D7","v":0},{"$f":"SUMIFS(Lighting!#REF!,Lighting!#REF!,\"Y\",Lighting!#REF!,Picklists!D7)","v":{"$error":"#REF!"}}]
[]
[]
[null,null,null,"Building Type",{"$f":"'Project Data'!D13","v":0}]
[]
[]
[null,null,null,"Window to wall ratio %",null,"(0.25 - 0.99)",null,null,null,null,{"$f":"SUM(K17:K24)","v":{"$error":"#REF!"}}]
[]
[]
[]
[]
[]
[]
[]
[]
[]
[]
[]
[]
[]
[]
[]
[]
[]
[null,null,null,null," ","      "]
[]
[]
[null,null,null,null,null," "]

{"sheet":"W-9","index":45,"n_rows":49,"n_cols":11,"rows_kept":49,"cut":false,"hidden":true,"merged":[[37,3,37,10],[6,1,6,10],[17,1,17,10],[26,1,26,10],[28,1,28,10],[35,3,35,10]]}
[]
[]
[]
[null,"Substitute Form W-9            Request for Taxpayer Identification Number and Certification "]
[null,"(Give this form to the requester. DO NOT send to IRS)"]
[]
[null,"NAME (If joint names, list first and circle the name of the person or entity whose number you enter in Part I below.  See INSTRUCTIONS under “Name” if your name has changed.)"]
[]
[]
[null,"ADDRESS (Number and Street)"]
[]
[]
[null,"CITY",null,null,null,null,null,null,"STATE",null,"ZIP CODE"]
[]
[]
[null,"PART I","TAXPAYER IDENTIFICATION NUMBER"]
[]
[null,"Enter your taxpayer identification number in the appropriate box.  For individuals and sole proprietors, this is your social security number.  For other entities, it is your employer identification number.  If you do not have a number, see How To Obtain a TIN, on Instruction form EMS6002-2."]
[]
[null,null,"SOCIAL SECURITY NUMBER",null,null,null,"EMPLOYER IDENTIFICATION NUMBER"]
[]
[]
[null,"Certification - Under the penalties of perjury, I certify that:"]
[]
[null,"(1) The number shown on this form is my correct taxpayer identification number (or I am waiting for a number to be issued to me), and "]
[]
[null,"(2) I am not subject to backup withholding because:  (a) I am exempt from backup withholding, or (b) I have not been notified by the Internal Revenue Service (IRS) that I am subject to backup withholding as a result of a failure to report all interest or dividends, or (c) the IRS has notified me that I am no longer subject to backup withholding (does not apply to real estate transactions, mortgage interest paid, the acquisition or abandonment of secured  property,  contributions to an individual retirement arrangement  (IRA), and payments other than interest and dividends)."]
[]
[null,"Certification Instructions - You must cross out item (2) above if you have been notified by the IRS that you are currently subject to backup withholding because of underreporting interest or dividends on your tax return.  (Also, see Signing the Certification under Specific Instructions on instruction form EMS6002-2."]
[]
[null,"PART II  FOR PAYEES EXEMPT FROM BACKUP WITHHOLDING (See Instructions)"]
[]
[null,"Check one of the following below, if applicable.",null,null,null,null,null,null,"Exemption Block"]
[]
[null,"1)","_____","A corporation"]
[null,"2)","_____","An organization exempt from tax under section 501 (a), or an individual retirement plan (IRA), or a custodial account under 403(b)(7)."]
[null,"3)","_____","The United States or any of its agencies or instrumentalities."]
[null,"4)","_____","A state, The District of Columbia, a possession of the United States, or any of their political subdivisions or instrumentalities."]
[null,"5)","_____","A foreign government or any of its political subdivisions, agencies, or instrumentalities."]
[null,"6)","_____","An international organization or any of its agencies or instrumentalities."]
[null,"7)","_____","A foreign central bank of issue."]
[null,"8)","_____","A dealer in securities or commodities required to register in the U.S. or a possession of the U.S."]
[null,"9)","_____","A futures commission merchant registered with the Commodity Futures Trading Commission."]
[null,"10)","_____","A real estate investment trust."]
[null,"11)","_____","An entity registered at all times during the tax year under the Investment Company Act of 1940."]
[null,"12)","_____","A financial institution."]
[]
[null,null," Signature",null,null,null,null,null,null,null,"Date "]
[null,"Please sign here:"]

{"sheet":"Picklists","index":46,"n_rows":661,"n_cols":10,"rows_kept":661,"cut":false,"hidden":true,"merged":[]}
["2019 Savings Caps",null,null,null,null,null,"Fixture Type","Lifetime"]
["Category","Code","$/kWh A Cap","$/kW S Cap","% Cost",null,"New Fixtures",13]
["TLED - Interior (Type A & B)","Standard Interior",null,null,null,null,"New Fixtures w/ LLLC or NLC ",13]
["TLED - Exterior (Type A & B)","Standard Exterior",null,null,null,null,"Default LLLC Fixtures",0]
["Standard - Interior","Enhanced Perf. Interior",null,null,null,null,"TLED Type A & B (Non-Eligible)",4]
["Standard - Exterior","Enhanced Perf. Exterior",null,null,null,null,"Lamp Replacement ",9]
["Enhanced Perf. - Interior","High Performance Interior",null,null,null,null,"Controls Only",0]
["Enhanced Perf. - Exterior","High Performance Exterior",null,null,null,null,"Miscellaneous Costs",0]
["High-Performance - Interior",null,null,null,null,null,"Non-Eligible",13]
["High-Performance - Exterior",null,null,null,null,null,"Refrigerator",13]
[null,null,null,null,null,null,"Freezer"]
[null,null,null,null,null,null,"Fixture Removal "]
[]
[]
[]
[null,null,null,null,null,null,null,"Cities","Subtowns","Payees"]
["Rate","Description",null,null,null,null,"None","Andover","Abington","Customer"]
[27,"Time of Day General Service",null,null,null,null,"Space by Space","Ansonia","Addison","Contractor"]
[29,"Outdoor Recreational Lighting Service",null,null,null,null,"Building Area","Ashford","Allentown","Billing Account"]
[30,"Small General Electric Service",null,null,null,null,null,"Avon","Allingtown"]
[35,"Intermediate General Electric Service",null,null,null,null,"50% Cooled or More with Economizer","Barkhamsted","Almyville"]
[40,"Church & School Electric Service",null,null,null,null,"50% Cooled or More without Economizer","Beacon Falls","Amenia Union"]
[41,"Large Church & School Electric Service",null,null,null,null,"Less than 50% Cooled","Berlin","Amesville"]
[55,"Intermediate Time-of-Day Electric Service",null,null,null,null,null,"Bethany","Amston"]
[56,"Intermediate Time-of-Day Electric Service",null,null,null,null,null,"Bethel","Andover"]
[57,"Large Time-of-Day Electric Service (Mfg)",null,null,null,null,null,"Bethlehem","Ansonia"]
[58,"Large Time-of-Day Electric Service (Non-Mfg)",null,null,null,null,null,"Bloomfield","Ashford"]
[null,null,null,null,null,null,null,"Bolton","Aspetuck"]
[null,null,null,null,null,null,null,"Bozrah","Attawaugan "]
["50% or More Cooled with Economizer",null,null,null,null,null,null,"Branford","Atwoodville"]
["50% or More Cooled without Economizer",null,null,null,null,null,null,"Bridgeport","Augerville"]
["Less than 50% Cooled",null,null,null,null,null,null,"Bridgewater","Avon"]
[null,null,null,null,null,null,null,"Bristol","Baileyville"]
[null,null,null,null,null,null,null,"Brookfield","Bakersville"]
[null,null,null,null,null,null,null,"Brooklyn","Ball Pond"]
[null,null,null,null,null,null,null,"Burlington","Ballouville"]
[null,null,null,null,null,null,null,"Canaan","Baltic"]
[null,null,null,null,null,null,null,"Canterbury","Banksville"]
[null,null,null,null,null,null,null,"Canton","Bantam"]
[null,null,null,null,null,null,null,"Chaplin","Barkhamsted"]
[" ","Hours",null,null,null,null,null,"Cheshire","Bashan"]
["Auto Related",4056,null,null,null,null,null,"Chester","Beacon Falls"]
["Bakery",2854,null,null,null,null,null,"Clinton","Belltown"]
["Banks, Financial Center",3748,null,null,null,null,null,"Colchester","Berkshire"]
["Church",1955,null,null,null,null,null,"Colebrook","Berlin"]
["College: Cafeteria",6376,null,null,null,null,null,"Columbia","Bethany"]
["College: Classes/Administrative",2586,null,null,null,null,null,"Cornwall","Bethel"]
["College: Dormitory",3066,null,null,null,null,null,"Coventry","Bethlehem"]
["Commercial Condo",4055,null,null,null,null,null,"Cromwell","Bill Hill"]
["Convenience Store",6376,null,null,null,null,null,"Danbury","Black Hall"]
["Convention Center",1954,null,null,null,null,null,"Darien","Black Point"]
["Court House",3748,null,null,null,null,null,"Deep River","Bloomfield"]
["Dining: Bar Lounge/Leisure",4182,null,null,null,null,null,"Derby","Blue Hills"]
["Dining: Cafeteria/Fast Food",6456,null,null,null,null,null,"Durham","Boardman Bridge"]
["Dining: Family",4182,null,null,null,null,null,"East Granby","Bolton Notch"]
["Entertainment",1952,null,null,null,null,null,"East Haddam","Bolton"]
["Exercise Center",5836,null,null,null,null,null,"East Hampton","Botsford"]
["Fast Food Restaurant",6376,null,null,null,null,null,"East Hartford","Bozrah"]
["Fire Station (Unmanned)",1953,null,null,null,null,null,"East Haven","Bradleyville"]
["Grocery/Food Store",5468,null,null,null,null,null,"East Lyme","Branchville"]
["Gymnasium",2586,null,null,null,null,null,"East Windsor","Branford"]
["Hospital",7674,null,null,null,null,null,"Eastford","Bridgeport"]
["Health Care",5564,null,null,null,null,null,"Easton","Bridgewater"]
["Industrial: 1 Shift",2857,null,null,null,null,null,"Ellington","Bristol"]
["Industrial: 2 Shift",5793,null,null,null,null,null,"Enfield","Broad Brook"]
["Industrial: 3 Shift",6631,null,null,null,null,null,"Essex","Brookfield Center"]
["Laundromat",4056,null,null,null,null,null,"Fairfield","Brookfield"]
["Library",3748,null,null,null,null,null,"Farmington","Brooklyn"]
["Light Manufacturer",2857,null,null,null,null,null,"Franklin","Brooksvale"]
["Lodging (Hotel/Motel)",3064,null,null,null,null,null,"Glastonbury","Buckingham"]
["Mall Concourse",4833,null,null,null,null,null,"Goshen","Buckland"]
["Manufacturing Facility",2857,null,null,null,null,null,"Granby","Bulls Bridge"]
["Medical Office",3748,null,null,null,null,null,"Greenwich","Burlington"]
["Motion Picture Theatre",1954,null,null,null,null,null,"Griswold","Burnett Corners"]
["Multi-Family (Common Areas)",6388,null,null,null,null,null,"Groton","Burnside"]
["Museum",3748,null,null,null,null,null,"Guilford","Burrville"]
["Nursing Home",5840,null,null,null,null,null,"Haddam","Byram"]
["Office (General Office Types)",4098,null,null,null,null,null,"Hamden","Campbell's Mills"]
["Parking Garage and Lot",6887,null,null,null,null,null,"Hampton","Campville"]
["Penitentiary",5477,null,null,null,null,null,"Hartford","Canaan Valley"]
["Performing Arts Theatre",2586,null,null,null,null,null,"Hartland","Canaan"]
["Police/Fire Station (24 Hr)",7665,null,null,null,null,null,"Harwinton","Candlewood Isle"]
["Post Office",3748,null,null,null,null,null,"Hebron","Candlewood Shores"]
["Pump Station",1949,null,null,null,null,null,"Kent","Cannondale"]
["Refrigerated Warehouse",2602,null,null,null,null,null,"Killingly","Canterbury"]
["Religious Building",913,null,null,null,null,null,"Killingworth","Canton Center"]
["Residential (Except Nursing Homes)",3066,null,null,null,null,null,"Lebanon","Canton"]
["Restaurant",5018,null,null,null,null,null,"Ledyard","Center Groton"]
["Retail",4939,null,null,null,null,null,"Lisbon","Centerbrook"]
["Education (Preschool, Elementary, Jr./Sr. High, University)",2967,null,null,null,null,null,"Litchfield","Centerhill"]
["Small Services",3748,null,null,null,null,null,"Lyme","Centerville"]
["Sports Arena",1954,null,null,null,null,null,"Madison","Central Village"]
["Town Hall",3748,null,null,null,null,null,"Manchester","Chaffeeville"]
["Transportation",6456,null,null,null,null,null,"Mansfield","Chaplin"]
["Warehouse (Not Refrigerated)",5667,null,null,null,null,null,"Marlborough","Cherry Brook"]
["Waste Water Treatment Plant",6631,null,null,null,null,null,"Meriden","Cheshire"]
["Workshop",3750,null,null,null,null,null,"Middlebury","Chester"]
[null,null,null,null,null,null,null,"Middlefield","Chesterfield"]
[null,null,null,null,null,null,null,"Middletown","Chestnut Hill"]
[null,null,null,null,null,null,null,"Milford","Chestnut Hill"]
[null,null,null,null,null,null,null,"Monroe","Chestnut Hill"]
[null,null,null,null,null,null,null,"Montville","Clarks Corner"]
[null,null,null,null,null,null,null,"Morris","Clarks Falls"]
[null,null,null,null,null,null,null,"Naugatuck","Clinton"]
[null,null,null,null,null,null,null,"New Britain","Clintonville"]
[null,null,null,null,null,null,null,"New Canaan","Cobalt"]
[null,null,null,null,null,null,null,"New Fairfield","Colchester"]
[null,null,null,null,null,null,null,"New Hartford","Colebrook"]
[null,null,null,null,null,null,null,"New Haven","Collinsville"]
[null,null,null,null,null,null,null,"New London","Columbia"]
[null,null,null,null,null,null,null,"New Milford","Comstock Bridge"]
[null,null,null,null,null,null,null,"Newington","Cornfield Point"]
[null,null,null,null,null,null,null,"Newtown","Cornwall Bridge"]
[null,null,null,null,null,null,null,"Niantic","Cornwall Center"]
[null,null,null,null,null,null,null,"Norfolk","Cornwall Hollow"]
[null,null,null,null,null,null,null,"North Branford","Cornwall"]
[null,null,null,null,null,null,null,"North Canaan","Cos Cob"]
[null,null,null,null,null,null,null,"North Haven","Coventry"]
[null,null,null,null,null,null,null,"North Stonington","Cranbury"]
[null,null,null,null,null,null,null,"Norwalk","Crescent Beach"]
[null,null,null,null,null,null,null,"Norwich","Cromwell"]
[null,null,null,null,null,null,null,"Old Lyme","Crystal Lake"]
[null,null,null,null,null,null,null,"Old Saybrook","Crystal Lake"]
[null,null,null,null,null,null,null,"Orange","Danbury"]
[null,null,null,null,null,null,null,"Oxford","Danielson"]
[null,null,null,null,null,null,null,"Plainfield","Darien"]
[null,null,null,null,null,null,null,"Plainville","Dayville"]
[null,null,null,null,null,null,null,"Plymouth","Deep River"]
[null,null,null,null,null,null,null,"Pomfret","Deerfield"]
[null,null,null,null,null,null,null,"Portland","Derby"]
[null,null,null,null,null,null,null,"Preston","Devon"]
[null,null,null,null,null,null,null,"Prospect","Doaneville"]
[null,null,null,null,null,null,null,"Putnam","Dobsonville"]
[null,null,null,null,null,null,null,"Redding","Dodgingtown"]
[null,null,null,null,null,null,null,"Ridgefield","Drakeville"]
[null,null,null,null,null,null,null,"Rocky Hill","Durham Center"]
[null,null,null,null,null,null,null,"Roxbury","Durham"]
[null,null,null,null,null,null,null,"Salem","Eagleville"]
[null,null,null,null,null,null,null,"Salisbury","East Berlin"]
[null,null,null,null,null,null,null,"Scotland","East Brooklyn"]
[null,null,null,null,null,null,null,"Seymour","East Canaan"]
[null,null,null,null,null,null,null,"Sharon","East Cornwall"]
[null,null,null,null,null,null,null,"Shelton","East Glastonbury"]
[null,null,null,null,null,null,null,"Sherman","East Granby"]
[null,null,null,null,null,null,null,"Simsbury","East Haddam"]
[null,null,null,null,null,null,null,"Somers","East Hampton"]
[null,null,null,null,null,null,null,"South Windsor","East Hartford"]
[null,null,null,null,null,null,null,"Southbury","East Hartland"]
[null,null,null,null,null,null,null,"Southington","East Haven"]
[null,null,null,null,null,null,null,"Sprague","East Norwalk"]
[null,null,null,null,null,null,null,"Stafford","East Plymouth"]
[null,null,null,null,null,null,null,"Stamford","East Putnam"]
[null,null,null,null,null,null,null,"Sterling","East River"]
[null,null,null,null,null,null,null,"Stonington","East Thompson"]
[null,null,null,null,null,null,null,"Stratford","East Village"]
[null,null,null,null,null,null,null,"Suffield","East Wallingford"]
[null,null,null,null,null,null,null,"Thomaston","East Willington"]
[null,null,null,null,null,null,null,"Thompson","East Windsor Hill"]
[null,null,null,null,null,null,null,"Tolland","East Windsor"]
[null,null,null,null,null,null,null,"Torrington","East Woodstock"]
[null,null,null,null,null,null,null,"Trumbull","Eastford"]
[null,null,null,null,null,null,null,"Union","Easton"]
[null,null,null,null,null,null,null,"Vernon","Edgewood"]
[null,null,null,null,null,null,null,"Voluntown","Ekonk"]
[null,null,null,null,null,null,null,"Wallingford","Ellington"]
[null,null,null,null,null,null,null,"Warren","Elliott"]
[null,null,null,null,null,null,null,"Washington","Ellithorpe"]
[null,null,null,null,null,null,null,"Waterbury","Ellsworth"]
[null,null,null,null,null,null,null,"Waterford","Elmville"]
[null,null,null,null,null,null,null,"Watertown","Elmwood"]
[null,null,null,null,null,null,null,"West Hartford","Enfield"]
[null,null,null,null,null,null,null,"West Haven","Essex"]
[null,null,null,null,null,null,null,"Westbrook","Exeter"]
[null,null,null,null,null,null,null,"Weston","Fabyan"]
[null,null,null,null,null,null,null,"Westport","Fair Haven"]
[null,null,null,null,null,null,null,"Wethersfield","Fairfield"]
[null,null,null,null,null,null,null,"Willington","Falls Village"]
[null,null,null,null,null,null,null,"Wilton","Farmington"]
[null,null,null,null,null,null,null,"Winchester","Fenwick"]
[null,null,null,null,null,null,null,"Windham","Fitchville"]
[null,null,null,null,null,null,null,"Windsor","Flanders Village"]
[null,null,null,null,null,null,null,"Windsor Locks","Flanders"]
[null,null,null,null,null,null,null,"Wolcott","Forestville"]
[null,null,null,null,null,null,null,"Woodbridge","Fort Hill"]
[null,null,null,null,null,null,null,"Woodbury","Foxon"]
[null,null,null,null,null,null,null,"Woodstock","Franklin"]
[null,null,null,null,null,null,null,null,"Gales Ferry"]
[null,null,null,null,null,null,null,null,"Gardner Lake"]
[null,null,null,null,null,null,null,null,"Gaylordsville"]
[null,null,null,null,null,null,null,null,"Georgetown"]
[null,null,null,null,null,null,null,null,"Georgetwon"]
[null,null,null,null,null,null,null,null,"Germantown"]
[null,null,null,null,null,null,null,null,"Gildersleeve"]
[null,null,null,null,null,null,null,null,"Gilead"]
[null,null,null,null,null,null,null,null,"Gilman"]
[null,null,null,null,null,null,null,null,"Glasgo"]
[null,null,null,null,null,null,null,null,"Glastonbury"]
[null,null,null,null,null,null,null,null,"Glenbrook"]
[null,null,null,null,null,null,null,null,"Glenbrook"]
[null,null,null,null,null,null,null,null,"Glenville"]
[null,null,null,null,null,null,null,null,"Goodyear"]
[null,null,null,null,null,null,null,null,"Goshen Hill"]
[null,null,null,null,null,null,null,null,"Goshen"]
[null,null,null,null,null,null,null,null,"Granby"]
[null,null,null,null,null,null,null,null,"Graniteville"]
[null,null,null,null,null,null,null,null,"Grasemere Station"]
[null,null,null,null,null,null,null,null,"Grassy Plain"]
[null,null,null,null,null,null,null,null,"Greenfield Hill"]
[null,null,null,null,null,null,null,null,"Greenfield"]
[null,null,null,null,null,null,null,null,"Greens Farms"]
[null,null,null,null,null,null,null,null,"Greenville"]
[null,null,null,null,null,null,null,null,"Greenwich"]
[null,null,null,null,null,null,null,null,"Greystone"]
[null,null,null,null,null,null,null,null,"Griswold"]
[null,null,null,null,null,null,null,null,"Griswoldville"]
[null,null,null,null,null,null,null,null,"Grosvenordale"]
[null,null,null,null,null,null,null,null,"Groton Heights"]
[null,null,null,null,null,null,null,null,"Groton Long Point"]
[null,null,null,null,null,null,null,null,"Groton"]
[null,null,null,null,null,null,null,null,"Grove Beach"]
[null,null,null,null,null,null,null,null,"Guilford"]
[null,null,null,null,null,null,null,null,"Gurleyville"]
[null,null,null,null,null,null,null,null,"Haddam Neck"]
[null,null,null,null,null,null,null,null,"Haddam"]
[null,null,null,null,null,null,null,null,"Hadlyme"]
[null,null,null,null,null,null,null,null,"Hallville"]
[null,null,null,null,null,null,null,null,"Hamburg"]
[null,null,null,null,null,null,null,null,"Hamden"]
[null,null,null,null,null,null,null,null,"Hammonasset Pt."]
[null,null,null,null,null,null,null,null,"Hampton"]
[null,null,null,null,null,null,null,null,"Hancock"]
[null,null,null,null,null,null,null,null,"Hanks Hill"]
[null,null,null,null,null,null,null,null,"Hanover"]
[null,null,null,null,null,null,null,null,"Harrisville"]
[null,null,null,null,null,null,null,null,"Hartford"]
[null,null,null,null,null,null,null,null,"Hartland"]
[null,null,null,null,null,null,null,null,"Harwinton"]
[null,null,null,null,null,null,null,null,"Hattertown"]
[null,null,null,null,null,null,null,null,"Hawleyville"]
[null,null,null,null,null,null,null,null,"Hayden's"]
[null,null,null,null,null,null,null,null,"Hazardville"]
[null,null,null,null,null,null,null,null,"Hebron"]
[null,null,null,null,null,null,null,null,"Higganum"]
[null,null,null,null,null,null,null,null,"High Ridge"]
[null,null,null,null,null,null,null,null,"Highland Park"]
[null,null,null,null,null,null,null,null,"Highland"]
[null,null,null,null,null,null,null,null,"Highwood"]
[null,null,null,null,null,null,null,null,"Hillstown"]
[null,null,null,null,null,null,null,null,"Hockanum"]
[null,null,null,null,null,null,null,null,"Hop River"]
[null,null,null,null,null,null,null,null,"Hopeville"]
[null,null,null,null,null,null,null,null,"Hopeville"]
[null,null,null,null,null,null,null,null,"Hopewell"]
[null,null,null,null,null,null,null,null,"Hoskins"]
[null,null,null,null,null,null,null,null,"Hotchkissville"]
[null,null,null,null,null,null,null,null,"Howard Valley"]
[null,null,null,null,null,null,null,null,"Huntington"]
[null,null,null,null,null,null,null,null,"Huntsville"]
[null,null,null,null,null,null,null,null,"Hydeville"]
[null,null,null,null,null,null,null,null,"Indian Neck"]
[null,null,null,null,null,null,null,null,"Ivoryton"]
[null,null,null,null,null,null,null,null,"Jewett City"]
[null,null,null,null,null,null,null,null,"Jordan Village"]
[null,null,null,null,null,null,null,null,"Joyceville"]
[null,null,null,null,null,null,null,null,"Judd's Bridge"]
[null,null,null,null,null,null,null,null,"Kensington"]
[null,null,null,null,null,null,null,null,"Kent Furnace"]
[null,null,null,null,null,null,null,null,"Kent"]
[null,null,null,null,null,null,null,null,"Kenyonville"]
[null,null,null,null,null,null,null,null,"Killingly Center"]
[null,null,null,null,null,null,null,null,"Killingly"]
[null,null,null,null,null,null,null,null,"Killingworth"]
[null,null,null,null,null,null,null,null,"Kittemaug"]
[null,null,null,null,null,null,null,null,"Knollcrest"]
[null,null,null,null,null,null,null,null,"Knollwood"]
[null,null,null,null,null,null,null,null,"Lakeside"]
[null,null,null,null,null,null,null,null,"Lakeville"]
[null,null,null,null,null,null,null,null,"Laurel Glen"]
[null,null,null,null,null,null,null,null,"Laurel Hill"]
[null,null,null,null,null,null,null,null,"Laysville"]
[null,null,null,null,null,null,null,null,"Lebanon"]
[null,null,null,null,null,null,null,null,"Ledyard"]
[null,null,null,null,null,null,null,null,"Leesville"]
[null,null,null,null,null,null,null,null,"Leete's Island"]
[null,null,null,null,null,null,null,null,"Leonard Bridge"]
[null,null,null,null,null,null,null,null,"Liberty Hill"]
[null,null,null,null,null,null,null,null,"Lime Rock"]
[null,null,null,null,null,null,null,null,"Lisbon"]
[null,null,null,null,null,null,null,null,"Litchfield"]
[null,null,null,null,null,null,null,null,"Little Haddam"]
[null,null,null,null,null,null,null,null,"Long Hill"]
[null,null,null,null,null,null,null,null,"Long Neck"]
[null,null,null,null,null,null,null,null,"Long Ridge"]
[null,null,null,null,null,null,null,null,"Long Society"]
[null,null,null,null,null,null,null,null,"Lords Point"]
[null,null,null,null,null,null,null,null,"Lordship"]
[null,null,null,null,null,null,null,null,"Lower City"]
[null,null,null,null,null,null,null,null,"Lower Merryall"]
[null,null,null,null,null,null,null,null,"Lyme"]
[null,null,null,null,null,null,null,null,"Lyons Plains"]
[null,null,null,null,null,null,null,null,"Macedonia"]
[null,null,null,null,null,null,null,null,"Madison"]
[null,null,null,null,null,null,null,null,"Manchester Green"]
[null,null,null,null,null,null,null,null,"Manchester"]
[null,null,null,null,null,null,null,null,"Mansfield Center"]
[null,null,null,null,null,null,null,null,"Mansfield Depot"]
[null,null,null,null,null,null,null,null,"Mansfield Four Corners. "]
[null,null,null,null,null,null,null,null,"Mansfield Hollow"]
[null,null,null,null,null,null,null,null,"Mansfield"]
[null,null,null,null,null,null,null,null,"Marble Dale"]
[null,null,null,null,null,null,null,null,"Marion"]
[null,null,null,null,null,null,null,null,"Marlborough"]
[null,null,null,null,null,null,null,null,"Mashantucket"]
[null,null,null,null,null,null,null,null,"Mashapaug"]
[null,null,null,null,null,null,null,null,"Massapeag"]
[null,null,null,null,null,null,null,null,"Mechanicsville"]
[null,null,null,null,null,null,null,null,"Mechanicsville"]
[null,null,null,null,null,null,null,null,"Melrose"]
[null,null,null,null,null,null,null,null,"Meriden"]
[null,null,null,null,null,null,null,null,"Merrow"]
[null,null,null,null,null,null,null,null,"Merwinsville"]
[null,null,null,null,null,null,null,null,"Mianus"]
[null,null,null,null,null,null,null,null,"Middle Haddam"]
[null,null,null,null,null,null,null,null,"Middlebury"]
[null,null,null,null,null,null,null,null,"Middlefield Center"]
[null,null,null,null,null,null,null,null,"Middlefield"]
[null,null,null,null,null,null,null,null,"Middletown"]
[null,null,null,null,null,null,null,null,"Milford"]
[null,null,null,null,null,null,null,null,"Mill Plain"]
[null,null,null,null,null,null,null,null,"Milldale"]
[null,null,null,null,null,null,null,null,"Millington"]
[null,null,null,null,null,null,null,null,"Millstone"]
[null,null,null,null,null,null,null,null,"Millville"]
[null,null,null,null,null,null,null,null,"Milton"]
[null,null,null,null,null,null,null,null,"Minortown"]
[null,null,null,null,null,null,null,null,"Mixville"]
[null,null,null,null,null,null,null,null,"Mohegan"]
[null,null,null,null,null,null,null,null,"Momauguin"]
[null,null,null,null,null,null,null,null,"Monroe"]
[null,null,null,null,null,null,null,null,"Montowese"]
[null,null,null,null,null,null,null,null,"Montville"]
[null,null,null,null,null,null,null,null,"Moodus"]
[null,null,null,null,null,null,null,null,"Moose Meadow"]
[null,null,null,null,null,null,null,null,"Moosup"]
[null,null,null,null,null,null,null,null,"Morningside Park"]
[null,null,null,null,null,null,null,null,"Morningside"]
[null,null,null,null,null,null,null,null,"Morris"]
[null,null,null,null,null,null,null,null,"Mount Carmel"]
[null,null,null,null,null,null,null,null,"Mount Hope"]
[null,null,null,null,null,null,null,null,"Mystic"]
[null,null,null,null,null,null,null,null,"Mystic"]
[null,null,null,null,null,null,null,null,"Naugatuck"]
[null,null,null,null,null,null,null,null,"Nepaug"]
[null,null,null,null,null,null,null,null,"New Britain"]
[null,null,null,null,null,null,null,null,"New Canaan"]
[null,null,null,null,null,null,null,null,"New Fairfield"]
[null,null,null,null,null,null,null,null,"New Hartford"]
[null,null,null,null,null,null,null,null,"New Haven"]
[null,null,null,null,null,null,null,null,"New London"]
[null,null,null,null,null,null,null,null,"New Milford"]
[null,null,null,null,null,null,null,null,"New Preston"]
[null,null,null,null,null,null,null,null,"Newent"]
[null,null,null,null,null,null,null,null,"Newfield"]
[null,null,null,null,null,null,null,null,"Newfield"]
[null,null,null,null,null,null,null,null,"Newington"]
[null,null,null,null,null,null,null,null,"Newtown"]
[null,null,null,null,null,null,null,null,"Niantic"]
[null,null,null,null,null,null,null,null,"Nichols"]
[null,null,null,null,null,null,null,null,"Nineveh Falls"]
[null,null,null,null,null,null,null,null,"Noank"]
[null,null,null,null,null,null,null,null,"Norfolk"]
[null,null,null,null,null,null,null,null,"Noroton Heights"]
[null,null,null,null,null,null,null,null,"Noroton"]
[null,null,null,null,null,null,null,null,"North Ashford"]
[null,null,null,null,null,null,null,null,"North Bloomfield"]
[null,null,null,null,null,null,null,null,"North Branford"]
[null,null,null,null,null,null,null,null,"North Canaan"]
[null,null,null,null,null,null,null,null,"North Canton"]
[null,null,null,null,null,null,null,null,"North Colebrook"]
[null,null,null,null,null,null,null,null,"North Cromwell"]
[null,null,null,null,null,null,null,null,"North Franklin"]
[null,null,null,null,null,null,null,null,"North Granby"]
[null,null,null,null,null,null,null,null,"North Grosvenordale"]
[null,null,null,null,null,null,null,null,"North Guilford"]
[null,null,null,null,null,null,null,null,"North Haven"]
[null,null,null,null,null,null,null,null,"North Kent"]
[null,null,null,null,null,null,null,null,"North Lyme"]
[null,null,null,null,null,null,null,null,"North Madison"]
[null,null,null,null,null,null,null,null,"North Norfolk"]
[null,null,null,null,null,null,null,null,"North Plain"]
[null,null,null,null,null,null,null,null,"North Somers"]
[null,null,null,null,null,null,null,null,"North Stamford"]
[null,null,null,null,null,null,null,null,"North Sterling"]
[null,null,null,null,null,null,null,null,"North Stonington"]
[null,null,null,null,null,null,null,null,"North Thompsonville"]
[null,null,null,null,null,null,null,null,"North Wilton"]
[null,null,null,null,null,null,null,null,"North Windham"]
[null,null,null,null,null,null,null,null,"North Woodbury"]
[null,null,null,null,null,null,null,null,"North Woodstock"]
[null,null,null,null,null,null,null,null,"Northfield"]
[null,null,null,null,null,null,null,null,"Northford"]
[null,null,null,null,null,null,null,null,"Northville"]
[null,null,null,null,null,null,null,null,"Norwalk"]
[null,null,null,null,null,null,null,null,"Norwich"]
[null,null,null,null,null,null,null,null,"Norwichtown"]
[null,null,null,null,null,null,null,null,"Nut Plains"]
[null,null,null,null,null,null,null,null,"Oakdale"]
[null,null,null,null,null,null,null,null,"Oakville"]
[null,null,null,null,null,null,null,null,"Occum"]
[null,null,null,null,null,null,null,null,"Ocean Beach"]
[null,null,null,null,null,null,null,null,"Old Greenwich"]
[null,null,null,null,null,null,null,null,"Old Lyme "]
[null,null,null,null,null,null,null,null,"Old Mystic"]
[null,null,null,null,null,null,null,null,"Old Saybrook"]
[null,null,null,null,null,null,null,null,"Oneco"]
[null,null,null,null,null,null,null,null,"Orange"]
[null,null,null,null,null,null,null,null,"Orcuttsville"]
[null,null,null,null,null,null,null,null,"Ore Hill"]
[null,null,null,null,null,null,null,null,"Oronoke"]
[null,null,null,null,null,null,null,null,"Oronoque"]
[null,null,null,null,null,null,null,null,"Oxford"]
[null,null,null,null,null,null,null,null,"Pachaug"]
[null,null,null,null,null,null,null,null,"Packerville"]
[null,null,null,null,null,null,null,null,"Palmertown"]
[null,null,null,null,null,null,null,null,"Park Lane"]
[null,null,null,null,null,null,null,null,"Pawcatuck"]
[null,null,null,null,null,null,null,null,"Pequabuck"]
[null,null,null,null,null,null,null,null,"Perkins Corner"]
[null,null,null,null,null,null,null,null,"Phoenixville"]
[null,null,null,null,null,null,null,null,"Pine Meadow"]
[null,null,null,null,null,null,null,null,"Pine Orchard"]
[null,null,null,null,null,null,null,null,"Pines Bridge"]
[null,null,null,null,null,null,null,null,"Plainfield"]
[null,null,null,null,null,null,null,null,"Plainville"]
[null,null,null,null,null,null,null,null,"Plantsville"]
[null,null,null,null,null,null,null,null,"Pleasant Valley"]
[null,null,null,null,null,null,null,null,"Pleasure Beach"]
[null,null,null,null,null,null,null,null,"Plymouth"]
[null,null,null,null,null,null,null,null,"Pomfret Center"]
[null,null,null,null,null,null,null,null,"Pomfret Landing"]
[null,null,null,null,null,null,null,null,"Pomfret"]
[null,null,null,null,null,null,null,null,"Pomperaug"]
[null,null,null,null,null,null,null,null,"Pond Meadow"]
[null,null,null,null,null,null,null,null,"Ponset"]
[null,null,null,null,null,null,null,null,"Poquetanuck"]
[null,null,null,null,null,null,null,null,"Poquonock Bridge"]
[null,null,null,null,null,null,null,null,"Poquonock"]
[null,null,null,null,null,null,null,null,"Portland"]
[null,null,null,null,null,null,null,null,"Preston City"]
[null,null,null,null,null,null,null,null,"Preston"]
[null,null,null,null,null,null,null,null,"Prospect"]
[null,null,null,null,null,null,null,null,"Putnam Heights"]
[null,null,null,null,null,null,null,null,"Putnam"]
[null,null,null,null,null,null,null,null,"Quaddick"]
[null,null,null,null,null,null,null,null,"Quaker Farms"]
[null,null,null,null,null,null,null,null,"Quaker Hill"]
[null,null,null,null,null,null,null,null,"Quarryville"]
[null,null,null,null,null,null,null,null,"Quinebaug"]
[null,null,null,null,null,null,null,null,"Quinnipiac"]
[null,null,null,null,null,null,null,null,"Rainbow"]
[null,null,null,null,null,null,null,null,"Redding Ridge"]
[null,null,null,null,null,null,null,null,"Redding"]
[null,null,null,null,null,null,null,null,"Reeds Gap"]
[null,null,null,null,null,null,null,null,"Reynolds Bridge"]
[null,null,null,null,null,null,null,null,"Ridgebury"]
[null,null,null,null,null,null,null,null,"Ridgefield"]
[null,null,null,null,null,null,null,null,"River Bank"]
[null,null,null,null,null,null,null,null,"Rivercliff"]
[null,null,null,null,null,null,null,null,"Riverside"]
[null,null,null,null,null,null,null,null,"Riverside"]
[null,null,null,null,null,null,null,null,"Riverton"]
[null,null,null,null,null,null,null,null,"Robertsville"]
[null,null,null,null,null,null,null,null,"Rockfall"]
[null,null,null,null,null,null,null,null,"Rockland"]
[null,null,null,null,null,null,null,null,"Rockville"]
[null,null,null,null,null,null,null,null,"Rocky Glen"]
[null,null,null,null,null,null,null,null,"Rocky Hill"]
[null,null,null,null,null,null,null,null,"Rogers"]
[null,null,null,null,null,null,null,null,"Romford"]
[null,null,null,null,null,null,null,null,"Roton Point"]
[null,null,null,null,null,null,null,null,"Round Hill"]
[null,null,null,null,null,null,null,null,"Rowayton"]
[null,null,null,null,null,null,null,null,"Roxbury Falls"]
[null,null,null,null,null,null,null,null,"Roxbury Station"]
[null,null,null,null,null,null,null,null,"Roxbury"]
[null,null,null,null,null,null,null,null,"Sachem Head"]
[null,null,null,null,null,null,null,null,"Sadds Mills"]
[null,null,null,null,null,null,null,null,"Salem Four Corners."]
[null,null,null,null,null,null,null,null,"Salem"]
[null,null,null,null,null,null,null,null,"Salisbury"]
[null,null,null,null,null,null,null,null,"Sandy Hook"]
[null,null,null,null,null,null,null,null,"Saugatuck"]
[null,null,null,null,null,null,null,null,"Savin Rock"]
[null,null,null,null,null,null,null,null,"Saybrook Manor"]
[null,null,null,null,null,null,null,null,"Saybrook Point"]
[null,null,null,null,null,null,null,null,"Scantic"]
[null,null,null,null,null,null,null,null,"Scitico"]
[null,null,null,null,null,null,null,null,"Scotland"]
[null,null,null,null,null,null,null,null,"Seymour"]
[null,null,null,null,null,null,null,null,"Shailerville"]
[null,null,null,null,null,null,null,null,"Sharon"]
[null,null,null,null,null,null,null,null,"Shelton"]
[null,null,null,null,null,null,null,null,"Sherman"]
[null,null,null,null,null,null,null,null,"Short Beach"]
[null,null,null,null,null,null,null,null,"Silvermine"]
[null,null,null,null,null,null,null,null,"Simsbury"]
[null,null,null,null,null,null,null,null,"Sodom"]
[null,null,null,null,null,null,null,null,"Somers"]
[null,null,null,null,null,null,null,null,"Somersville"]
[null,null,null,null,null,null,null,null,"Sound Beach"]
[null,null,null,null,null,null,null,null,"Sound View"]
[null,null,null,null,null,null,null,null,"South Britain"]
[null,null,null,null,null,null,null,null,"South Canaan"]
[null,null,null,null,null,null,null,null,"South Chaplin"]
[null,null,null,null,null,null,null,null,"South Glastonbury"]
[null,null,null,null,null,null,null,null,"South Kent"]
[null,null,null,null,null,null,null,null,"South Killingly"]
[null,null,null,null,null,null,null,null,"South Lyme"]
[null,null,null,null,null,null,null,null,"South Meriden"]
[null,null,null,null,null,null,null,null,"South Norfolk"]
[null,null,null,null,null,null,null,null,"South Norwalk"]
[null,null,null,null,null,null,null,null,"South Willington"]
[null,null,null,null,null,null,null,null,"South Wilton"]
[null,null,null,null,null,null,null,null,"South Windham"]
[null,null,null,null,null,null,null,null,"South Windsor"]
[null,null,null,null,null,null,null,null,"South Woodstock"]
[null,null,null,null,null,null,null,null,"Southbury"]
[null,null,null,null,null,null,null,null,"Southford"]
[null,null,null,null,null,null,null,null,"Southington"]
[null,null,null,null,null,null,null,null,"Southport"]
[null,null,null,null,null,null,null,null,"Sprague"]
[null,null,null,null,null,null,null,null,"Spring Glen"]
[null,null,null,null,null,null,null,null,"Spring Hill"]
[null,null,null,null,null,null,null,null,"Springdale"]
[null,null,null,null,null,null,null,null,"Stafford Springs"]
[null,null,null,null,null,null,null,null,"Stafford"]
[null,null,null,null,null,null,null,null,"Staffordville"]
[null,null,null,null,null,null,null,null,"Stamford"]
[null,null,null,null,null,null,null,null,"Stanwich"]
[null,null,null,null,null,null,null,null,"Stepney"]
[null,null,null,null,null,null,null,null,"Sterling Hill"]
[null,null,null,null,null,null,null,null,"Sterling"]
[null,null,null,null,null,null,null,null,"Stevenson"]
[null,null,null,null,null,null,null,null,"Still River"]
[null,null,null,null,null,null,null,null,"Stonington"]
[null,null,null,null,null,null,null,null,"Stony Creek"]
[null,null,null,null,null,null,null,null,"Storrs"]
[null,null,null,null,null,null,null,null,"Straitsville"]
[null,null,null,null,null,null,null,null,"Stratford"]
[null,null,null,null,null,null,null,null,"Suffield"]
[null,null,null,null,null,null,null,null,"Taconic"]
[null,null,null,null,null,null,null,null,"Taftville"]
[null,null,null,null,null,null,null,null,"Talcottville"]
[null,null,null,null,null,null,null,null,"Tariffville"]
[null,null,null,null,null,null,null,null,"Terryville"]
[null,null,null,null,null,null,null,null,"Thamesville"]
[null,null,null,null,null,null,null,null,"Thomaston"]
[null,null,null,null,null,null,null,null,"Thompson"]
[null,null,null,null,null,null,null,null,"Thompsonville"]
[null,null,null,null,null,null,null,null,"Titicus"]
[null,null,null,null,null,null,null,null,"Tokeneke"]
[null,null,null,null,null,null,null,null,"Tolland"]
[null,null,null,null,null,null,null,null,"Tolles"]
[null,null,null,null,null,null,null,null,"Topstone"]
[null,null,null,null,null,null,null,null,"Torringford"]
[null,null,null,null,null,null,null,null,"Torrington"]
[null,null,null,null,null,null,null,null,"Totoket"]
[null,null,null,null,null,null,null,null,"Towantic"]
[null,null,null,null,null,null,null,null,"Tracy"]
[null,null,null,null,null,null,null,null,"Trumbull"]
[null,null,null,null,null,null,null,null,"Turn of River"]
[null,null,null,null,null,null,null,null,"Twin Lakes"]
[null,null,null,null,null,null,null,null,"Tyler City"]
[null,null,null,null,null,null,null,null,"Tylerville"]
[null,null,null,null,null,null,null,null,"Uncasville"]
[null,null,null,null,null,null,null,null,"Union City"]
[null,null,null,null,null,null,null,null,"Union"]
[null,null,null,null,null,null,null,null,"Unionville"]
[null,null,null,null,null,null,null,null,"Upper Merryall"]
[null,null,null,null,null,null,null,null,"Upper Stepney"]
[null,null,null,null,null,null,null,null,"Vernon Center"]
[null,null,null,null,null,null,null,null,"Vernon"]
[null,null,null,null,null,null,null,null,"Versailles"]
[null,null,null,null,null,null,null,null,"Village Hill"]
[null,null,null,null,null,null,null,null,"Voluntown"]
[null,null,null,null,null,null,null,null,"Wallingford"]
[null,null,null,null,null,null,null,null,"Walnut Beach"]
[null,null,null,null,null,null,null,null,"Wapping"]
[null,null,null,null,null,null,null,null,"Warehouse Point"]
[null,null,null,null,null,null,null,null,"Warren"]
[null,null,null,null,null,null,null,null,"Warrenville"]
[null,null,null,null,null,null,null,null,"Washington Depot "]
[null,null,null,null,null,null,null,null,"Washington"]
[null,null,null,null,null,null,null,null,"Waterbury"]
[null,null,null,null,null,null,null,null,"Waterford"]
[null,null,null,null,null,null,null,null,"Watertown"]
[null,null,null,null,null,null,null,null,"Waterville"]
[null,null,null,null,null,null,null,null,"Wauregan"]
[null,null,null,null,null,null,null,null,"Weatogue"]
[null,null,null,null,null,null,null,null,"Wellsville"]
[null,null,null,null,null,null,null,null,"Wequetequock"]
[null,null,null,null,null,null,null,null,"West Ashford"]
[null,null,null,null,null,null,null,null,"West Avon"]
[null,null,null,null,null,null,null,null,"West Cornwall"]
[null,null,null,null,null,null,null,null,"West Goshen"]
[null,null,null,null,null,null,null,null,"West Granby"]
[null,null,null,null,null,null,null,null,"West Hartford"]
[null,null,null,null,null,null,null,null,"West Hartland"]
[null,null,null,null,null,null,null,null,"West Haven"]
[null,null,null,null,null,null,null,null,"West Mystic"]
[null,null,null,null,null,null,null,null,"West Norfolk"]
[null,null,null,null,null,null,null,null,"West Norwalk"]
[null,null,null,null,null,null,null,null,"West Redding"]
[null,null,null,null,null,null,null,null,"West Simsbury"]
[null,null,null,null,null,null,null,null,"West Stafford"]
[null,null,null,null,null,null,null,null,"West Suffield"]
[null,null,null,null,null,null,null,null,"West Thompson"]
[null,null,null,null,null,null,null,null,"West Torrington"]
[null,null,null,null,null,null,null,null,"West Willington"]
[null,null,null,null,null,null,null,null,"West Woodstock"]
[null,null,null,null,null,null,null,null,"Westbrook"]
[null,null,null,null,null,null,null,null,"Westchester"]
[null,null,null,null,null,null,null,null,"Westfield"]
[null,null,null,null,null,null,null,null,"Westford"]
[null,null,null,null,null,null,null,null,"Westminster"]
[null,null,null,null,null,null,null,null,"Weston"]
[null,null,null,null,null,null,null,null,"Westport"]
[null,null,null,null,null,null,null,null,"Westville"]
[null,null,null,null,null,null,null,null,"Wethersfield"]
[null,null,null,null,null,null,null,null,"Whigville"]
[null,null,null,null,null,null,null,null,"White Oaks"]
[null,null,null,null,null,null,null,null,"Whitneyville"]
[null,null,null,null,null,null,null,null,"Wildermere Beach"]
[null,null,null,null,null,null,null,null,"Willimantic"]
[null,null,null,null,null,null,null,null,"Willington"]
[null,null,null,null,null,null,null,null,"Wilson"]
[null,null,null,null,null,null,null,null,"Wilson's Point"]
[null,null,null,null,null,null,null,null,"Wilsonville"]
[null,null,null,null,null,null,null,null,"Wilton"]
[null,null,null,null,null,null,null,null,"Winchester Center"]
[null,null,null,null,null,null,null,null,"Winchester"]
[null,null,null,null,null,null,null,null,"Windemere Village"]
[null,null,null,null,null,null,null,null,"Windham"]
[null,null,null,null,null,null,null,null,"Windsor Locks"]
[null,null,null,null,null,null,null,null,"Windsor"]
[null,null,null,null,null,null,null,null,"Windsorville"]
[null,null,null,null,null,null,null,null,"Winnipauk"]
[null,null,null,null,null,null,null,null,"Winsted"]
[null,null,null,null,null,null,null,null,"Winthrop"]
[null,null,null,null,null,null,null,null,"Wolcott"]
[null,null,null,null,null,null,null,null,"Woodbridge"]
[null,null,null,null,null,null,null,null,"Woodbury"]
[null,null,null,null,null,null,null,null,"Woodmont"]
[null,null,null,null,null,null,null,null,"Woodstock Valley"]
[null,null,null,null,null,null,null,null,"Woodstock"]
[null,null,null,null,null,null,null,null,"Woodville"]
[null,null,null,null,null,null,null,null,"Woodville"]
[null,null,null,null,null,null,null,null,"Wrightville"]
[null,null,null,null,null,null,null,null,"Yalesville"]
[null,null,null,null,null,null,null,null,"Yantic"]
[null,null,null,null,null,null,null,null,"Zoar Bridge"]

{"sheet":"AdminList","index":47,"n_rows":110,"n_cols":11,"rows_kept":110,"cut":false,"hidden":true,"merged":[[87,4,87,8],[87,0,87,2],[76,4,76,8],[76,0,76,2],[95,4,95,8],[106,0,106,2],[66,0,66,2],[66,4,66,8],[0,0,0,2],[11,4,11,8],[21,4,21,9],[11,0,11,2],[21,0,21,2],[31,4,31,8],[31,0,31,2],[43,0,43,2],[43,4,43,8],[54,0,54,2],[0,4,0,10],[99,0,99,2],[93,0,93,2]]}
["Unitary & Split DX",null,null,null,"Heat Pumps - Air"]
["Existing ","Proposed","Equipment Type",null,"Existing Equipment / System","Proposed Equipment Type if Cooling Capacity <65,000 Btu/hr","Fully replacing heating system.","What Fuel Type is being displaced ?","Integrated Control Setting"," Fuel Optimization:\nHeat Pump Displacing Fossil Fuel or Elec Resistance Heat?"," Fuel Optimization:\nBase Heating Fuel Being Displaced"]
["Unitary","Unitary","Split System",null,"Boiler","Ductless Single Zone","Yes","Oil","Droop Setting","Full","Fossil Fuel"]
["Split","Split","Single Package",null,"Condensing Boiler","Ducted or Ductless Multi Zone","No","Natural Gas","Switch-Over Temperature","Partial","Electric Resistance"]
[null,null,null,null,"Steam Distribution System","Centrally-Ducted",null,"Propane",null,"Not Used for primary Heating"]
[null,null,null,null,"Furnace",null,null,"Electric Resistance"]
[null,null,null,null,"Condensate Return System"]
[null,null,null,null,"Unit Heater"]
[null,null,null,null,"Other"]
[]
[]
["DHW",null,null,null,"Heat Pumps - Water"]
["Equipment Type","Equipment Type","Energy Star Rating",null,"Existing Equipment / System","Fully replacing pre-existing heating System ?","What Fuel Type is being displaced ?","Integrated Control Setting","Proposed Installed Category or Type"]
["On Demand","Heat Pump","Yes",null,"Boiler","Yes","Oil","Droop Setting","Water-to-Air: Boiler/Cooling Tower"]
["Direct Fired",null,"No",null,"Condensing Boiler","No","Natural Gas","Switch-Over Temperature","Water-to-Air: Ground Loop (Closed Loop"]
["In-direct Fired","Storage Type",null,null,"Steam Distribution System",null,"Propane",null,"Water-to-Water: Ground Water (Open Loop)"]
[null,"On Demand",null,null,"Furnace",null,"Electric Resistance",null,"Water-to-Air: Ground Water (Open Loop)"]
[null,"Large DWH Boiler",null,null,"Condensate Return System",null,null,null,"Water-to-Water: Boiler/Cooling Tower"]
[null,null,null,null,"Unit Heater",null,null,null,"Water-to-Water: Ground Loop (Closed Loop)"]
[null,null,null,null,"Other"]
[]
["HW Usage",null,null,null,"VRF-VRV"]
["Type of water heater","Is this a school?",null,null,"Existing Equipment / System","Fully replacing pre-existing heating System ?","What Fuel Type is being displaced ?","Integrated Control Setting","Proposed Indoor Unit Type","Proposed VRF Classification "]
["1-Electric","Yes",null,null,"Boiler","Yes","Oil","Droop Setting","Ducted","VRF without Heat Recovery"]
["2-Gas","No",null,null,"Condensing Boiler","No","Natural Gas","Switch-Over Temperature","Non-ducted","VRF with Heat Recovery"]
["3-Propane",null,null,null,"Steam Distribution System",null,"Propane",null,"Mixed","Cooling Only"]
["4-Oil",null,null,null,"Furnace",null,"Electric Resistance"]
[null,null,null,null,"Condensate Return System"]
[null,null,null,null,"Unit Heater"]
[null,null,null,null,"Other"]
[]
["VFD",null,null,null,"Gas Heating"]
["Fan Type"," CT VFD Installation Type",null,null,"Proposed Equipment","Proposed Boiler Type /Furnace Vent Configuration","Proposed Proposed Fuel Type","Existing Equipment /System ","Existing Fuel"]
["<= 50 HP Motors","Added to Existing Equip. (Add-On)",null,null,"Boiler - Condensing","Boiler: Hot Water < 300 MBH","Electric","Hot Water Boiler","Electric"]
["> 50 HP Motors","Installed on New/Replacement Equip.",null,null,"Boiler - Non-Condensing","Boiler: Hot Water = 300 & = 2500 MBH","Natural Gas","Forced Air Furnace","Natural Gas"]
["CV constant speed",null,null,null,"Furnace - Condensing","Boiler: Hot Water Cast Iron Sectional","Oil","Boiler","Oil"]
["AF/BI",null,null,null,"Infrared Radiant (IR)","Boiler: Steam < 300 MBH,Steam = 300 MBH","Propane","Condensing Boiler","Propane"]
["AF/BIV",null,null,null,"Unit Heater","Boiler: Steam natural draft = 300 MBH","Other","Furnace","Other"]
["Forward Curve IGV",null,null,null,"Gas Absorption Heat Pumps","Furnace: Unknown exisiting venting",null,"Steam Distribution System"]
["Forward Curve",null,null,null,null,"Furnace: Existing condensing stack",null,"Condensate Return System"]
[null,null,null,null,null,"Furnace: Existing non-condensing stack",null,"Unit Heater"]
[null,null,null,null,null,null,null,"Forced Air Furnace"]
[]
["DCV",null,null,null,"Steam Traps"]
["Sensor location ","Heating Fuel",null,null,"Issue","Repair or Replace","Type","Burner Control (if avalable)","Condensate Return Line (Yes/No)"]
["Return Duct","Electric Heat",null,null,"Blowing thru","No Change","Process Steam","Linkage Control","Yes"]
["Wall Mounted","Heat Pump",null,null,"Leaking","Repair","Banks,Financial Center Heating","Parallel Positioning","No"]
[null,"Natural Gas",null,null,"Not in service","Replace","College:Classess/Administrative Heating","Parallel Positioning and O2 Trim"]
[null,"Propane/Oil",null,null,"Not Tested",null,"College:Dormitory Heating"]
[null,"Other and No Heating",null,null,"OK",null,"Commercial Condo Heating"]
[null,null,null,null,"Plugged",null,"Convention Center Heating"]
[null,null,null,null,null,null,"Court House Heating"]
[null,null,null,null,null,null,"Fire Station (Unmanned) Heating"]
[null,null,null,null,null,null,"Hospital Heating"]
["Advanced Thermostat",null,null,null,null,null,"Hospitals/Health Care Heating"]
["Heating Type","Cooling Type",null,null,null,null,"Mall Concourse Heating"]
["Heating - Natural Gas  Heating System ","Cooling - Cooling System ",null,null,null,null,"Multi-Family (Common Areas) Heating"]
["Heating - Oil Heating System ","Cooling -Not Applicable ",null,null,null,null,"Nursing Home Heating"]
["Heating - Propane Heating System ",null,null,null,null,null,"Penitentiary Heating"]
["Heating - Electric Resistance Heating System ",null,null,null,null,null,"Police/Fire Station (24 Hr) Heating"]
["Heating - Electric Heat Pump",null,null,null,null,null,"Residentail (Except Nursing Homes ) Heating"]
["Heating - Not Applicable ",null,null,null,null,null,"School/University Heating"]
[null,null,null,null,null,null,"Schools (Jr./Sr. High) Heating"]
[null,null,null,null,null,null,"Schools (Technical/Vocational) Heating"]
[]
[]
["Pipe Ins",null,null,null,"EMS"]
["Pipe :Type of Fluid","Blanket: Type of Fluid",null,null,"Type","New or existing","Existing Control Strategy","Type","New or existing"]
["High Pressure Steam","High Pressure Steam",null,null,"Gas HW- Condensing","Being Replaced","None","Water Cooled ","Being Replaced"]
["Medium Pressure Steam","Medium Pressure Steam",null,null,"Gas HW- Non-Condensing","New (didn't exist previously)","Outside Temp Reset","Air Cooled","New Replacement "]
["Low Pressure Steam","Low Pressure Steam",null,null,"Gas Fired Steam Boiler","Existing To Remain",null,"Heat Pump/VRF system","Remaining"]
["Condensate","Condensate",null,null,"Electric Boiler"]
["Heating Hot Water","Heating Hot Water",null,null,"Heat Pump/VRF system",null,"Primary"]
["Domestic Hot Water","Domestic Hot Water",null,null,null,null,"Secondary"]
["Chilled Water","Chilled Water"]
[]
["Insulation",null,null,null,"Refrigeration Equipment"]
[]
["Roof: Insulation Entirely Above Deck","Mass Wall",null,null,"COOLER","Shaded Pole","Single-Phase"]
["Roof: Metal Building","Metal Building Wall",null,null,"FREEZER","PSC","Three-Phase"]
["Roof: Attic and Other","Metal Framed"]
["Walls, Above-Grade: Mass","Wood Framed and Other"]
["Walls, Above-Grade: Metal Building","Attic and Other"]
["Walls, Above-Grade: Steel-Framed","Roof Insulation Above Deck"]
["Walls, Above-Grade: Wood-framed or other","Metal Building Roof"]
["Walls Below-Grade"]
[]
["Washers",null,null,null,"Refrigeration Equipment"]
["Front Load Washer","No Dryer","Electric DHW",null,"1 shift","1- Single-acting Reciprocating Air Compressor","1- Inlet Valve Modulated"]
["Top Load Washer","Electric Dryer","Gas DHW",null,"2 shifts","2- Double-acting Reciprocating Air Compressor","2- Variable Displacement"]
[null,"Gas Dryer","Propane DHW",null,"3 shifts","3- Lubricant-injected Rotary Screw Compressor","3- Variable Speed Drive"]
[null,null,"Oil DHW",null,"4 shifts","4- Lubricant Free Rotary Screw Compressor","4- Unknown "]
[null,null,null,null,null,"5- Centrifigal Compressor"]
["Chillers",null,null,null,null,"6- Unknown"]
["2-Air Cooled (with condenser)"]
["3-Water Cooled Positive Displacement",null,null,null,"Windows"]
["4-Water Cooled Centrifugal",null,null,null,"New Windows","Electric","N"]
[null,null,null,null,"Window Film","Fossil Fuel","NE"]
[null,null,null,null,null,null,"E"]
["Air Compressor Heat Recoveruy",null,null,null,null,null,"SE"]
["Yes",null,"Compressor is existing",null,null,null,"S"]
["No","Located in conditioned space (heated /maybe cooled)","Compressor is new",null,null,null,"SW"]
[null,"Located in in a room with venting to the outside",null,null,null,null,"W"]
[null,"Other -describe below",null,null,null,null,"NW"]
[]
[]
["ERV"]
["System Type"]
["Constant Speed"]
["VAV"]